date,department/service,beneficiary,amount,summary of purpose,category,transaction number,SAP vendor number
01.08.2018,"BOROUGH, BANKSIDE AND WALWORTH COMMUNITY COUNCIL",HOLISTIC WELL WOMEN,"2,500.00",CREATIVE CRAFTS CORNER,GRANT,CHEQUE PAYMENT,CHEQUE PAYMENT
01.08.2018,ELECTORAL SVCES,ROYAL MAIL GROUP LTD,"1,415.84",BOROUGH COUNCIL ELECTIONS,LEGAL FEES & COURT COSTS,2102842398,1000061535
02.08.2018,ADULT SOCIAL CARE,REDACTED PERSONAL DATA,"-1,018.40",PHY LTS 18-64,DISCRETIONARY FLEXIBLE FEES & INCOME,REDACTED,REDACTED
02.08.2018,ADULT SOCIAL CARE,GREENWRITE HEALTHCARE LTD,317.17,PHY LTS 18-64,HOMECARE - SPOT,2102846405,1000080718
02.08.2018,ADULT SOCIAL CARE,GREENWRITE HEALTHCARE LTD,365.44,PHY LTS 18-64,HOMECARE - SPOT,2102846411,1000080718
02.08.2018,ADULT SOCIAL CARE,GREENWRITE HEALTHCARE LTD,655.02,PHY LTS 18-64,HOMECARE - C&V,2102846408,1000080718
02.08.2018,ADULT SOCIAL CARE,REDACTED PERSONAL DATA,"1,018.40",PHY LTS 18-64,PAYMENTS TO CLIENTS (DIRECT PAYMENTS),REDACTED,REDACTED
02.08.2018,ADULT SOCIAL CARE,GREENWRITE HEALTHCARE LTD,"1,489.32",PHY LTS 18-64,HOMECARE - SPOT,2102846401,1000080718
02.08.2018,ADULT SOCIAL CARE,GREENWRITE HEALTHCARE LTD,344.75,PHY LTS 65+,HOMECARE - SPOT,2102846409,1000080718
02.08.2018,ADULT SOCIAL CARE,GREENWRITE HEALTHCARE LTD,434.39,PHY LTS 65+,HOMECARE - SPOT,2102846396,1000080718
02.08.2018,ADULT SOCIAL CARE,GREENWRITE HEALTHCARE LTD,496.44,PHY LTS 65+,HOMECARE - SPOT,2102846393,1000080718
02.08.2018,ADULT SOCIAL CARE,GREENWRITE HEALTHCARE LTD,786.03,PHY LTS 65+,HOMECARE - SPOT,2102846406,1000080718
02.08.2018,ADULT SOCIAL CARE,GREENWRITE HEALTHCARE LTD,910.14,PHY STS 65+,HOMECARE - IC,2102846404,1000080718
02.08.2018,ADULT SOCIAL CARE,RESOURCES FOR AUTISM,"23,333.00",SHORT BREAKS,EXTERNAL AGENCIES AND BODIES,5902314031,1000062540
02.08.2018,ADULT SOCIAL CARE,GREENWRITE HEALTHCARE LTD,910.14,SOCIAL ISOLATION,HOMECARE - IC,2102846397,1000080718
02.08.2018,ASSET MANAGEMENT,AAA TRAINING CO. LTD,295,HEALTH AND SAFETY,TRAINING,5902314212,1000019958
02.08.2018,"BOROUGH, BANKSIDE AND WALWORTH COMMUNITY COUNCIL",PULLENS T&RA,"5,000.00",LAUNCH EVENTS FOR FRIENDS OF THE PULLENS GARDENS,GRANT,CHEQUE PAYMENT,CHEQUE PAYMENT
02.08.2018,CENTRAL FUNCTIONS,BRITISH GAS,322.94,COMMERCIAL PROPERTIES,GAS,5902314187,1000054825
02.08.2018,CENTRAL FUNCTIONS,STANBURY BUILDING SERVICES LTD,"3,995.00",COMMERCIAL PROPERTIES,BUILDING R&M,2102846416,3000001967
02.08.2018,CENTRAL FUNCTIONS,KENT COUNTY COUNCIL - LASER,"1,514.19",HEATING ACCOUNT,ELECTRICITY,5902313524,1000012926
02.08.2018,CENTRAL FUNCTIONS,NPOWER LTD,"1,614.07",HEATING ACCOUNT,ELECTRICITY,5902314180,1000078994
02.08.2018,CENTRAL FUNCTIONS,KENT COUNTY COUNCIL - LASER,"9,234.09",HEATING ACCOUNT,GAS,5902313521,1000012926
02.08.2018,CENTRAL FUNCTIONS,KENT COUNTY COUNCIL - LASER,"52,752.48",HEATING ACCOUNT,ELECTRICITY,5902313524,1000012926
02.08.2018,CENTRAL FUNCTIONS,KENT COUNTY COUNCIL - LASER,"251,986.77",HEATING ACCOUNT,GAS,5902313521,1000012926
02.08.2018,CENTRAL FUNCTIONS,C M MONITOR LTD,"8,750.00",HOME OWNERSHIP,OFFICE EXPENSES,5902314030,1000081421
02.08.2018,CHIEF EXECUTIVE,SHARPE PRITCHARD LLP,252,CAPITAL PS (REGEN),CONSTRUCTION FEES,5902314216,1790085
02.08.2018,CHIEF EXECUTIVE,ADVANCED TRANSPORT RESEARCH LTD,375,CAPITAL PS (REGEN),CONSTRUCTION,5902313219,1000070527
02.08.2018,CHIEF EXECUTIVE,FRANKHAM CONSULTANCY GROUP LTD,"1,176.00",CAPITAL PS (REGEN),CONSTRUCTION FEES,5902314225,1000043952
02.08.2018,CHIEF EXECUTIVE'S OFFICE,INSPIRE AT ST PETER'S LTD,"5,703.00",YOUTH FUND EMPLOYMENT,GRANTS,5902314179,1000041565
02.08.2018,CHILDREN AND ADULT,KEEGANS LTD,"1,446.00",CAPITAL PS (EDUCATION),CONSTRUCTION FEES - QUANTITY SURVEYOR,5902314221,1000039674
02.08.2018,CHILDREN AND ADULT,KEEGANS LTD,"1,446.00",CAPITAL PS (EDUCATION),CONSTRUCTION FEES - QUANTITY SURVEYOR,5902314232,1000039674
02.08.2018,CHILDREN AND ADULT,KEEGANS LTD,"2,005.00",CAPITAL PS (EDUCATION),CONSTRUCTION FEES - QUANTITY SURVEYOR,5902314237,1000039674
02.08.2018,CHILDREN AND ADULT,NUMBER 10 INTERIM LTD,"3,412.50",CAPITAL PS (STRAT SERV),ICT ACQUISITION,5902314040,1000075139
02.08.2018,CHILDREN'S SERVICES,PETE CRONIN PHOTOGRAPHY & VIDEO,775,ADOPTION PLACEMENTS & INTER AGENCY,EXTERNAL AGENCIES AND BODIES,5902314236,1000049115
02.08.2018,CHILDREN'S SERVICES,REDACTED PERSONAL DATA,"1,819.20",ADOPTION REFORM GRANT (PART B),PROFESSIONAL FEES,REDACTED,REDACTED
02.08.2018,CHILDREN'S SERVICES,REDACTED PERSONAL DATA,"2,057.40",ADOPTION REFORM GRANT (PART B),PROFESSIONAL FEES,REDACTED,REDACTED
02.08.2018,CHILDREN'S SERVICES,FLEET TUTORS,"-29,035.00",ALTERNATIVE PROVISION,EXTERNAL AGENCIES AND BODIES,5902314091,1000044820
02.08.2018,CHILDREN'S SERVICES,FLEET TUTORS,"-2,046.00",ALTERNATIVE PROVISION,EXTERNAL AGENCIES AND BODIES,5902314090,1000044820
02.08.2018,CHILDREN'S SERVICES,FLEET TUTORS,"50,941.00",ALTERNATIVE PROVISION,EXTERNAL AGENCIES AND BODIES,5902314088,1000044820
02.08.2018,CHILDREN'S SERVICES,PULSE HEALTHCARE LTD,388.7,CASEWORK OLA  0-8,CONTRIBUTION TO PROVISIONS (TP PAYMENTS),5902313467,1000035063
02.08.2018,CHILDREN'S SERVICES,THE SPEECH CENTRE,282.5,CENTRAL SUPPORT,TRAINING,5902314164,1000035799
02.08.2018,CHILDREN'S SERVICES,LNENGELVIN CONSULTANCY LTD,982.1,CLA TEAM SAFEGUARDING,PROFESSIONAL FEES,5902314093,1000078868
02.08.2018,CHILDREN'S SERVICES,REDACTED PERSONAL DATA,"2,850.25",CLA TEAM SAFEGUARDING,PROFESSIONAL FEES,REDACTED,REDACTED
02.08.2018,CHILDREN'S SERVICES,BUSOLA GIWA,"3,809.70",CLA TEAM SAFEGUARDING,PROFESSIONAL FEES,5902314111,1000078885
02.08.2018,CHILDREN'S SERVICES,BUSOLA GIWA,"4,583.90",CLA TEAM SAFEGUARDING,PROFESSIONAL FEES,5902314113,1000078885
02.08.2018,CHILDREN'S SERVICES,TAYLOR CONWAY LTD,"-6,750.00",CLINICAL SERVICE,PROFESSIONAL FEES,5902314463,1000080955
02.08.2018,CHILDREN'S SERVICES,TAYLOR CONWAY LTD,"6,750.00",CLINICAL SERVICE,PROFESSIONAL FEES,5902314401,1000080955
02.08.2018,CHILDREN'S SERVICES,EDF ENERGY PLC,608.08,EDUC & PARTICIPATION,ELECTRICITY,5902314206,1008746
02.08.2018,CHILDREN'S SERVICES,SJ SOCIAL WORK CONSULTANCY LTD,"3,118.20",FAMILY ASSESSMENTS,RESIDENTIAL CARE,5902314168,1000080342
02.08.2018,CHILDREN'S SERVICES,SANDHURST INFANT & NURSERY SCHOOL,"1,410.00",PUPIL PREMIUM CURRENT YEAR,EXTERNAL AGENCIES AND BODIES,5902314202,1000073674
02.08.2018,CHILDREN'S SERVICES,ANDREW RELIABLE REMOVAL,350,S & FAM SUPP - PRAC GRP E SET 26-28,OTHER PAYMENTS FOR CLIENTS,5902314159,1000071141
02.08.2018,CHILDREN'S SERVICES,REDACTED PERSONAL DATA,456.4,SCH TRANS - CONTRACT COST,OTHER PAYMENTS FOR CLIENTS,REDACTED,REDACTED
02.08.2018,CHILDREN'S SERVICES,REDACTED PERSONAL DATA,598,SCH TRANS - CONTRACT COST,OTHER PAYMENTS FOR CLIENTS,REDACTED,REDACTED
02.08.2018,CHILDREN'S SERVICES,REDACTED PERSONAL DATA,"2,052.00",SCH TRANS - CONTRACT COST,OTHER PAYMENTS FOR CLIENTS,REDACTED,REDACTED
02.08.2018,CHILDREN'S SERVICES,FAMILY LIVES,"17,500.00",TACKLING TROUBLED FAMILIES,EXTERNAL AGENCIES AND BODIES,5902314165,1000072253
02.08.2018,CHILDREN'S SERVICES,REDACTED PERSONAL DATA,"1,100.00",UASC SECTION 24,OTHER PAYMENTS FOR CLIENTS,REDACTED,REDACTED
02.08.2018,COMMISSIONING & CENTRAL,GOLDSMITHS COLLEGE,"46,668.00",STEP UP,GRANTS,5902314084,1034461
02.08.2018,COMMUNITIES,THE PARTICIPATION PEOPLE,"6,650.00",COMMUNITY SAFETY FUND,EXTERNAL AGENCIES AND BODIES,5902314083,1000074059
02.08.2018,COMMUNITIES,SOVEREIGN INSIGNIA LTD T/A IMPAMARK PRESTIGE BRANDED MERCHANDISE,615,MAYORAL SUPPORT,"CLOTHING, UNIFORMS & LAUNDRY",5902314181,1000049053
02.08.2018,COMMUNITIES,CHILDREN ACT ENTERPRISES LTD,"1,462.50",SAFEGUARDING BOARDS,CONSULTANTS SERVICES,5902314230,1000068313
02.08.2018,COMMUNITIES,RC DOCUMENTARY LTD,"1,500.00",TENANTS FUND,MARKETING & PUBLICITY SERVICES,5902314169,1000078818
02.08.2018,COMMUNITIES,LETTSOM MOVE FORWARD T&RA,805,TRSIG,GRANTS,5902314148,1000055710
02.08.2018,COMMUNITIES,LETTSOM MOVE FORWARD T&RA,950,TRSIG,GRANTS,5902314145,1000055710
02.08.2018,COMMUNITIES,LETTSOM MOVE FORWARD T&RA,"2,600.00",TRSIG,GRANTS,5902314143,1000055710
02.08.2018,COMMUNITIES,CENTRE FOR CIVIL SOCIETY LTD,"1,000.00",VCS COMM & SUPP TEAM,TRAINING,5902314053,1000071144
02.08.2018,CUSTOMER EXPERIENCE HGF,K3 PROPERTY MANAGEMENT LTD,"18,378.00",NIGHTLY TA (NSC),EXTERNAL AGENCIES AND BODIES,5902314158,1000068219
02.08.2018,CUSTOMER EXPERIENCE HGF,APEX HOUSING SOLUTIONS LTD,"31,472.40",NIGHTLY TA (NSC),EXTERNAL AGENCIES AND BODIES,5902314065,1000079786
02.08.2018,CUSTOMER EXPERIENCE HGF,SHUTTLEWORTH (UK) LTD,"44,109.00",NIGHTLY TA (NSC),EXTERNAL AGENCIES AND BODIES,5902314152,1000056468
02.08.2018,ENVIRONMENT AND LEISURE,HOBART PAVING COMPANY LTD,794,CAPITAL PS (LEISURE),CONSTRUCTION FEES  - EXTERNAL,2102846420,3000001690
02.08.2018,ENVIRONMENT AND LEISURE,HOBART PAVING COMPANY LTD,"2,170.00",CAPITAL PS (LEISURE),CONSTRUCTION FEES  - EXTERNAL,2102846415,3000001690
02.08.2018,ENVIRONMENT AND LEISURE,HOBART PAVING COMPANY LTD,"3,053.00",CAPITAL PS (LEISURE),CONSTRUCTION FEES  - EXTERNAL,2102846415,3000001690
02.08.2018,ENVIRONMENT AND LEISURE,TWO TOWERS HOUSING CO-OP LTD,"3,113.50",CAPITAL PS (LEISURE),CAPITAL GRANTS,5902313647,1000006843
02.08.2018,ENVIRONMENT AND LEISURE,HOBART PAVING COMPANY LTD,"9,142.00",CAPITAL PS (LEISURE),CONSTRUCTION FEES  - EXTERNAL,2102846419,3000001690
02.08.2018,ENVIRONMENT DIRECTORATE,ARNOLD CLARK VEHICLE MANAGEMENT,251.18,CAR LEASING CTRL A/C,VEHICLE LEASING CHARGES,5902314069,1000079116
02.08.2018,ENVIRONMENT DIRECTORATE,ARNOLD CLARK VEHICLE MANAGEMENT,254.65,CAR LEASING CTRL A/C,VEHICLE LEASING CHARGES,5902314077,1000079116
02.08.2018,ENVIRONMENT DIRECTORATE,ARNOLD CLARK VEHICLE MANAGEMENT,268.39,CAR LEASING CTRL A/C,VEHICLE LEASING CHARGES,5902314069,1000079116
02.08.2018,ENVIRONMENT DIRECTORATE,ARVAL UK LTD,"7,607.87",CAR LEASING CTRL A/C,VEHICLE LEASING CHARGES,5902314251,1000079802
02.08.2018,ENVIRONMENT DIRECTORATE,ARVAL UK LTD,"8,075.85",CAR LEASING CTRL A/C,VEHICLE LEASING CHARGES,5902314251,1000079802
02.08.2018,ENVIRONMENT DIRECTORATE,CLOSE BROTHERS VEHICLE HIRE LTD,268.4,COMMERCIAL VEH CTRL A/C,HIRED VEHICLES,5902314044,1000074394
02.08.2018,ENVIRONMENT DIRECTORATE,CLOSE BROTHERS VEHICLE HIRE LTD,268.4,COMMERCIAL VEH CTRL A/C,HIRED VEHICLES,5902314045,1000074394
02.08.2018,ENVIRONMENT DIRECTORATE,CLOSE BROTHERS VEHICLE HIRE LTD,303.6,COMMERCIAL VEH CTRL A/C,HIRED VEHICLES,5902314046,1000074394
02.08.2018,ENVIRONMENT DIRECTORATE,CLOSE BROTHERS VEHICLE HIRE LTD,316.8,COMMERCIAL VEH CTRL A/C,HIRED VEHICLES,5902314032,1000074394
02.08.2018,ENVIRONMENT DIRECTORATE,CLOSE BROTHERS VEHICLE HIRE LTD,316.8,COMMERCIAL VEH CTRL A/C,HIRED VEHICLES,5902314033,1000074394
02.08.2018,ENVIRONMENT DIRECTORATE,CLOSE BROTHERS VEHICLE HIRE LTD,316.8,COMMERCIAL VEH CTRL A/C,HIRED VEHICLES,5902314034,1000074394
02.08.2018,ENVIRONMENT DIRECTORATE,CLOSE BROTHERS VEHICLE HIRE LTD,316.8,COMMERCIAL VEH CTRL A/C,HIRED VEHICLES,5902314037,1000074394
02.08.2018,ENVIRONMENT DIRECTORATE,CLOSE BROTHERS VEHICLE HIRE LTD,316.8,COMMERCIAL VEH CTRL A/C,HIRED VEHICLES,5902314048,1000074394
02.08.2018,ENVIRONMENT DIRECTORATE,DAWSON RENTALS BUS & COACH LTD,335,COMMERCIAL VEH CTRL A/C,HIRED VEHICLES,5902314136,1000042174
02.08.2018,ENVIRONMENT DIRECTORATE,SCOT GROUP LIMITED,364,COMMERCIAL VEH CTRL A/C,HIRED VEHICLES,5902314196,1709512
02.08.2018,ENVIRONMENT DIRECTORATE,UNIVERSAL TYRE & AUTOCENTRES,427.34,COMMERCIAL VEH CTRL A/C,OTHER VEHICLE RUNNING COSTS,5902314253,1000072475
02.08.2018,ENVIRONMENT DIRECTORATE,CLOSE BROTHERS VEHICLE HIRE LTD,494.56,COMMERCIAL VEH CTRL A/C,HIRED VEHICLES,5902314028,1000074394
02.08.2018,ENVIRONMENT DIRECTORATE,RYGOR COMMERCIALS LIMITED,"1,116.00",COMMERCIAL VEH CTRL A/C,HIRED VEHICLES,5902314219,1000063262
02.08.2018,ENVIRONMENT DIRECTORATE,RYGOR COMMERCIALS LIMITED,"3,534.12",COMMERCIAL VEH CTRL A/C,HIRED VEHICLES,5902314217,1000063262
02.08.2018,ENVIRONMENT DIRECTORATE,M H COACHWORKS & SONS LTD,"12,576.30",FLEET INSURANCE WORKS,TRANSPORT INSURANCE COSTS,5902314029,1000033495
02.08.2018,ENVIRONMENT DIRECTORATE,JAAMA LTD,"1,654.95",FLEET SERVICES MANAGEMENT,COMPUTER MAINTENANCE,5902314244,1000080704
02.08.2018,ENVIRONMENT DIRECTORATE,KINGS COLLEGE LONDON,"1,518.75",LICENSING,STATIONERY,5902314147,1000021115
02.08.2018,F & C S EXCLUDING CORPORATE BUDGETS,NORTHGATE PUBLIC SERVICES (UK) LTD,"2,546.25",ADMINISTRATIVE SUPPORT,POSTAGES,5902314060,1000037405
02.08.2018,F & C S EXCLUDING CORPORATE BUDGETS,ZYLPHA LTD,"7,710.00",LEGAL SVCES MANAGEMENT,SOFTWARE,5902314205,1000066877
02.08.2018,F & C S EXCLUDING CORPORATE BUDGETS,THOMSON REUTERS PROFESSIONAL UK LTD,"22,920.00",LEGAL SVCES MANAGEMENT,SUBSCRIPTIONS,5902314207,1000000130
02.08.2018,HOUSING GENERAL FUND,COLT TECHNOLOGY SERVICES,"1,706.00",CAPITAL PS (STRAT SERV),ICT ACQUISITION,5902314115,1000009377
02.08.2018,HOUSING HRA,CALFORD SEADEN LLP,"1,272.41",CAPITAL PS (HRA),CONSTRUCTION FEES  - EXTERNAL,5902314098,1061592
02.08.2018,HOUSING HRA,CARTER JONAS LLP,"1,500.00",CAPITAL PS (HRA),LAND & BUILDINGS ACQUISITION FEES,5902314116,1000073124
02.08.2018,HOUSING HRA,CALFORD SEADEN LLP,"2,297.30",CAPITAL PS (HRA),CONSTRUCTION FEES  - EXTERNAL,5902314171,1061592
02.08.2018,HOUSING HRA,CALFORD SEADEN LLP,"2,298.10",CAPITAL PS (HRA),CONSTRUCTION FEES  - EXTERNAL,5902314178,1061592
02.08.2018,HOUSING HRA,CALFORD SEADEN LLP,"3,410.61",CAPITAL PS (HRA),CONSTRUCTION FEES  - EXTERNAL,5902314151,1061592
02.08.2018,HOUSING HRA,CALFORD SEADEN LLP,"3,410.61",CAPITAL PS (HRA),CONSTRUCTION FEES  - EXTERNAL,5902314154,1061592
02.08.2018,HOUSING HRA,AJMADAPTIONS LTD,"3,520.00",CAPITAL PS (HRA),CONST'N MAIN CONTRACT - NON CERTIFICATED,2102846421,3000002056
02.08.2018,HOUSING HRA,CALFORD SEADEN LLP,"3,857.08",CAPITAL PS (HRA),CONSTRUCTION FEES  - EXTERNAL,5902314099,1061592
02.08.2018,HOUSING HRA,CALFORD SEADEN LLP,"4,296.66",CAPITAL PS (HRA),CONSTRUCTION FEES  - EXTERNAL,5902314098,1061592
02.08.2018,HOUSING HRA,CALFORD SEADEN LLP,"4,538.44",CAPITAL PS (HRA),CONSTRUCTION FEES  - EXTERNAL,5902314163,1061592
02.08.2018,HOUSING HRA,CALFORD SEADEN LLP,"5,120.99",CAPITAL PS (HRA),CONSTRUCTION FEES  - EXTERNAL,5902314167,1061592
02.08.2018,HOUSING HRA,MICHAEL CONSTRUCTION LTD,"5,760.00",CAPITAL PS (HRA),CONST'N MAIN CONTRACT - NON CERTIFICATED,2102846417,3000001947
02.08.2018,HOUSING HRA,MICHAEL CONSTRUCTION LTD,"6,027.00",CAPITAL PS (HRA),CONST'N MAIN CONTRACT - NON CERTIFICATED,2102846418,3000001947
02.08.2018,HOUSING HRA,SPOKEMEAD MAINTENANCE LTD,"204,689.93",PAYMENTS CONTROL ACCOUNT - SPOKEMEAD,MANUAL CREDITORS,5902314092,1000059211
02.08.2018,HOUSING STRATEGY AND OPTIONS,TFL TELESALES / OYSTER FULFILMENT,535,HOMELESS & HOUSING OPTIONS MGT,PUBLIC TRANSPORT,5902314208,1000059727
02.08.2018,HOUSING STRATEGY AND OPTIONS,JAMES MARTIN MUGWANYA T/A JOHN SMITH REMOVALS,580,HOMELESS PROJECTS,EXTERNAL AGENCIES AND BODIES,5902314087,1000078552
02.08.2018,HOUSING STRATEGY AND OPTIONS,JUKES & CO (2015) LTD,"1,175.00",HOMELESS PROJECTS,GRANTS,5902314184,1000080144
02.08.2018,HOUSING STRATEGY AND OPTIONS,ORIGIN HOUSING,"1,931.00",HOMELESS PROJECTS,GRANTS,5902312917,1000081412
02.08.2018,LEISURE DIRECTORATE,M B FURNISHINGS LTD,"5,000.00",CAMBERWELL LIBRARY,BUILDING R&M,5902314228,1000081302
02.08.2018,LEISURE DIRECTORATE,EDF ENERGY PLC,785.77,CEMETERIES,ELECTRICITY,5902314097,1008746
02.08.2018,LEISURE DIRECTORATE,LEE SNASHFOLD CREMETORIA MANAGEMENT,684.6,CREMATORIUM,PROFESSIONAL FEES,5902314095,1000077845
02.08.2018,LEISURE DIRECTORATE,CITY OF LONDON LIBRARIES & ART GALLERIES,747.5,LOCAL HISTORY LIBRARY,REMOVAL EXPENSES,5902314238,1000060358
02.08.2018,LEISURE DIRECTORATE,NPOWER,-281.99,NUNHEAD LIBRARY,ELECTRICITY,5902314130,1000055441
02.08.2018,LEISURE DIRECTORATE,NPOWER,298.66,NUNHEAD LIBRARY,ELECTRICITY,5902314129,1000055441
02.08.2018,LEISURE DIRECTORATE,W F HOWES LTD,273.6,STOCK SERVICES,BOOKS & PUBLICATIONS,5902314134,1000013356
02.08.2018,LEISURE DIRECTORATE,ASKEWS & HOLTS LIBRARY SERVICES LTD,589.3,STOCK SERVICES,BOOKS & PUBLICATIONS,5902313259,1494168
02.08.2018,LEISURE DIRECTORATE,ASKEWS & HOLTS LIBRARY SERVICES LTD,"3,800.55",STOCK SERVICES,BOOKS & PUBLICATIONS,5902313261,1494168
02.08.2018,MODERNISATION HGF,BUILDING MONITORING SERVICES LTD,"1,397.51",160 TOOLEY ST.,BUILDING R&M,5902314195,1000063798
02.08.2018,MODERNISATION HGF,VODAFONE LTD,"2,756.07",TECHNOLOGY,DATA COMMUNICATIONS,5902314192,1000067176
02.08.2018,MODERNISATION HGF,COMENSURA LTD,"396,783.64",WEEKLY PAYMENTS,AGENCY STAFF,5902314270,1000051261
02.08.2018,PLANNING AND TRANSPORT,WRIGHT LANDSCAPE AND ARBORICULTURE LTD,"1,080.00",CONVERVATION,PROFESSIONAL FEES,5902314191,1000081171
02.08.2018,PLANNING AND TRANSPORT,SOUTHWARK NEWSPAPER LTD,336,DEVELOPMENT CONTROL ADMINSTRATION,MARKETING & PUBLICITY SERVICES,5902314078,1556957
02.08.2018,PROPERTY SERVICES,REED BUSINESS INFORMATION LTD,319,PROPERTY SERVICES,SUBSCRIPTIONS,5902313268,1000005640
02.08.2018,PUBLIC HEALTH,CROSSWAY UNITED REFORMED CHURCH,600,PLACE & HEALTH IMPROVEMENT,EXTERNAL AGENCIES AND BODIES,5902314223,1000058687
02.08.2018,REGENERATION,WILLIAM LICKORISH CONSULTING LTD,"1,050.00",14-20 SHAND STREET,PROFESSIONAL FEES,5902314114,1000081226
02.08.2018,REGENERATION,HTA DESIGN LLP,"1,000.00",PECKHAM/CAMBERWELL SITES-FEES/MPLAN,CONSULTANTS SERVICES,5902314124,1000074662
02.08.2018,RESIDENT SERVICES,CLEAR LAW LLP,"1,500.00",OPERATIONS/OFFICES ACCOMMODATION,LEGAL FEES & COURT COSTS,2102846391,1000073992
02.08.2018,RESIDENT SERVICES,CLEAR LAW LLP,"3,455.76",OPERATIONS/OFFICES ACCOMMODATION,LEGAL FEES & COURT COSTS,2102846392,1000073992
03.08.2018,ADULT SOCIAL CARE,REDACTED PERSONAL DATA,480,APPOINTEESHIPS,OTHER PAYMENTS FOR CLIENTS,REDACTED,REDACTED
03.08.2018,ADULT SOCIAL CARE,CAMBRIDGE HOUSE & TALBOT,"13,612.60",INDEPENDENT MC ADVOCACY,EXTERNAL AGENCIES AND BODIES,5902314359,1139414
03.08.2018,ADULT SOCIAL CARE,THE REGARD PARTNERSHIP,"-7,192.25",LD LTS 18-64,DISCRETIONARY FLEXIBLE FEES & INCOME,2102847558,1823223
03.08.2018,ADULT SOCIAL CARE,FRESH IDEAS & SOLUTIONS SERVICES CIC,"-6,731.36",LD LTS 18-64,PAYMENTS TO CLIENTS (DIRECT PAYMENTS),2102847309,1000070832
03.08.2018,ADULT SOCIAL CARE,PEOPLEPLUS ILS,"-5,582.11",LD LTS 18-64,PAYMENTS TO CLIENTS (DIRECT PAYMENTS),2102847098,1000061886
03.08.2018,ADULT SOCIAL CARE,THE REGARD PARTNERSHIP,-730.55,LD LTS 18-64,DISCRETIONARY FLEXIBLE FEES & INCOME,2102847169,1823223
03.08.2018,ADULT SOCIAL CARE,PEOPLEPLUS ILS,-297,LD LTS 18-64,PAYMENTS TO CLIENTS (DIRECT PAYMENTS),2102846562,1000061886
03.08.2018,ADULT SOCIAL CARE,PEOPLEPLUS ILS,253.68,LD LTS 18-64,PAYMENTS TO CLIENTS (DIRECT PAYMENTS),2102846628,1000061886
03.08.2018,ADULT SOCIAL CARE,PEOPLEPLUS ILS,254.68,LD LTS 18-64,PAYMENTS TO CLIENTS (DIRECT PAYMENTS),2102847353,1000061886
03.08.2018,ADULT SOCIAL CARE,BEDE HOUSE ASSOCIATION,260,LD LTS 18-64,DAYCARE,2102846678,11265073
03.08.2018,ADULT SOCIAL CARE,PEOPLEPLUS ILS,260,LD LTS 18-64,PAYMENTS TO CLIENTS (DIRECT PAYMENTS),2102847466,1000061886
03.08.2018,ADULT SOCIAL CARE,PEOPLEPLUS ILS,266,LD LTS 18-64,PAYMENTS TO CLIENTS (DIRECT PAYMENTS),2102847501,1000061886
03.08.2018,ADULT SOCIAL CARE,REDACTED PERSONAL DATA,269.6,LD LTS 18-64,PAYMENTS TO CLIENTS (DIRECT PAYMENTS),REDACTED,REDACTED
03.08.2018,ADULT SOCIAL CARE,BUDDI LTD,282,LD LTS 18-64,EXTERNAL AGENCIES AND BODIES,2102847310,1000067243
03.08.2018,ADULT SOCIAL CARE,PEOPLEPLUS ILS,288.4,LD LTS 18-64,PAYMENTS TO CLIENTS (DIRECT PAYMENTS),2102846560,1000061886
03.08.2018,ADULT SOCIAL CARE,REDACTED PERSONAL DATA,288.8,LD LTS 18-64,PAYMENTS TO CLIENTS (DIRECT PAYMENTS),REDACTED,REDACTED
03.08.2018,ADULT SOCIAL CARE,PEOPLEPLUS ILS,289.36,LD LTS 18-64,PAYMENTS TO CLIENTS (DIRECT PAYMENTS),2102846849,1000061886
03.08.2018,ADULT SOCIAL CARE,PEOPLEPLUS ILS,299.6,LD LTS 18-64,PAYMENTS TO CLIENTS (DIRECT PAYMENTS),2102846564,1000061886
03.08.2018,ADULT SOCIAL CARE,PEOPLEPLUS ILS,300,LD LTS 18-64,PAYMENTS TO CLIENTS (DIRECT PAYMENTS),2102847476,1000061886
03.08.2018,ADULT SOCIAL CARE,REDACTED PERSONAL DATA,300,LD LTS 18-64,PAYMENTS TO CLIENTS (DIRECT PAYMENTS),REDACTED,REDACTED
03.08.2018,ADULT SOCIAL CARE,REDACTED PERSONAL DATA,300,LD LTS 18-64,PAYMENTS TO CLIENTS (DIRECT PAYMENTS),REDACTED,REDACTED
03.08.2018,ADULT SOCIAL CARE,PEOPLEPLUS ILS,307.84,LD LTS 18-64,PAYMENTS TO CLIENTS (DIRECT PAYMENTS),2102846878,1000061886
03.08.2018,ADULT SOCIAL CARE,PEOPLEPLUS ILS,318,LD LTS 18-64,PAYMENTS TO CLIENTS (DIRECT PAYMENTS),2102847182,1000061886
03.08.2018,ADULT SOCIAL CARE,REDACTED PERSONAL DATA,319.52,LD LTS 18-64,PAYMENTS TO CLIENTS (DIRECT PAYMENTS),REDACTED,REDACTED
03.08.2018,ADULT SOCIAL CARE,REDACTED PERSONAL DATA,320,LD LTS 18-64,PAYMENTS TO CLIENTS (DIRECT PAYMENTS),REDACTED,REDACTED
03.08.2018,ADULT SOCIAL CARE,PEOPLEPLUS ILS,321.2,LD LTS 18-64,PAYMENTS TO CLIENTS (DIRECT PAYMENTS),2102847271,1000061886
03.08.2018,ADULT SOCIAL CARE,REDACTED PERSONAL DATA,327.2,LD LTS 18-64,PAYMENTS TO CLIENTS (DIRECT PAYMENTS),REDACTED,REDACTED
03.08.2018,ADULT SOCIAL CARE,CHOICE SUPPORT,329.2,LD LTS 18-64,SUPPORTED LIVING,2102847499,1104183
03.08.2018,ADULT SOCIAL CARE,PEOPLEPLUS ILS,329.8,LD LTS 18-64,PAYMENTS TO CLIENTS (DIRECT PAYMENTS),2102846900,1000061886
03.08.2018,ADULT SOCIAL CARE,PEOPLEPLUS ILS,334,LD LTS 18-64,PAYMENTS TO CLIENTS (DIRECT PAYMENTS),2102846902,1000061886
03.08.2018,ADULT SOCIAL CARE,PEOPLEPLUS ILS,356.92,LD LTS 18-64,PAYMENTS TO CLIENTS (DIRECT PAYMENTS),2102846787,1000061886
03.08.2018,ADULT SOCIAL CARE,AURORA OPTIONS,408,LD LTS 18-64,DAYCARE,2102847534,1000066695
03.08.2018,ADULT SOCIAL CARE,PEOPLEPLUS ILS,408.4,LD LTS 18-64,PAYMENTS TO CLIENTS (DIRECT PAYMENTS),2102847364,1000061886
03.08.2018,ADULT SOCIAL CARE,PEOPLEPLUS ILS,424,LD LTS 18-64,PAYMENTS TO CLIENTS (DIRECT PAYMENTS),2102846754,1000061886
03.08.2018,ADULT SOCIAL CARE,PEOPLEPLUS ILS,424.8,LD LTS 18-64,PAYMENTS TO CLIENTS (DIRECT PAYMENTS),2102847167,1000061886
03.08.2018,ADULT SOCIAL CARE,PEOPLEPLUS ILS,440,LD LTS 18-64,PAYMENTS TO CLIENTS (DIRECT PAYMENTS),2102846750,1000061886
03.08.2018,ADULT SOCIAL CARE,PEOPLEPLUS ILS,450,LD LTS 18-64,PAYMENTS TO CLIENTS (DIRECT PAYMENTS),2102847231,1000061886
03.08.2018,ADULT SOCIAL CARE,CHOICE SUPPORT,464.8,LD LTS 18-64,SUPPORTED LIVING,2102846809,1104183
03.08.2018,ADULT SOCIAL CARE,PEOPLEPLUS ILS,475.2,LD LTS 18-64,PAYMENTS TO CLIENTS (DIRECT PAYMENTS),2102847018,1000061886
03.08.2018,ADULT SOCIAL CARE,CHOICE SUPPORT,480,LD LTS 18-64,SUPPORTED LIVING,2102847172,1104183
03.08.2018,ADULT SOCIAL CARE,REDACTED PERSONAL DATA,480,LD LTS 18-64,PAYMENTS TO CLIENTS (DIRECT PAYMENTS),REDACTED,REDACTED
03.08.2018,ADULT SOCIAL CARE,REDACTED PERSONAL DATA,484.32,LD LTS 18-64,PAYMENTS TO CLIENTS (DIRECT PAYMENTS),REDACTED,REDACTED
03.08.2018,ADULT SOCIAL CARE,PEOPLEPLUS ILS,486.52,LD LTS 18-64,PAYMENTS TO CLIENTS (DIRECT PAYMENTS),2102846568,1000061886
03.08.2018,ADULT SOCIAL CARE,PEOPLEPLUS ILS,493.36,LD LTS 18-64,PAYMENTS TO CLIENTS (DIRECT PAYMENTS),2102846999,1000061886
03.08.2018,ADULT SOCIAL CARE,CHOICE SUPPORT,493.92,LD LTS 18-64,SUPPORTED LIVING,2102846740,1104183
03.08.2018,ADULT SOCIAL CARE,PEOPLEPLUS ILS,502.12,LD LTS 18-64,PAYMENTS TO CLIENTS (DIRECT PAYMENTS),2102846977,1000061886
03.08.2018,ADULT SOCIAL CARE,PEOPLEPLUS ILS,513.36,LD LTS 18-64,PAYMENTS TO CLIENTS (DIRECT PAYMENTS),2102846888,1000061886
03.08.2018,ADULT SOCIAL CARE,PEOPLEPLUS ILS,520.88,LD LTS 18-64,PAYMENTS TO CLIENTS (DIRECT PAYMENTS),2102847248,1000061886
03.08.2018,ADULT SOCIAL CARE,REDACTED PERSONAL DATA,522.6,LD LTS 18-64,PAYMENTS TO CLIENTS (DIRECT PAYMENTS),REDACTED,REDACTED
03.08.2018,ADULT SOCIAL CARE,PEOPLEPLUS ILS,528.32,LD LTS 18-64,PAYMENTS TO CLIENTS (DIRECT PAYMENTS),2102846909,1000061886
03.08.2018,ADULT SOCIAL CARE,REDACTED PERSONAL DATA,569.12,LD LTS 18-64,PAYMENTS TO CLIENTS (DIRECT PAYMENTS),REDACTED,REDACTED
03.08.2018,ADULT SOCIAL CARE,PEOPLEPLUS ILS,578,LD LTS 18-64,PAYMENTS TO CLIENTS (DIRECT PAYMENTS),2102847316,1000061886
03.08.2018,ADULT SOCIAL CARE,PEOPLEPLUS ILS,579.12,LD LTS 18-64,PAYMENTS TO CLIENTS (DIRECT PAYMENTS),2102847339,1000061886
03.08.2018,ADULT SOCIAL CARE,PEOPLEPLUS ILS,590,LD LTS 18-64,PAYMENTS TO CLIENTS (DIRECT PAYMENTS),2102846882,1000061886
03.08.2018,ADULT SOCIAL CARE,CHOICE SUPPORT,592.44,LD LTS 18-64,SUPPORTED LIVING,2102846718,1104183
03.08.2018,ADULT SOCIAL CARE,REDACTED PERSONAL DATA,594.4,LD LTS 18-64,PAYMENTS TO CLIENTS (DIRECT PAYMENTS),REDACTED,REDACTED
03.08.2018,ADULT SOCIAL CARE,CHOICE SUPPORT,617.24,LD LTS 18-64,SUPPORTED LIVING,2102847076,1104183
03.08.2018,ADULT SOCIAL CARE,PEOPLEPLUS ILS,633.2,LD LTS 18-64,PAYMENTS TO CLIENTS (DIRECT PAYMENTS),2102846860,1000061886
03.08.2018,ADULT SOCIAL CARE,PEOPLEPLUS ILS,633.2,LD LTS 18-64,PAYMENTS TO CLIENTS (DIRECT PAYMENTS),2102847184,1000061886
03.08.2018,ADULT SOCIAL CARE,CHOICE SUPPORT,658.4,LD LTS 18-64,SUPPORTED LIVING,2102846872,1104183
03.08.2018,ADULT SOCIAL CARE,CHOICE SUPPORT,661.32,LD LTS 18-64,SUPPORTED LIVING,2102846674,1104183
03.08.2018,ADULT SOCIAL CARE,PEOPLEPLUS ILS,670,LD LTS 18-64,PAYMENTS TO CLIENTS (DIRECT PAYMENTS),2102846997,1000061886
03.08.2018,ADULT SOCIAL CARE,PEOPLEPLUS ILS,679.2,LD LTS 18-64,PAYMENTS TO CLIENTS (DIRECT PAYMENTS),2102846845,1000061886
03.08.2018,ADULT SOCIAL CARE,PEOPLEPLUS ILS,680,LD LTS 18-64,PAYMENTS TO CLIENTS (DIRECT PAYMENTS),2102847306,1000061886
03.08.2018,ADULT SOCIAL CARE,CHOICE SUPPORT,705.6,LD LTS 18-64,SUPPORTED LIVING,2102847137,1104183
03.08.2018,ADULT SOCIAL CARE,PEOPLEPLUS ILS,712.4,LD LTS 18-64,PAYMENTS TO CLIENTS (DIRECT PAYMENTS),2102847557,1000061886
03.08.2018,ADULT SOCIAL CARE,REDACTED PERSONAL DATA,718,LD LTS 18-64,PAYMENTS TO CLIENTS (DIRECT PAYMENTS),REDACTED,REDACTED
03.08.2018,ADULT SOCIAL CARE,PEOPLEPLUS ILS,722.4,LD LTS 18-64,PAYMENTS TO CLIENTS (DIRECT PAYMENTS),2102846762,1000061886
03.08.2018,ADULT SOCIAL CARE,CHOICE SUPPORT,733.48,LD LTS 18-64,SUPPORTED LIVING,2102847422,1104183
03.08.2018,ADULT SOCIAL CARE,REDACTED PERSONAL DATA,738,LD LTS 18-64,PAYMENTS TO CLIENTS (DIRECT PAYMENTS),REDACTED,REDACTED
03.08.2018,ADULT SOCIAL CARE,PEOPLEPLUS ILS,743.04,LD LTS 18-64,PAYMENTS TO CLIENTS (DIRECT PAYMENTS),2102847373,1000061886
03.08.2018,ADULT SOCIAL CARE,PEOPLEPLUS ILS,753.04,LD LTS 18-64,PAYMENTS TO CLIENTS (DIRECT PAYMENTS),2102846734,1000061886
03.08.2018,ADULT SOCIAL CARE,PEOPLEPLUS ILS,754,LD LTS 18-64,PAYMENTS TO CLIENTS (DIRECT PAYMENTS),2102846789,1000061886
03.08.2018,ADULT SOCIAL CARE,PEOPLEPLUS ILS,754.8,LD LTS 18-64,PAYMENTS TO CLIENTS (DIRECT PAYMENTS),2102846934,1000061886
03.08.2018,ADULT SOCIAL CARE,PEOPLEPLUS ILS,758.72,LD LTS 18-64,PAYMENTS TO CLIENTS (DIRECT PAYMENTS),2102847176,1000061886
03.08.2018,ADULT SOCIAL CARE,PEOPLEPLUS ILS,794,LD LTS 18-64,PAYMENTS TO CLIENTS (DIRECT PAYMENTS),2102847185,1000061886
03.08.2018,ADULT SOCIAL CARE,PEOPLEPLUS ILS,794,LD LTS 18-64,PAYMENTS TO CLIENTS (DIRECT PAYMENTS),2102847386,1000061886
03.08.2018,ADULT SOCIAL CARE,PEOPLEPLUS ILS,813.36,LD LTS 18-64,PAYMENTS TO CLIENTS (DIRECT PAYMENTS),2102846967,1000061886
03.08.2018,ADULT SOCIAL CARE,PEOPLEPLUS ILS,819.84,LD LTS 18-64,PAYMENTS TO CLIENTS (DIRECT PAYMENTS),2102847296,1000061886
03.08.2018,ADULT SOCIAL CARE,PEOPLEPLUS ILS,826,LD LTS 18-64,PAYMENTS TO CLIENTS (DIRECT PAYMENTS),2102847366,1000061886
03.08.2018,ADULT SOCIAL CARE,PEOPLEPLUS ILS,860,LD LTS 18-64,PAYMENTS TO CLIENTS (DIRECT PAYMENTS),2102847446,1000061886
03.08.2018,ADULT SOCIAL CARE,PEOPLEPLUS ILS,862.64,LD LTS 18-64,PAYMENTS TO CLIENTS (DIRECT PAYMENTS),2102846604,1000061886
03.08.2018,ADULT SOCIAL CARE,PEOPLEPLUS ILS,875.6,LD LTS 18-64,PAYMENTS TO CLIENTS (DIRECT PAYMENTS),2102846794,1000061886
03.08.2018,ADULT SOCIAL CARE,FRESH IDEAS & SOLUTIONS SERVICES CIC,875.6,LD LTS 18-64,PAYMENTS TO CLIENTS (DIRECT PAYMENTS),2102847203,1000070832
03.08.2018,ADULT SOCIAL CARE,PEOPLEPLUS ILS,876.92,LD LTS 18-64,PAYMENTS TO CLIENTS (DIRECT PAYMENTS),2102847230,1000061886
03.08.2018,ADULT SOCIAL CARE,FRESH IDEAS & SOLUTIONS SERVICES CIC,895.6,LD LTS 18-64,PAYMENTS TO CLIENTS (DIRECT PAYMENTS),2102846748,1000070832
03.08.2018,ADULT SOCIAL CARE,ZETETICK HOUSING,904.4,LD LTS 18-64,SUPPORTED LIVING,2102846682,1000072236
03.08.2018,ADULT SOCIAL CARE,ZETETICK HOUSING,904.4,LD LTS 18-64,SUPPORTED LIVING,2102846961,1000072236
03.08.2018,ADULT SOCIAL CARE,ZETETICK HOUSING,904.4,LD LTS 18-64,SUPPORTED LIVING,2102847317,1000072236
03.08.2018,ADULT SOCIAL CARE,ZETETICK HOUSING,904.4,LD LTS 18-64,SUPPORTED LIVING,2102847586,1000072236
03.08.2018,ADULT SOCIAL CARE,PEOPLEPLUS ILS,918,LD LTS 18-64,PAYMENTS TO CLIENTS (DIRECT PAYMENTS),2102847239,1000061886
03.08.2018,ADULT SOCIAL CARE,PEOPLEPLUS ILS,932.8,LD LTS 18-64,PAYMENTS TO CLIENTS (DIRECT PAYMENTS),2102847221,1000061886
03.08.2018,ADULT SOCIAL CARE,PEOPLEPLUS ILS,934,LD LTS 18-64,PAYMENTS TO CLIENTS (DIRECT PAYMENTS),2102846783,1000061886
03.08.2018,ADULT SOCIAL CARE,REDACTED PERSONAL DATA,956.16,LD LTS 18-64,PAYMENTS TO CLIENTS (DIRECT PAYMENTS),REDACTED,REDACTED
03.08.2018,ADULT SOCIAL CARE,PEOPLEPLUS ILS,957.2,LD LTS 18-64,PAYMENTS TO CLIENTS (DIRECT PAYMENTS),2102847120,1000061886
03.08.2018,ADULT SOCIAL CARE,PEOPLEPLUS ILS,968,LD LTS 18-64,PAYMENTS TO CLIENTS (DIRECT PAYMENTS),2102847355,1000061886
03.08.2018,ADULT SOCIAL CARE,REDACTED PERSONAL DATA,"1,019.44",LD LTS 18-64,PAYMENTS TO CLIENTS (DIRECT PAYMENTS),REDACTED,REDACTED
03.08.2018,ADULT SOCIAL CARE,FRESH IDEAS & SOLUTIONS SERVICES CIC,"1,019.52",LD LTS 18-64,PAYMENTS TO CLIENTS (DIRECT PAYMENTS),2102847054,1000070832
03.08.2018,ADULT SOCIAL CARE,REDACTED PERSONAL DATA,"1,025.20",LD LTS 18-64,PAYMENTS TO CLIENTS (DIRECT PAYMENTS),REDACTED,REDACTED
03.08.2018,ADULT SOCIAL CARE,REDACTED PERSONAL DATA,"1,032.16",LD LTS 18-64,SUPPORTED LIVING,REDACTED,REDACTED
03.08.2018,ADULT SOCIAL CARE,REDACTED PERSONAL DATA,"1,036.24",LD LTS 18-64,PAYMENTS TO CLIENTS (DIRECT PAYMENTS),REDACTED,REDACTED
03.08.2018,ADULT SOCIAL CARE,PEOPLEPLUS ILS,"1,052.00",LD LTS 18-64,PAYMENTS TO CLIENTS (DIRECT PAYMENTS),2102847175,1000061886
03.08.2018,ADULT SOCIAL CARE,PEOPLEPLUS ILS,"1,054.00",LD LTS 18-64,PAYMENTS TO CLIENTS (DIRECT PAYMENTS),2102846786,1000061886
03.08.2018,ADULT SOCIAL CARE,PEOPLEPLUS ILS,"1,056.00",LD LTS 18-64,PAYMENTS TO CLIENTS (DIRECT PAYMENTS),2102847457,1000061886
03.08.2018,ADULT SOCIAL CARE,FRESH IDEAS & SOLUTIONS SERVICES CIC,"1,067.12",LD LTS 18-64,PAYMENTS TO CLIENTS (DIRECT PAYMENTS),2102847083,1000070832
03.08.2018,ADULT SOCIAL CARE,PEOPLEPLUS ILS,"1,069.36",LD LTS 18-64,PAYMENTS TO CLIENTS (DIRECT PAYMENTS),2102847367,1000061886
03.08.2018,ADULT SOCIAL CARE,PEOPLEPLUS ILS,"1,072.72",LD LTS 18-64,PAYMENTS TO CLIENTS (DIRECT PAYMENTS),2102846926,1000061886
03.08.2018,ADULT SOCIAL CARE,PEOPLEPLUS ILS,"1,072.80",LD LTS 18-64,PAYMENTS TO CLIENTS (DIRECT PAYMENTS),2102847583,1000061886
03.08.2018,ADULT SOCIAL CARE,PEOPLEPLUS ILS,"1,171.28",LD LTS 18-64,PAYMENTS TO CLIENTS (DIRECT PAYMENTS),2102846863,1000061886
03.08.2018,ADULT SOCIAL CARE,PEOPLEPLUS ILS,"1,172.48",LD LTS 18-64,PAYMENTS TO CLIENTS (DIRECT PAYMENTS),2102847429,1000061886
03.08.2018,ADULT SOCIAL CARE,PEOPLEPLUS ILS,"1,192.64",LD LTS 18-64,PAYMENTS TO CLIENTS (DIRECT PAYMENTS),2102846887,1000061886
03.08.2018,ADULT SOCIAL CARE,REDACTED PERSONAL DATA,"1,197.96",LD LTS 18-64,PAYMENTS TO CLIENTS (DIRECT PAYMENTS),REDACTED,REDACTED
03.08.2018,ADULT SOCIAL CARE,REDACTED PERSONAL DATA,"1,200.00",LD LTS 18-64,PAYMENTS TO CLIENTS (DIRECT PAYMENTS),REDACTED,REDACTED
03.08.2018,ADULT SOCIAL CARE,PEOPLEPLUS ILS,"1,235.68",LD LTS 18-64,PAYMENTS TO CLIENTS (DIRECT PAYMENTS),2102847396,1000061886
03.08.2018,ADULT SOCIAL CARE,PEOPLEPLUS ILS,"1,239.04",LD LTS 18-64,PAYMENTS TO CLIENTS (DIRECT PAYMENTS),2102847009,1000061886
03.08.2018,ADULT SOCIAL CARE,PEOPLEPLUS ILS,"1,274.60",LD LTS 18-64,PAYMENTS TO CLIENTS (DIRECT PAYMENTS),2102846588,1000061886
03.08.2018,ADULT SOCIAL CARE,REDACTED PERSONAL DATA,"1,290.16",LD LTS 18-64,PAYMENTS TO CLIENTS (DIRECT PAYMENTS),REDACTED,REDACTED
03.08.2018,ADULT SOCIAL CARE,REDACTED PERSONAL DATA,"1,293.44",LD LTS 18-64,PAYMENTS TO CLIENTS (DIRECT PAYMENTS),REDACTED,REDACTED
03.08.2018,ADULT SOCIAL CARE,PEOPLEPLUS ILS,"1,319.24",LD LTS 18-64,PAYMENTS TO CLIENTS (DIRECT PAYMENTS),2102847014,1000061886
03.08.2018,ADULT SOCIAL CARE,PEOPLEPLUS ILS,"1,324.40",LD LTS 18-64,PAYMENTS TO CLIENTS (DIRECT PAYMENTS),2102847148,1000061886
03.08.2018,ADULT SOCIAL CARE,REDACTED PERSONAL DATA,"1,328.00",LD LTS 18-64,PAYMENTS TO CLIENTS (DIRECT PAYMENTS),REDACTED,REDACTED
03.08.2018,ADULT SOCIAL CARE,REDACTED PERSONAL DATA,"1,332.40",LD LTS 18-64,PAYMENTS TO CLIENTS (DIRECT PAYMENTS),REDACTED,REDACTED
03.08.2018,ADULT SOCIAL CARE,REDACTED PERSONAL DATA,"1,338.04",LD LTS 18-64,PAYMENTS TO CLIENTS (DIRECT PAYMENTS),REDACTED,REDACTED
03.08.2018,ADULT SOCIAL CARE,CHOICE SUPPORT,"1,341.48",LD LTS 18-64,SUPPORTED LIVING,2102846814,1104183
03.08.2018,ADULT SOCIAL CARE,REDACTED PERSONAL DATA,"1,368.32",LD LTS 18-64,PAYMENTS TO CLIENTS (DIRECT PAYMENTS),REDACTED,REDACTED
03.08.2018,ADULT SOCIAL CARE,CHOICE SUPPORT,"1,374.40",LD LTS 18-64,SUPPORTED LIVING,2102846941,1104183
03.08.2018,ADULT SOCIAL CARE,PEOPLEPLUS ILS,"1,375.56",LD LTS 18-64,PAYMENTS TO CLIENTS (DIRECT PAYMENTS),2102847463,1000061886
03.08.2018,ADULT SOCIAL CARE,REDACTED PERSONAL DATA,"1,400.00",LD LTS 18-64,PAYMENTS TO CLIENTS (DIRECT PAYMENTS),REDACTED,REDACTED
03.08.2018,ADULT SOCIAL CARE,REDACTED PERSONAL DATA,"1,420.12",LD LTS 18-64,PAYMENTS TO CLIENTS (DIRECT PAYMENTS),REDACTED,REDACTED
03.08.2018,ADULT SOCIAL CARE,PEOPLEPLUS ILS,"1,430.96",LD LTS 18-64,PAYMENTS TO CLIENTS (DIRECT PAYMENTS),2102847241,1000061886
03.08.2018,ADULT SOCIAL CARE,PEOPLEPLUS ILS,"1,438.80",LD LTS 18-64,PAYMENTS TO CLIENTS (DIRECT PAYMENTS),2102846972,1000061886
03.08.2018,ADULT SOCIAL CARE,REDACTED PERSONAL DATA,"1,443.00",LD LTS 18-64,PAYMENTS TO CLIENTS (DIRECT PAYMENTS),REDACTED,REDACTED
03.08.2018,ADULT SOCIAL CARE,FRESH IDEAS & SOLUTIONS SERVICES CIC,"1,464.32",LD LTS 18-64,PAYMENTS TO CLIENTS (DIRECT PAYMENTS),2102846933,1000070832
03.08.2018,ADULT SOCIAL CARE,PEOPLEPLUS ILS,"1,471.60",LD LTS 18-64,PAYMENTS TO CLIENTS (DIRECT PAYMENTS),2102847430,1000061886
03.08.2018,ADULT SOCIAL CARE,PEOPLEPLUS ILS,"1,474.96",LD LTS 18-64,PAYMENTS TO CLIENTS (DIRECT PAYMENTS),2102846556,1000061886
03.08.2018,ADULT SOCIAL CARE,PEOPLEPLUS ILS,"1,475.84",LD LTS 18-64,PAYMENTS TO CLIENTS (DIRECT PAYMENTS),2102847403,1000061886
03.08.2018,ADULT SOCIAL CARE,PEOPLEPLUS ILS,"1,480.20",LD LTS 18-64,PAYMENTS TO CLIENTS (DIRECT PAYMENTS),2102847288,1000061886
03.08.2018,ADULT SOCIAL CARE,REDACTED PERSONAL DATA,"1,483.00",LD LTS 18-64,PAYMENTS TO CLIENTS (DIRECT PAYMENTS),REDACTED,REDACTED
03.08.2018,ADULT SOCIAL CARE,PEOPLEPLUS ILS,"1,529.52",LD LTS 18-64,PAYMENTS TO CLIENTS (DIRECT PAYMENTS),2102846680,1000061886
03.08.2018,ADULT SOCIAL CARE,REDACTED PERSONAL DATA,"1,532.68",LD LTS 18-64,PAYMENTS TO CLIENTS (DIRECT PAYMENTS),REDACTED,REDACTED
03.08.2018,ADULT SOCIAL CARE,REDACTED PERSONAL DATA,"1,532.92",LD LTS 18-64,PAYMENTS TO CLIENTS (DIRECT PAYMENTS),REDACTED,REDACTED
03.08.2018,ADULT SOCIAL CARE,REDACTED PERSONAL DATA,"1,545.48",LD LTS 18-64,PAYMENTS TO CLIENTS (DIRECT PAYMENTS),REDACTED,REDACTED
03.08.2018,ADULT SOCIAL CARE,CHOICE SUPPORT,"1,579.84",LD LTS 18-64,SUPPORTED LIVING,2102847145,1104183
03.08.2018,ADULT SOCIAL CARE,PEOPLEPLUS ILS,"1,617.28",LD LTS 18-64,PAYMENTS TO CLIENTS (DIRECT PAYMENTS),2102846856,1000061886
03.08.2018,ADULT SOCIAL CARE,REDACTED PERSONAL DATA,"1,640.00",LD LTS 18-64,SUPPORTED LIVING,REDACTED,REDACTED
03.08.2018,ADULT SOCIAL CARE,PEOPLEPLUS ILS,"1,659.04",LD LTS 18-64,PAYMENTS TO CLIENTS (DIRECT PAYMENTS),2102846757,1000061886
03.08.2018,ADULT SOCIAL CARE,REDACTED PERSONAL DATA,"1,672.00",LD LTS 18-64,PAYMENTS TO CLIENTS (DIRECT PAYMENTS),REDACTED,REDACTED
03.08.2018,ADULT SOCIAL CARE,PEOPLEPLUS ILS,"1,690.24",LD LTS 18-64,PAYMENTS TO CLIENTS (DIRECT PAYMENTS),2102846776,1000061886
03.08.2018,ADULT SOCIAL CARE,PEOPLEPLUS ILS,"1,696.32",LD LTS 18-64,PAYMENTS TO CLIENTS (DIRECT PAYMENTS),2102847342,1000061886
03.08.2018,ADULT SOCIAL CARE,PEOPLEPLUS ILS,"1,714.00",LD LTS 18-64,PAYMENTS TO CLIENTS (DIRECT PAYMENTS),2102846895,1000061886
03.08.2018,ADULT SOCIAL CARE,REDACTED PERSONAL DATA,"1,743.20",LD LTS 18-64,PAYMENTS TO CLIENTS (DIRECT PAYMENTS),REDACTED,REDACTED
03.08.2018,ADULT SOCIAL CARE,REDACTED PERSONAL DATA,"1,746.16",LD LTS 18-64,PAYMENTS TO CLIENTS (DIRECT PAYMENTS),REDACTED,REDACTED
03.08.2018,ADULT SOCIAL CARE,PEOPLEPLUS ILS,"1,756.76",LD LTS 18-64,PAYMENTS TO CLIENTS (DIRECT PAYMENTS),2102846706,1000061886
03.08.2018,ADULT SOCIAL CARE,GRANGE FARM COMPLEX,"1,778.36",LD LTS 18-64,SUPPORTED LIVING,2102846624,11086081
03.08.2018,ADULT SOCIAL CARE,REDACTED PERSONAL DATA,"1,790.40",LD LTS 18-64,PAYMENTS TO CLIENTS (DIRECT PAYMENTS),REDACTED,REDACTED
03.08.2018,ADULT SOCIAL CARE,PEOPLEPLUS ILS,"1,797.04",LD LTS 18-64,PAYMENTS TO CLIENTS (DIRECT PAYMENTS),2102846687,1000061886
03.08.2018,ADULT SOCIAL CARE,PEOPLEPLUS ILS,"1,799.48",LD LTS 18-64,PAYMENTS TO CLIENTS (DIRECT PAYMENTS),2102847240,1000061886
03.08.2018,ADULT SOCIAL CARE,PEOPLEPLUS ILS,"1,811.28",LD LTS 18-64,PAYMENTS TO CLIENTS (DIRECT PAYMENTS),2102846654,1000061886
03.08.2018,ADULT SOCIAL CARE,REDACTED PERSONAL DATA,"1,811.76",LD LTS 18-64,PAYMENTS TO CLIENTS (DIRECT PAYMENTS),REDACTED,REDACTED
03.08.2018,ADULT SOCIAL CARE,PEOPLEPLUS ILS,"1,818.56",LD LTS 18-64,PAYMENTS TO CLIENTS (DIRECT PAYMENTS),2102847125,1000061886
03.08.2018,ADULT SOCIAL CARE,PEOPLEPLUS ILS,"1,824.68",LD LTS 18-64,PAYMENTS TO CLIENTS (DIRECT PAYMENTS),2102846650,1000061886
03.08.2018,ADULT SOCIAL CARE,FRESH IDEAS & SOLUTIONS SERVICES CIC,"1,848.00",LD LTS 18-64,PAYMENTS TO CLIENTS (DIRECT PAYMENTS),2102847538,1000070832
03.08.2018,ADULT SOCIAL CARE,PEOPLEPLUS ILS,"1,862.00",LD LTS 18-64,PAYMENTS TO CLIENTS (DIRECT PAYMENTS),2102847127,1000061886
03.08.2018,ADULT SOCIAL CARE,REDACTED PERSONAL DATA,"1,864.16",LD LTS 18-64,PAYMENTS TO CLIENTS (DIRECT PAYMENTS),REDACTED,REDACTED
03.08.2018,ADULT SOCIAL CARE,PEOPLEPLUS ILS,"1,888.28",LD LTS 18-64,PAYMENTS TO CLIENTS (DIRECT PAYMENTS),2102846995,1000061886
03.08.2018,ADULT SOCIAL CARE,REDACTED PERSONAL DATA,"1,895.44",LD LTS 18-64,SUPPORTED LIVING,REDACTED,REDACTED
03.08.2018,ADULT SOCIAL CARE,PEOPLEPLUS ILS,"1,911.52",LD LTS 18-64,PAYMENTS TO CLIENTS (DIRECT PAYMENTS),2102847520,1000061886
03.08.2018,ADULT SOCIAL CARE,PEOPLEPLUS ILS,"1,950.96",LD LTS 18-64,PAYMENTS TO CLIENTS (DIRECT PAYMENTS),2102846885,1000061886
03.08.2018,ADULT SOCIAL CARE,CHOICE SUPPORT,"1,976.00",LD LTS 18-64,SUPPORTED LIVING,2102846955,1104183
03.08.2018,ADULT SOCIAL CARE,CHOICE SUPPORT,"1,976.00",LD LTS 18-64,SUPPORTED LIVING,2102847514,1104183
03.08.2018,ADULT SOCIAL CARE,PEOPLEPLUS ILS,"2,011.40",LD LTS 18-64,PAYMENTS TO CLIENTS (DIRECT PAYMENTS),2102847224,1000061886
03.08.2018,ADULT SOCIAL CARE,REDACTED PERSONAL DATA,"2,020.00",LD LTS 18-64,PAYMENTS TO CLIENTS (DIRECT PAYMENTS),REDACTED,REDACTED
03.08.2018,ADULT SOCIAL CARE,PEOPLEPLUS ILS,"2,090.00",LD LTS 18-64,PAYMENTS TO CLIENTS (DIRECT PAYMENTS),2102846832,1000061886
03.08.2018,ADULT SOCIAL CARE,PEOPLEPLUS ILS,"2,097.56",LD LTS 18-64,PAYMENTS TO CLIENTS (DIRECT PAYMENTS),2102846677,1000061886
03.08.2018,ADULT SOCIAL CARE,CHOICE SUPPORT,"2,111.28",LD LTS 18-64,SUPPORTED LIVING,2102847050,1104183
03.08.2018,ADULT SOCIAL CARE,REDACTED PERSONAL DATA,"2,116.00",LD LTS 18-64,PAYMENTS TO CLIENTS (DIRECT PAYMENTS),REDACTED,REDACTED
03.08.2018,ADULT SOCIAL CARE,REDACTED PERSONAL DATA,"2,118.00",LD LTS 18-64,PAYMENTS TO CLIENTS (DIRECT PAYMENTS),REDACTED,REDACTED
03.08.2018,ADULT SOCIAL CARE,REDACTED PERSONAL DATA,"2,158.60",LD LTS 18-64,PAYMENTS TO CLIENTS (DIRECT PAYMENTS),REDACTED,REDACTED
03.08.2018,ADULT SOCIAL CARE,CHOICE SUPPORT,"2,234.48",LD LTS 18-64,SUPPORTED LIVING,2102846769,1104183
03.08.2018,ADULT SOCIAL CARE,CHOICE SUPPORT,"2,238.56",LD LTS 18-64,SUPPORTED LIVING,2102846670,1104183
03.08.2018,ADULT SOCIAL CARE,PEOPLEPLUS ILS,"2,268.84",LD LTS 18-64,PAYMENTS TO CLIENTS (DIRECT PAYMENTS),2102846805,1000061886
03.08.2018,ADULT SOCIAL CARE,PEOPLEPLUS ILS,"2,312.40",LD LTS 18-64,PAYMENTS TO CLIENTS (DIRECT PAYMENTS),2102846829,1000061886
03.08.2018,ADULT SOCIAL CARE,REDACTED PERSONAL DATA,"2,314.20",LD LTS 18-64,SUPPORTED LIVING,REDACTED,REDACTED
03.08.2018,ADULT SOCIAL CARE,REDACTED PERSONAL DATA,"2,317.60",LD LTS 18-64,PAYMENTS TO CLIENTS (DIRECT PAYMENTS),REDACTED,REDACTED
03.08.2018,ADULT SOCIAL CARE,PEOPLEPLUS ILS,"2,327.60",LD LTS 18-64,PAYMENTS TO CLIENTS (DIRECT PAYMENTS),2102846959,1000061886
03.08.2018,ADULT SOCIAL CARE,PEOPLEPLUS ILS,"2,332.00",LD LTS 18-64,PAYMENTS TO CLIENTS (DIRECT PAYMENTS),2102847217,1000061886
03.08.2018,ADULT SOCIAL CARE,PEOPLEPLUS ILS,"2,447.76",LD LTS 18-64,PAYMENTS TO CLIENTS (DIRECT PAYMENTS),2102847012,1000061886
03.08.2018,ADULT SOCIAL CARE,REDACTED PERSONAL DATA,"2,460.92",LD LTS 18-64,SUPPORTED LIVING,REDACTED,REDACTED
03.08.2018,ADULT SOCIAL CARE,PEOPLEPLUS ILS,"2,490.00",LD LTS 18-64,PAYMENTS TO CLIENTS (DIRECT PAYMENTS),2102847199,1000061886
03.08.2018,ADULT SOCIAL CARE,PEOPLEPLUS ILS,"2,494.00",LD LTS 18-64,PAYMENTS TO CLIENTS (DIRECT PAYMENTS),2102846550,1000061886
03.08.2018,ADULT SOCIAL CARE,CHOICE SUPPORT,"2,496.00",LD LTS 18-64,SUPPORTED LIVING,2102847331,1104183
03.08.2018,ADULT SOCIAL CARE,PEOPLEPLUS ILS,"2,600.08",LD LTS 18-64,PAYMENTS TO CLIENTS (DIRECT PAYMENTS),2102847445,1000061886
03.08.2018,ADULT SOCIAL CARE,BRANDON TRUST,"2,639.32",LD LTS 18-64,SUPPORTED LIVING,2102847461,1000042417
03.08.2018,ADULT SOCIAL CARE,REDACTED PERSONAL DATA,"2,660.20",LD LTS 18-64,PAYMENTS TO CLIENTS (DIRECT PAYMENTS),REDACTED,REDACTED
03.08.2018,ADULT SOCIAL CARE,BRANDON TRUST,"2,672.88",LD LTS 18-64,SUPPORTED LIVING,2102847346,1000042417
03.08.2018,ADULT SOCIAL CARE,CHOICE SUPPORT,"2,696.00",LD LTS 18-64,SUPPORTED LIVING,2102847486,1104183
03.08.2018,ADULT SOCIAL CARE,REDACTED PERSONAL DATA,"2,704.32",LD LTS 18-64,PAYMENTS TO CLIENTS (DIRECT PAYMENTS),REDACTED,REDACTED
03.08.2018,ADULT SOCIAL CARE,PEOPLEPLUS ILS,"2,733.64",LD LTS 18-64,PAYMENTS TO CLIENTS (DIRECT PAYMENTS),2102847017,1000061886
03.08.2018,ADULT SOCIAL CARE,REDACTED PERSONAL DATA,"2,736.00",LD LTS 18-64,PAYMENTS TO CLIENTS (DIRECT PAYMENTS),REDACTED,REDACTED
03.08.2018,ADULT SOCIAL CARE,CHOICE SUPPORT,"2,770.28",LD LTS 18-64,SUPPORTED LIVING,2102846850,1104183
03.08.2018,ADULT SOCIAL CARE,BRANDON TRUST,"2,773.56",LD LTS 18-64,SUPPORTED LIVING,2102847524,1000042417
03.08.2018,ADULT SOCIAL CARE,AURORA OPTIONS,"2,855.16",LD LTS 18-64,SUPPORTED LIVING,2102846880,1000066695
03.08.2018,ADULT SOCIAL CARE,AURORA OPTIONS,"2,855.16",LD LTS 18-64,SUPPORTED LIVING,2102847093,1000066695
03.08.2018,ADULT SOCIAL CARE,AURORA OPTIONS,"2,855.16",LD LTS 18-64,SUPPORTED LIVING,2102847507,1000066695
03.08.2018,ADULT SOCIAL CARE,PEOPLEPLUS ILS,"2,906.00",LD LTS 18-64,PAYMENTS TO CLIENTS (DIRECT PAYMENTS),2102847044,1000061886
03.08.2018,ADULT SOCIAL CARE,PEOPLEPLUS ILS,"2,918.00",LD LTS 18-64,PAYMENTS TO CLIENTS (DIRECT PAYMENTS),2102846877,1000061886
03.08.2018,ADULT SOCIAL CARE,THE REGARD PARTNERSHIP,"2,920.96",LD LTS 18-64,SUPPORTED LIVING,2102847588,1823223
03.08.2018,ADULT SOCIAL CARE,PEOPLEPLUS ILS,"2,946.20",LD LTS 18-64,PAYMENTS TO CLIENTS (DIRECT PAYMENTS),2102846879,1000061886
03.08.2018,ADULT SOCIAL CARE,CHOICE SUPPORT,"2,971.84",LD LTS 18-64,SUPPORTED LIVING,2102847116,1104183
03.08.2018,ADULT SOCIAL CARE,AURORA OPTIONS,"2,972.36",LD LTS 18-64,SUPPORTED LIVING,2102846626,1000066695
03.08.2018,ADULT SOCIAL CARE,FRONTIER SUPPORT SERVICES LTD,"2,998.20",LD LTS 18-64,SUPPORTED LIVING,2102847156,1000072241
03.08.2018,ADULT SOCIAL CARE,BRANDON TRUST,"3,004.08",LD LTS 18-64,SUPPORTED LIVING,2102847360,1000042417
03.08.2018,ADULT SOCIAL CARE,CHOICE SUPPORT,"3,074.36",LD LTS 18-64,SUPPORTED LIVING,2102847333,1104183
03.08.2018,ADULT SOCIAL CARE,REDACTED PERSONAL DATA,"3,118.08",LD LTS 18-64,PAYMENTS TO CLIENTS (DIRECT PAYMENTS),REDACTED,REDACTED
03.08.2018,ADULT SOCIAL CARE,BRANDON TRUST,"3,125.92",LD LTS 18-64,SUPPORTED LIVING,2102847377,1000042417
03.08.2018,ADULT SOCIAL CARE,PLUS SERVICES,"3,200.00",LD LTS 18-64,SUPPORTED LIVING,2102847008,1000021241
03.08.2018,ADULT SOCIAL CARE,HEALTH PERSONNEL LTD,"3,270.00",LD LTS 18-64,SUPPORTED LIVING,2102847118,1000076377
03.08.2018,ADULT SOCIAL CARE,CHOICE SUPPORT,"3,331.80",LD LTS 18-64,SUPPORTED LIVING,2102847281,1104183
03.08.2018,ADULT SOCIAL CARE,BRANDON TRUST,"3,356.08",LD LTS 18-64,SUPPORTED LIVING,2102846668,1000042417
03.08.2018,ADULT SOCIAL CARE,PEOPLEPLUS ILS,"3,360.88",LD LTS 18-64,PAYMENTS TO CLIENTS (DIRECT PAYMENTS),2102846892,1000061886
03.08.2018,ADULT SOCIAL CARE,AURORA OPTIONS,"3,441.16",LD LTS 18-64,SUPPORTED LIVING,2102847270,1000066695
03.08.2018,ADULT SOCIAL CARE,CHOICE SUPPORT,"3,546.24",LD LTS 18-64,SUPPORTED LIVING,2102846974,1104183
03.08.2018,ADULT SOCIAL CARE,CHOICE SUPPORT,"3,563.92",LD LTS 18-64,SUPPORTED LIVING,2102847434,1104183
03.08.2018,ADULT SOCIAL CARE,CHOICE SUPPORT,"3,690.24",LD LTS 18-64,SUPPORTED LIVING,2102846886,1104183
03.08.2018,ADULT SOCIAL CARE,CHOICE SUPPORT,"3,691.92",LD LTS 18-64,SUPPORTED LIVING,2102846969,1104183
03.08.2018,ADULT SOCIAL CARE,PEOPLEPLUS ILS,"3,809.20",LD LTS 18-64,PAYMENTS TO CLIENTS (DIRECT PAYMENTS),2102846932,1000061886
03.08.2018,ADULT SOCIAL CARE,CHOICE SUPPORT,"3,836.00",LD LTS 18-64,SUPPORTED LIVING,2102847084,1104183
03.08.2018,ADULT SOCIAL CARE,CHOICE SUPPORT,"3,864.48",LD LTS 18-64,SUPPORTED LIVING,2102846712,1104183
03.08.2018,ADULT SOCIAL CARE,REDACTED PERSONAL DATA,"3,864.64",LD LTS 18-64,PAYMENTS TO CLIENTS (DIRECT PAYMENTS),REDACTED,REDACTED
03.08.2018,ADULT SOCIAL CARE,REDACTED PERSONAL DATA,"3,923.12",LD LTS 18-64,PAYMENTS TO CLIENTS (DIRECT PAYMENTS),REDACTED,REDACTED
03.08.2018,ADULT SOCIAL CARE,CHILDREN OF COLOUR,"4,000.00",LD LTS 18-64,SUPPORTED LIVING,2102847007,1000044955
03.08.2018,ADULT SOCIAL CARE,BRANDON TRUST,"4,015.80",LD LTS 18-64,SUPPORTED LIVING,2102846940,1000042417
03.08.2018,ADULT SOCIAL CARE,CHOICE SUPPORT,"4,101.32",LD LTS 18-64,SUPPORTED LIVING,2102846790,1104183
03.08.2018,ADULT SOCIAL CARE,FRONTIER SUPPORT SERVICES LTD,"4,155.60",LD LTS 18-64,SUPPORTED LIVING,2102846962,1000072241
03.08.2018,ADULT SOCIAL CARE,PEOPLEPLUS ILS,"4,160.00",LD LTS 18-64,PAYMENTS TO CLIENTS (DIRECT PAYMENTS),2102847183,1000061886
03.08.2018,ADULT SOCIAL CARE,BRANDON TRUST,"4,162.12",LD LTS 18-64,SUPPORTED LIVING,2102847502,1000042417
03.08.2018,ADULT SOCIAL CARE,CHOICE SUPPORT,"4,179.84",LD LTS 18-64,SUPPORTED LIVING,2102847397,1104183
03.08.2018,ADULT SOCIAL CARE,BRANDON TRUST,"4,194.64",LD LTS 18-64,SUPPORTED LIVING,2102847425,1000042417
03.08.2018,ADULT SOCIAL CARE,L'ARCHE LONDON COMMUNITY,"4,206.00",LD LTS 18-64,SUPPORTED LIVING,2102847326,1000074124
03.08.2018,ADULT SOCIAL CARE,BRANDON TRUST,"4,258.84",LD LTS 18-64,SUPPORTED LIVING,2102847542,1000042417
03.08.2018,ADULT SOCIAL CARE,BRANDON TRUST,"4,308.24",LD LTS 18-64,SUPPORTED LIVING,2102846970,1000042417
03.08.2018,ADULT SOCIAL CARE,REDACTED PERSONAL DATA,"4,348.00",LD LTS 18-64,PAYMENTS TO CLIENTS (DIRECT PAYMENTS),REDACTED,REDACTED
03.08.2018,ADULT SOCIAL CARE,CARE MANAGEMENT GROUP,"4,360.00",LD LTS 18-64,SUPPORTED LIVING,2102847114,1000040475
03.08.2018,ADULT SOCIAL CARE,CHOICE SUPPORT,"4,374.76",LD LTS 18-64,SUPPORTED LIVING,2102846985,1104183
03.08.2018,ADULT SOCIAL CARE,THE REGARD PARTNERSHIP,"4,400.00",LD LTS 18-64,SUPPORTED LIVING,2102847465,1823223
03.08.2018,ADULT SOCIAL CARE,CHOICE SUPPORT,"4,418.64",LD LTS 18-64,SUPPORTED LIVING,2102847057,1104183
03.08.2018,ADULT SOCIAL CARE,CHOICE SUPPORT,"4,452.92",LD LTS 18-64,SUPPORTED LIVING,2102847359,1104183
03.08.2018,ADULT SOCIAL CARE,CHOICE SUPPORT,"4,555.80",LD LTS 18-64,SUPPORTED LIVING,2102846686,1104183
03.08.2018,ADULT SOCIAL CARE,CHOICE SUPPORT,"4,572.28",LD LTS 18-64,SUPPORTED LIVING,2102846638,1104183
03.08.2018,ADULT SOCIAL CARE,CHOICE SUPPORT,"4,746.20",LD LTS 18-64,SUPPORTED LIVING,2102847229,1104183
03.08.2018,ADULT SOCIAL CARE,CHOICE SUPPORT,"4,763.08",LD LTS 18-64,SUPPORTED LIVING,2102846716,1104183
03.08.2018,ADULT SOCIAL CARE,FRONTIER SUPPORT SERVICES LTD,"4,772.00",LD LTS 18-64,SUPPORTED LIVING,2102847311,1000072241
03.08.2018,ADULT SOCIAL CARE,CHOICE SUPPORT,"4,826.76",LD LTS 18-64,SUPPORTED LIVING,2102847447,1104183
03.08.2018,ADULT SOCIAL CARE,CARE MANAGEMENT GROUP,"4,908.00",LD LTS 18-64,SUPPORTED LIVING,2102846984,1000040475
03.08.2018,ADULT SOCIAL CARE,CHOICE SUPPORT,"4,944.72",LD LTS 18-64,SUPPORTED LIVING,2102847144,1104183
03.08.2018,ADULT SOCIAL CARE,CHOICE SUPPORT,"4,979.36",LD LTS 18-64,SUPPORTED LIVING,2102847563,1104183
03.08.2018,ADULT SOCIAL CARE,CHOICE SUPPORT,"5,105.40",LD LTS 18-64,SUPPORTED LIVING,2102846733,1104183
03.08.2018,ADULT SOCIAL CARE,PLUS SERVICES,"5,173.60",LD LTS 18-64,SUPPORTED LIVING,2102846848,1000021241
03.08.2018,ADULT SOCIAL CARE,PEOPLEPLUS ILS,"5,208.00",LD LTS 18-64,PAYMENTS TO CLIENTS (DIRECT PAYMENTS),2102847299,1000061886
03.08.2018,ADULT SOCIAL CARE,CHOICE SUPPORT,"5,211.88",LD LTS 18-64,SUPPORTED LIVING,2102846950,1104183
03.08.2018,ADULT SOCIAL CARE,CHOICE SUPPORT,"5,230.68",LD LTS 18-64,SUPPORTED LIVING,2102847160,1104183
03.08.2018,ADULT SOCIAL CARE,CHOICE SUPPORT,"5,231.60",LD LTS 18-64,SUPPORTED LIVING,2102847139,1104183
03.08.2018,ADULT SOCIAL CARE,REDACTED PERSONAL DATA,"5,280.88",LD LTS 18-64,PAYMENTS TO CLIENTS (DIRECT PAYMENTS),REDACTED,REDACTED
03.08.2018,ADULT SOCIAL CARE,CHOICE SUPPORT,"5,289.48",LD LTS 18-64,SUPPORTED LIVING,2102847202,1104183
03.08.2018,ADULT SOCIAL CARE,REDACTED PERSONAL DATA,"5,362.72",LD LTS 18-64,PAYMENTS TO CLIENTS (DIRECT PAYMENTS),REDACTED,REDACTED
03.08.2018,ADULT SOCIAL CARE,CHOICE SUPPORT,"5,396.76",LD LTS 18-64,SUPPORTED LIVING,2102847443,1104183
03.08.2018,ADULT SOCIAL CARE,PLUS SERVICES,"5,495.20",LD LTS 18-64,SUPPORTED LIVING,2102846618,1000021241
03.08.2018,ADULT SOCIAL CARE,CHOICE SUPPORT,"5,584.08",LD LTS 18-64,SUPPORTED LIVING,2102847266,1104183
03.08.2018,ADULT SOCIAL CARE,CHOICE SUPPORT,"6,119.04",LD LTS 18-64,SUPPORTED LIVING,2102846844,1104183
03.08.2018,ADULT SOCIAL CARE,CHOICE SUPPORT,"6,154.48",LD LTS 18-64,SUPPORTED LIVING,2102847307,1104183
03.08.2018,ADULT SOCIAL CARE,CHOICE SUPPORT,"6,633.44",LD LTS 18-64,SUPPORTED LIVING,2102846696,1104183
03.08.2018,ADULT SOCIAL CARE,REDACTED PERSONAL DATA,"6,644.40",LD LTS 18-64,PAYMENTS TO CLIENTS (DIRECT PAYMENTS),REDACTED,REDACTED
03.08.2018,ADULT SOCIAL CARE,BRANDON TRUST,"6,652.52",LD LTS 18-64,SUPPORTED LIVING,2102846666,1000042417
03.08.2018,ADULT SOCIAL CARE,PALM CARE LTD,"6,900.00",LD LTS 18-64,SUPPORTED LIVING,2102847491,1000066042
03.08.2018,ADULT SOCIAL CARE,SAFFRONLAND HOMES,"6,986.00",LD LTS 18-64,SUPPORTED LIVING,2102847237,1000072153
03.08.2018,ADULT SOCIAL CARE,CHOICE SUPPORT,"7,138.28",LD LTS 18-64,SUPPORTED LIVING,2102847472,1104183
03.08.2018,ADULT SOCIAL CARE,CHOICE SUPPORT,"7,261.72",LD LTS 18-64,SUPPORTED LIVING,2102847263,1104183
03.08.2018,ADULT SOCIAL CARE,PEOPLEPLUS ILS,"7,521.32",LD LTS 18-64,PAYMENTS TO CLIENTS (DIRECT PAYMENTS),2102847085,1000061886
03.08.2018,ADULT SOCIAL CARE,THE REGARD PARTNERSHIP,"7,794.64",LD LTS 18-64,SUPPORTED LIVING,2102847456,1823223
03.08.2018,ADULT SOCIAL CARE,FRONTIER SUPPORT SERVICES LTD,"7,893.68",LD LTS 18-64,SUPPORTED LIVING,2102846715,1000072241
03.08.2018,ADULT SOCIAL CARE,PEOPLEPLUS ILS,"7,908.96",LD LTS 18-64,PAYMENTS TO CLIENTS (DIRECT PAYMENTS),2102846632,1000061886
03.08.2018,ADULT SOCIAL CARE,CHOICE SUPPORT,"8,080.68",LD LTS 18-64,SUPPORTED LIVING,2102846806,1104183
03.08.2018,ADULT SOCIAL CARE,LIFEWAYS COMMUNITY CARE,"8,149.96",LD LTS 18-64,SUPPORTED LIVING,2102846692,1000073780
03.08.2018,ADULT SOCIAL CARE,RIGHT SUPPORT MANAGEMENT LTD,"8,361.00",LD LTS 18-64,SUPPORTED LIVING,2102847062,1000070289
03.08.2018,ADULT SOCIAL CARE,REDACTED PERSONAL DATA,"8,484.60",LD LTS 18-64,PAYMENTS TO CLIENTS (DIRECT PAYMENTS),REDACTED,REDACTED
03.08.2018,ADULT SOCIAL CARE,BRANDON TRUST,"8,669.24",LD LTS 18-64,SUPPORTED LIVING,2102847414,1000042417
03.08.2018,ADULT SOCIAL CARE,PEOPLEPLUS ILS,"9,126.80",LD LTS 18-64,PAYMENTS TO CLIENTS (DIRECT PAYMENTS),2102847388,1000061886
03.08.2018,ADULT SOCIAL CARE,REDACTED PERSONAL DATA,"11,376.96",LD LTS 18-64,PAYMENTS TO CLIENTS (DIRECT PAYMENTS),REDACTED,REDACTED
03.08.2018,ADULT SOCIAL CARE,REDACTED PERSONAL DATA,"12,580.00",LD LTS 18-64,PAYMENTS TO CLIENTS (DIRECT PAYMENTS),REDACTED,REDACTED
03.08.2018,ADULT SOCIAL CARE,PEOPLEPLUS ILS,"12,619.20",LD LTS 18-64,PAYMENTS TO CLIENTS (DIRECT PAYMENTS),2102847179,1000061886
03.08.2018,ADULT SOCIAL CARE,PEOPLEPLUS ILS,"12,619.20",LD LTS 18-64,PAYMENTS TO CLIENTS (DIRECT PAYMENTS),2102847477,1000061886
03.08.2018,ADULT SOCIAL CARE,CHOICE SUPPORT,"1,448.16",LD LTS 65+,SUPPORTED LIVING,2102847469,1104183
03.08.2018,ADULT SOCIAL CARE,UNITED RESPONSE,"1,599.00",LD LTS 65+,SUPPORTED LIVING,2102847384,1022934
03.08.2018,ADULT SOCIAL CARE,OUTLOOK CARE LTD,"2,212.00",LD LTS 65+,SUPPORTED LIVING,2102847047,1000074760
03.08.2018,ADULT SOCIAL CARE,CHOICE SUPPORT,"2,276.40",LD LTS 65+,SUPPORTED LIVING,2102846728,1104183
03.08.2018,ADULT SOCIAL CARE,CHOICE SUPPORT,"2,665.08",LD LTS 65+,SUPPORTED LIVING,2102846834,1104183
03.08.2018,ADULT SOCIAL CARE,CHOICE SUPPORT,"2,966.48",LD LTS 65+,SUPPORTED LIVING,2102847348,1104183
03.08.2018,ADULT SOCIAL CARE,CHOICE SUPPORT,"3,074.40",LD LTS 65+,SUPPORTED LIVING,2102846841,1104183
03.08.2018,ADULT SOCIAL CARE,CHOICE SUPPORT,"3,163.96",LD LTS 65+,SUPPORTED LIVING,2102847455,1104183
03.08.2018,ADULT SOCIAL CARE,CHOICE SUPPORT,"3,513.36",LD LTS 65+,SUPPORTED LIVING,2102847204,1104183
03.08.2018,ADULT SOCIAL CARE,CHOICE SUPPORT,"4,151.36",LD LTS 65+,SUPPORTED LIVING,2102846951,1104183
03.08.2018,ADULT SOCIAL CARE,CHOICE SUPPORT,"4,151.36",LD LTS 65+,SUPPORTED LIVING,2102846971,1104183
03.08.2018,ADULT SOCIAL CARE,CHOICE SUPPORT,"4,496.00",LD LTS 65+,SUPPORTED LIVING,2102847315,1104183
03.08.2018,ADULT SOCIAL CARE,PLUS SERVICES,"4,857.20",LD LTS 65+,SUPPORTED LIVING,2102846908,1000021241
03.08.2018,ADULT SOCIAL CARE,PLUS SERVICES,"6,147.92",LD LTS 65+,SUPPORTED LIVING,2102847390,1000021241
03.08.2018,ADULT SOCIAL CARE,CHOICE SUPPORT,"7,920.48",LD LTS 65+,SUPPORTED LIVING,2102846664,1104183
03.08.2018,ADULT SOCIAL CARE,REDACTED PERSONAL DATA,256,MEM LTS 18-64,SUPPORTED LIVING,REDACTED,REDACTED
03.08.2018,ADULT SOCIAL CARE,BLACK ELDER GROUP SWK,264,MEM LTS 18-64,DAYCARE,2102846876,1000067369
03.08.2018,ADULT SOCIAL CARE,PEOPLEPLUS ILS,358,MEM LTS 18-64,PAYMENTS TO CLIENTS (DIRECT PAYMENTS),2102847210,1000061886
03.08.2018,ADULT SOCIAL CARE,PEOPLEPLUS ILS,389.32,MEM LTS 18-64,PAYMENTS TO CLIENTS (DIRECT PAYMENTS),2102846722,1000061886
03.08.2018,ADULT SOCIAL CARE,PEOPLEPLUS ILS,608.76,MEM LTS 18-64,PAYMENTS TO CLIENTS (DIRECT PAYMENTS),2102846751,1000061886
03.08.2018,ADULT SOCIAL CARE,PEOPLEPLUS ILS,619.2,MEM LTS 18-64,PAYMENTS TO CLIENTS (DIRECT PAYMENTS),2102847426,1000061886
03.08.2018,ADULT SOCIAL CARE,PEOPLEPLUS ILS,833,MEM LTS 18-64,PAYMENTS TO CLIENTS (DIRECT PAYMENTS),2102846996,1000061886
03.08.2018,ADULT SOCIAL CARE,REDACTED PERSONAL DATA,"1,096.36",MEM LTS 18-64,PAYMENTS TO CLIENTS (DIRECT PAYMENTS),REDACTED,REDACTED
03.08.2018,ADULT SOCIAL CARE,THE REGARD PARTNERSHIP,"3,102.20",MEM LTS 18-64,SUPPORTED LIVING,2102847471,1823223
03.08.2018,ADULT SOCIAL CARE,THE REGARD PARTNERSHIP,"5,825.20",MEM LTS 18-64,SUPPORTED LIVING,2102846711,1823223
03.08.2018,ADULT SOCIAL CARE,AGE UK  LEWISHAM & SOUTHWARK,-848.57,MEM LTS 65+,DAYCARE,2102846598,1000066751
03.08.2018,ADULT SOCIAL CARE,REDACTED PERSONAL DATA,-292.64,MEM LTS 65+,DISCRETIONARY FLEXIBLE FEES & INCOME,REDACTED,REDACTED
03.08.2018,ADULT SOCIAL CARE,AGE UK  LEWISHAM & SOUTHWARK,360,MEM LTS 65+,DAYCARE,2102847519,1000066751
03.08.2018,ADULT SOCIAL CARE,PEOPLEPLUS ILS,378.84,MEM LTS 65+,PAYMENTS TO CLIENTS (DIRECT PAYMENTS),2102846874,1000061886
03.08.2018,ADULT SOCIAL CARE,AGE UK  LEWISHAM & SOUTHWARK,540,MEM LTS 65+,DAYCARE,2102847330,1000066751
03.08.2018,ADULT SOCIAL CARE,PEOPLEPLUS ILS,587.84,MEM LTS 65+,PAYMENTS TO CLIENTS (DIRECT PAYMENTS),2102847343,1000061886
03.08.2018,ADULT SOCIAL CARE,PEOPLEPLUS ILS,689.72,MEM LTS 65+,PAYMENTS TO CLIENTS (DIRECT PAYMENTS),2102847078,1000061886
03.08.2018,ADULT SOCIAL CARE,REDACTED PERSONAL DATA,877.8,MEM LTS 65+,PAYMENTS TO CLIENTS (DIRECT PAYMENTS),REDACTED,REDACTED
03.08.2018,ADULT SOCIAL CARE,AGE UK  LEWISHAM & SOUTHWARK,900,MEM LTS 65+,DAYCARE,2102846566,1000066751
03.08.2018,ADULT SOCIAL CARE,AGE UK  LEWISHAM & SOUTHWARK,900,MEM LTS 65+,DAYCARE,2102846755,1000066751
03.08.2018,ADULT SOCIAL CARE,REDACTED PERSONAL DATA,"1,118.52",MEM LTS 65+,PAYMENTS TO CLIENTS (DIRECT PAYMENTS),REDACTED,REDACTED
03.08.2018,ADULT SOCIAL CARE,PEOPLEPLUS ILS,"1,757.32",MEM LTS 65+,PAYMENTS TO CLIENTS (DIRECT PAYMENTS),2102847058,1000061886
03.08.2018,ADULT SOCIAL CARE,PALM TREE RECOVERY CLUB,"-1,234.29",MH LTS 18-64,HOMECARE - SPOT,2102847349,1000077293
03.08.2018,ADULT SOCIAL CARE,PALM TREE RECOVERY CLUB,-887.14,MH LTS 18-64,DAYCARE,2102846864,1000077293
03.08.2018,ADULT SOCIAL CARE,PEOPLEPLUS ILS,-671.66,MH LTS 18-64,PAYMENTS TO CLIENTS (DIRECT PAYMENTS),2102847238,1000061886
03.08.2018,ADULT SOCIAL CARE,PEOPLEPLUS ILS,-260.27,MH LTS 18-64,PAYMENTS TO CLIENTS (DIRECT PAYMENTS),2102846679,1000061886
03.08.2018,ADULT SOCIAL CARE,REDACTED PERSONAL DATA,257.4,MH LTS 18-64,HOMECARE - SPOT,REDACTED,REDACTED
03.08.2018,ADULT SOCIAL CARE,PALM TREE RECOVERY CLUB,264,MH LTS 18-64,DAYCARE,2102846871,1000077293
03.08.2018,ADULT SOCIAL CARE,PEOPLEPLUS ILS,268,MH LTS 18-64,PAYMENTS TO CLIENTS (DIRECT PAYMENTS),2102846766,1000061886
03.08.2018,ADULT SOCIAL CARE,REDACTED PERSONAL DATA,272,MH LTS 18-64,HOMECARE - SPOT,REDACTED,REDACTED
03.08.2018,ADULT SOCIAL CARE,PEOPLEPLUS ILS,274,MH LTS 18-64,PAYMENTS TO CLIENTS (DIRECT PAYMENTS),2102847053,1000061886
03.08.2018,ADULT SOCIAL CARE,REDACTED PERSONAL DATA,276,MH LTS 18-64,HOMECARE - SPOT,REDACTED,REDACTED
03.08.2018,ADULT SOCIAL CARE,BEDE HOUSE ASSOCIATION,280,MH LTS 18-64,DAYCARE,2102847451,11265073
03.08.2018,ADULT SOCIAL CARE,REDACTED PERSONAL DATA,280.8,MH LTS 18-64,HOMECARE - SPOT,REDACTED,REDACTED
03.08.2018,ADULT SOCIAL CARE,PEOPLEPLUS ILS,284.8,MH LTS 18-64,PAYMENTS TO CLIENTS (DIRECT PAYMENTS),2102847283,1000061886
03.08.2018,ADULT SOCIAL CARE,PEOPLEPLUS ILS,286,MH LTS 18-64,PAYMENTS TO CLIENTS (DIRECT PAYMENTS),2102846779,1000061886
03.08.2018,ADULT SOCIAL CARE,PEOPLEPLUS ILS,287.2,MH LTS 18-64,PAYMENTS TO CLIENTS (DIRECT PAYMENTS),2102847157,1000061886
03.08.2018,ADULT SOCIAL CARE,PEOPLEPLUS ILS,293.6,MH LTS 18-64,PAYMENTS TO CLIENTS (DIRECT PAYMENTS),2102846869,1000061886
03.08.2018,ADULT SOCIAL CARE,REDACTED PERSONAL DATA,303.04,MH LTS 18-64,PAYMENTS TO CLIENTS (DIRECT PAYMENTS),REDACTED,REDACTED
03.08.2018,ADULT SOCIAL CARE,BLACKFRIARS SETTLEMENT,304,MH LTS 18-64,DAYCARE,2102846777,1000071456
03.08.2018,ADULT SOCIAL CARE,PEOPLEPLUS ILS,304,MH LTS 18-64,PAYMENTS TO CLIENTS (DIRECT PAYMENTS),2102847041,1000061886
03.08.2018,ADULT SOCIAL CARE,PEOPLEPLUS ILS,310.48,MH LTS 18-64,PAYMENTS TO CLIENTS (DIRECT PAYMENTS),2102847581,1000061886
03.08.2018,ADULT SOCIAL CARE,BLACKFRIARS SETTLEMENT,320,MH LTS 18-64,DAYCARE,2102847437,1000071456
03.08.2018,ADULT SOCIAL CARE,REDACTED PERSONAL DATA,327.6,MH LTS 18-64,HOMECARE - SPOT,REDACTED,REDACTED
03.08.2018,ADULT SOCIAL CARE,REDACTED PERSONAL DATA,328,MH LTS 18-64,PAYMENTS TO CLIENTS (DIRECT PAYMENTS),REDACTED,REDACTED
03.08.2018,ADULT SOCIAL CARE,PEOPLEPLUS ILS,328.48,MH LTS 18-64,PAYMENTS TO CLIENTS (DIRECT PAYMENTS),2102846658,1000061886
03.08.2018,ADULT SOCIAL CARE,PEOPLEPLUS ILS,334,MH LTS 18-64,PAYMENTS TO CLIENTS (DIRECT PAYMENTS),2102847142,1000061886
03.08.2018,ADULT SOCIAL CARE,PEOPLEPLUS ILS,347.93,MH LTS 18-64,PAYMENTS TO CLIENTS (DIRECT PAYMENTS),2102846989,1000061886
03.08.2018,ADULT SOCIAL CARE,PALM TREE RECOVERY CLUB,385,MH LTS 18-64,HOMECARE - SPOT,2102847500,1000077293
03.08.2018,ADULT SOCIAL CARE,PEOPLEPLUS ILS,393,MH LTS 18-64,PAYMENTS TO CLIENTS (DIRECT PAYMENTS),2102847234,1000061886
03.08.2018,ADULT SOCIAL CARE,PEOPLEPLUS ILS,394,MH LTS 18-64,PAYMENTS TO CLIENTS (DIRECT PAYMENTS),2102847152,1000061886
03.08.2018,ADULT SOCIAL CARE,REDACTED PERSONAL DATA,397.8,MH LTS 18-64,HOMECARE - SPOT,REDACTED,REDACTED
03.08.2018,ADULT SOCIAL CARE,PALM TREE RECOVERY CLUB,399.96,MH LTS 18-64,HOMECARE - SPOT,2102847285,1000077293
03.08.2018,ADULT SOCIAL CARE,PEOPLEPLUS ILS,424,MH LTS 18-64,PAYMENTS TO CLIENTS (DIRECT PAYMENTS),2102847449,1000061886
03.08.2018,ADULT SOCIAL CARE,PEOPLEPLUS ILS,427.92,MH LTS 18-64,PAYMENTS TO CLIENTS (DIRECT PAYMENTS),2102847566,1000061886
03.08.2018,ADULT SOCIAL CARE,PALM TREE RECOVERY CLUB,492,MH LTS 18-64,HOMECARE - SPOT,2102846894,1000077293
03.08.2018,ADULT SOCIAL CARE,PEOPLEPLUS ILS,537.12,MH LTS 18-64,PAYMENTS TO CLIENTS (DIRECT PAYMENTS),2102847554,1000061886
03.08.2018,ADULT SOCIAL CARE,REDACTED PERSONAL DATA,546,MH LTS 18-64,HOMECARE - SPOT,REDACTED,REDACTED
03.08.2018,ADULT SOCIAL CARE,REDACTED PERSONAL DATA,600,MH LTS 18-64,HOMECARE - SPOT,REDACTED,REDACTED
03.08.2018,ADULT SOCIAL CARE,REDACTED PERSONAL DATA,600,MH LTS 18-64,HOMECARE - SPOT,REDACTED,REDACTED
03.08.2018,ADULT SOCIAL CARE,PEOPLEPLUS ILS,642,MH LTS 18-64,PAYMENTS TO CLIENTS (DIRECT PAYMENTS),2102847245,1000061886
03.08.2018,ADULT SOCIAL CARE,REDACTED PERSONAL DATA,655.2,MH LTS 18-64,HOMECARE - SPOT,REDACTED,REDACTED
03.08.2018,ADULT SOCIAL CARE,REDACTED PERSONAL DATA,720,MH LTS 18-64,PAYMENTS TO CLIENTS (DIRECT PAYMENTS),REDACTED,REDACTED
03.08.2018,ADULT SOCIAL CARE,PEOPLEPLUS ILS,891.65,MH LTS 18-64,PAYMENTS TO CLIENTS (DIRECT PAYMENTS),2102846724,1000061886
03.08.2018,ADULT SOCIAL CARE,REDACTED PERSONAL DATA,892,MH LTS 18-64,PAYMENTS TO CLIENTS (DIRECT PAYMENTS),REDACTED,REDACTED
03.08.2018,ADULT SOCIAL CARE,REDACTED PERSONAL DATA,896,MH LTS 18-64,HOMECARE - SPOT,REDACTED,REDACTED
03.08.2018,ADULT SOCIAL CARE,REDACTED PERSONAL DATA,928,MH LTS 18-64,HOMECARE - SPOT,REDACTED,REDACTED
03.08.2018,ADULT SOCIAL CARE,PEOPLEPLUS ILS,"1,041.40",MH LTS 18-64,PAYMENTS TO CLIENTS (DIRECT PAYMENTS),2102847556,1000061886
03.08.2018,ADULT SOCIAL CARE,REDACTED PERSONAL DATA,"1,158.36",MH LTS 18-64,PAYMENTS TO CLIENTS (DIRECT PAYMENTS),REDACTED,REDACTED
03.08.2018,ADULT SOCIAL CARE,REDACTED PERSONAL DATA,"1,241.08",MH LTS 18-64,HOMECARE - SPOT,REDACTED,REDACTED
03.08.2018,ADULT SOCIAL CARE,REDACTED PERSONAL DATA,"1,476.20",MH LTS 18-64,PAYMENTS TO CLIENTS (DIRECT PAYMENTS),REDACTED,REDACTED
03.08.2018,ADULT SOCIAL CARE,REDACTED PERSONAL DATA,"1,726.72",MH LTS 18-64,PAYMENTS TO CLIENTS (DIRECT PAYMENTS),REDACTED,REDACTED
03.08.2018,ADULT SOCIAL CARE,AGE UK  LEWISHAM & SOUTHWARK,-630,MH LTS 65+,DAYCARE,2102846725,1000066751
03.08.2018,ADULT SOCIAL CARE,PEOPLEPLUS ILS,274,MH LTS 65+,PAYMENTS TO CLIENTS (DIRECT PAYMENTS),2102847338,1000061886
03.08.2018,ADULT SOCIAL CARE,PEOPLEPLUS ILS,283.6,MH LTS 65+,PAYMENTS TO CLIENTS (DIRECT PAYMENTS),2102846736,1000061886
03.08.2018,ADULT SOCIAL CARE,AGE UK  LEWISHAM & SOUTHWARK,360,MH LTS 65+,DAYCARE,2102846592,1000066751
03.08.2018,ADULT SOCIAL CARE,AGE UK  LEWISHAM & SOUTHWARK,360,MH LTS 65+,DAYCARE,2102846797,1000066751
03.08.2018,ADULT SOCIAL CARE,PEOPLEPLUS ILS,394,MH LTS 65+,PAYMENTS TO CLIENTS (DIRECT PAYMENTS),2102847297,1000061886
03.08.2018,ADULT SOCIAL CARE,REDACTED PERSONAL DATA,494,MH LTS 65+,HOMECARE - SPOT,REDACTED,REDACTED
03.08.2018,ADULT SOCIAL CARE,REDACTED PERSONAL DATA,863.36,MH LTS 65+,HOMECARE - SPOT,REDACTED,REDACTED
03.08.2018,ADULT SOCIAL CARE,REDACTED PERSONAL DATA,897.8,MH LTS 65+,PAYMENTS TO CLIENTS (DIRECT PAYMENTS),REDACTED,REDACTED
03.08.2018,ADULT SOCIAL CARE,REDACTED PERSONAL DATA,900,MH LTS 65+,PAYMENTS TO CLIENTS (DIRECT PAYMENTS),REDACTED,REDACTED
03.08.2018,ADULT SOCIAL CARE,REDACTED PERSONAL DATA,961.4,MH LTS 65+,PAYMENTS TO CLIENTS (DIRECT PAYMENTS),REDACTED,REDACTED
03.08.2018,ADULT SOCIAL CARE,PEOPLEPLUS ILS,"1,212.20",MH LTS 65+,PAYMENTS TO CLIENTS (DIRECT PAYMENTS),2102846903,1000061886
03.08.2018,ADULT SOCIAL CARE,PEOPLEPLUS ILS,"-3,328.40",PHB- SOUTHWARK CCG,RECOVERABLE COSTS INCL. HEALTH,2102846839,1000061886
03.08.2018,ADULT SOCIAL CARE,PEOPLEPLUS ILS,"1,111.00",PHB- SOUTHWARK CCG,RECOVERABLE COSTS INCL. HEALTH,2102847555,1000061886
03.08.2018,ADULT SOCIAL CARE,FRESH IDEAS & SOLUTIONS SERVICES CIC,"2,219.04",PHB- SOUTHWARK CCG,RECOVERABLE COSTS INCL. HEALTH,2102847468,1000070832
03.08.2018,ADULT SOCIAL CARE,REDACTED PERSONAL DATA,"2,360.80",PHB- SOUTHWARK CCG,RECOVERABLE COSTS INCL. HEALTH,REDACTED,REDACTED
03.08.2018,ADULT SOCIAL CARE,PEOPLEPLUS ILS,"3,613.68",PHB- SOUTHWARK CCG,RECOVERABLE COSTS INCL. HEALTH,2102847482,1000061886
03.08.2018,ADULT SOCIAL CARE,PEOPLEPLUS ILS,"4,343.84",PHB- SOUTHWARK CCG,RECOVERABLE COSTS INCL. HEALTH,2102847372,1000061886
03.08.2018,ADULT SOCIAL CARE,PEOPLEPLUS ILS,"4,347.48",PHB- SOUTHWARK CCG,RECOVERABLE COSTS INCL. HEALTH,2102847064,1000061886
03.08.2018,ADULT SOCIAL CARE,PEOPLEPLUS ILS,"5,226.32",PHB- SOUTHWARK CCG,RECOVERABLE COSTS INCL. HEALTH,2102846695,1000061886
03.08.2018,ADULT SOCIAL CARE,REDACTED PERSONAL DATA,"5,321.24",PHB- SOUTHWARK CCG,RECOVERABLE COSTS INCL. HEALTH,REDACTED,REDACTED
03.08.2018,ADULT SOCIAL CARE,REDACTED PERSONAL DATA,"7,482.40",PHB- SOUTHWARK CCG,RECOVERABLE COSTS INCL. HEALTH,REDACTED,REDACTED
03.08.2018,ADULT SOCIAL CARE,REDACTED PERSONAL DATA,"9,079.20",PHB- SOUTHWARK CCG,RECOVERABLE COSTS INCL. HEALTH,REDACTED,REDACTED
03.08.2018,ADULT SOCIAL CARE,PEOPLEPLUS ILS,"-1,252.43",PHY LTS 18-64,PAYMENTS TO CLIENTS (DIRECT PAYMENTS),2102846818,1000061886
03.08.2018,ADULT SOCIAL CARE,PEOPLEPLUS ILS,-496,PHY LTS 18-64,PAYMENTS TO CLIENTS (DIRECT PAYMENTS),2102847052,1000061886
03.08.2018,ADULT SOCIAL CARE,THE REGARD PARTNERSHIP,-280.92,PHY LTS 18-64,DISCRETIONARY FLEXIBLE FEES & INCOME,2102846857,1823223
03.08.2018,ADULT SOCIAL CARE,PEOPLEPLUS ILS,-277.24,PHY LTS 18-64,DISCRETIONARY FLEXIBLE FEES & INCOME,2102846911,1000061886
03.08.2018,ADULT SOCIAL CARE,REDACTED PERSONAL DATA,258.08,PHY LTS 18-64,PAYMENTS TO CLIENTS (DIRECT PAYMENTS),REDACTED,REDACTED
03.08.2018,ADULT SOCIAL CARE,PEOPLEPLUS ILS,259.72,PHY LTS 18-64,PAYMENTS TO CLIENTS (DIRECT PAYMENTS),2102847205,1000061886
03.08.2018,ADULT SOCIAL CARE,PEOPLEPLUS ILS,265.64,PHY LTS 18-64,PAYMENTS TO CLIENTS (DIRECT PAYMENTS),2102847564,1000061886
03.08.2018,ADULT SOCIAL CARE,PEOPLEPLUS ILS,295.04,PHY LTS 18-64,PAYMENTS TO CLIENTS (DIRECT PAYMENTS),2102847177,1000061886
03.08.2018,ADULT SOCIAL CARE,REDACTED PERSONAL DATA,312.6,PHY LTS 18-64,PAYMENTS TO CLIENTS (DIRECT PAYMENTS),REDACTED,REDACTED
03.08.2018,ADULT SOCIAL CARE,REDACTED PERSONAL DATA,314.44,PHY LTS 18-64,PAYMENTS TO CLIENTS (DIRECT PAYMENTS),REDACTED,REDACTED
03.08.2018,ADULT SOCIAL CARE,REDACTED PERSONAL DATA,320.97,PHY LTS 18-64,PAYMENTS TO CLIENTS (DIRECT PAYMENTS),REDACTED,REDACTED
03.08.2018,ADULT SOCIAL CARE,REDACTED PERSONAL DATA,323.04,PHY LTS 18-64,PAYMENTS TO CLIENTS (DIRECT PAYMENTS),REDACTED,REDACTED
03.08.2018,ADULT SOCIAL CARE,PEOPLEPLUS ILS,326.6,PHY LTS 18-64,PAYMENTS TO CLIENTS (DIRECT PAYMENTS),2102846558,1000061886
03.08.2018,ADULT SOCIAL CARE,PEOPLEPLUS ILS,326.6,PHY LTS 18-64,PAYMENTS TO CLIENTS (DIRECT PAYMENTS),2102846746,1000061886
03.08.2018,ADULT SOCIAL CARE,PEOPLEPLUS ILS,326.6,PHY LTS 18-64,PAYMENTS TO CLIENTS (DIRECT PAYMENTS),2102846795,1000061886
03.08.2018,ADULT SOCIAL CARE,PEOPLEPLUS ILS,349.52,PHY LTS 18-64,PAYMENTS TO CLIENTS (DIRECT PAYMENTS),2102847410,1000061886
03.08.2018,ADULT SOCIAL CARE,REDACTED PERSONAL DATA,354.4,PHY LTS 18-64,PAYMENTS TO CLIENTS (DIRECT PAYMENTS),REDACTED,REDACTED
03.08.2018,ADULT SOCIAL CARE,PEOPLEPLUS ILS,357.96,PHY LTS 18-64,PAYMENTS TO CLIENTS (DIRECT PAYMENTS),2102846917,1000061886
03.08.2018,ADULT SOCIAL CARE,AGE UK  LEWISHAM & SOUTHWARK,360,PHY LTS 18-64,DAYCARE,2102846683,1000066751
03.08.2018,ADULT SOCIAL CARE,AGE UK  LEWISHAM & SOUTHWARK,360,PHY LTS 18-64,DAYCARE,2102847108,1000066751
03.08.2018,ADULT SOCIAL CARE,PEOPLEPLUS ILS,365,PHY LTS 18-64,PAYMENTS TO CLIENTS (DIRECT PAYMENTS),2102847302,1000061886
03.08.2018,ADULT SOCIAL CARE,PEOPLEPLUS ILS,388.4,PHY LTS 18-64,PAYMENTS TO CLIENTS (DIRECT PAYMENTS),2102847004,1000061886
03.08.2018,ADULT SOCIAL CARE,PEOPLEPLUS ILS,389.32,PHY LTS 18-64,PAYMENTS TO CLIENTS (DIRECT PAYMENTS),2102847030,1000061886
03.08.2018,ADULT SOCIAL CARE,REDACTED PERSONAL DATA,400,PHY LTS 18-64,PAYMENTS TO CLIENTS (DIRECT PAYMENTS),REDACTED,REDACTED
03.08.2018,ADULT SOCIAL CARE,REDACTED PERSONAL DATA,403.44,PHY LTS 18-64,PAYMENTS TO CLIENTS (DIRECT PAYMENTS),REDACTED,REDACTED
03.08.2018,ADULT SOCIAL CARE,PEOPLEPLUS ILS,408.72,PHY LTS 18-64,PAYMENTS TO CLIENTS (DIRECT PAYMENTS),2102847034,1000061886
03.08.2018,ADULT SOCIAL CARE,PEOPLEPLUS ILS,410.2,PHY LTS 18-64,PAYMENTS TO CLIENTS (DIRECT PAYMENTS),2102847411,1000061886
03.08.2018,ADULT SOCIAL CARE,REDACTED PERSONAL DATA,418,PHY LTS 18-64,PAYMENTS TO CLIENTS (DIRECT PAYMENTS),REDACTED,REDACTED
03.08.2018,ADULT SOCIAL CARE,PEOPLEPLUS ILS,447.4,PHY LTS 18-64,PAYMENTS TO CLIENTS (DIRECT PAYMENTS),2102847091,1000061886
03.08.2018,ADULT SOCIAL CARE,PEOPLEPLUS ILS,449.36,PHY LTS 18-64,PAYMENTS TO CLIENTS (DIRECT PAYMENTS),2102847416,1000061886
03.08.2018,ADULT SOCIAL CARE,PEOPLEPLUS ILS,452,PHY LTS 18-64,PAYMENTS TO CLIENTS (DIRECT PAYMENTS),2102847095,1000061886
03.08.2018,ADULT SOCIAL CARE,PEOPLEPLUS ILS,452,PHY LTS 18-64,PAYMENTS TO CLIENTS (DIRECT PAYMENTS),2102847383,1000061886
03.08.2018,ADULT SOCIAL CARE,PEOPLEPLUS ILS,452,PHY LTS 18-64,PAYMENTS TO CLIENTS (DIRECT PAYMENTS),2102847526,1000061886
03.08.2018,ADULT SOCIAL CARE,PEOPLEPLUS ILS,462.44,PHY LTS 18-64,PAYMENTS TO CLIENTS (DIRECT PAYMENTS),2102847249,1000061886
03.08.2018,ADULT SOCIAL CARE,PEOPLEPLUS ILS,462.44,PHY LTS 18-64,PAYMENTS TO CLIENTS (DIRECT PAYMENTS),2102847547,1000061886
03.08.2018,ADULT SOCIAL CARE,PEOPLEPLUS ILS,483.36,PHY LTS 18-64,PAYMENTS TO CLIENTS (DIRECT PAYMENTS),2102846771,1000061886
03.08.2018,ADULT SOCIAL CARE,REDACTED PERSONAL DATA,491.4,PHY LTS 18-64,PAYMENTS TO CLIENTS (DIRECT PAYMENTS),REDACTED,REDACTED
03.08.2018,ADULT SOCIAL CARE,REDACTED PERSONAL DATA,501.6,PHY LTS 18-64,PAYMENTS TO CLIENTS (DIRECT PAYMENTS),REDACTED,REDACTED
03.08.2018,ADULT SOCIAL CARE,PEOPLEPLUS ILS,504.24,PHY LTS 18-64,PAYMENTS TO CLIENTS (DIRECT PAYMENTS),2102846978,1000061886
03.08.2018,ADULT SOCIAL CARE,PEOPLEPLUS ILS,504.24,PHY LTS 18-64,PAYMENTS TO CLIENTS (DIRECT PAYMENTS),2102847518,1000061886
03.08.2018,ADULT SOCIAL CARE,PEOPLEPLUS ILS,505.4,PHY LTS 18-64,PAYMENTS TO CLIENTS (DIRECT PAYMENTS),2102846584,1000061886
03.08.2018,ADULT SOCIAL CARE,REDACTED PERSONAL DATA,511.16,PHY LTS 18-64,PAYMENTS TO CLIENTS (DIRECT PAYMENTS),REDACTED,REDACTED
03.08.2018,ADULT SOCIAL CARE,PEOPLEPLUS ILS,514.72,PHY LTS 18-64,PAYMENTS TO CLIENTS (DIRECT PAYMENTS),2102847510,1000061886
03.08.2018,ADULT SOCIAL CARE,REDACTED PERSONAL DATA,514.8,PHY LTS 18-64,PAYMENTS TO CLIENTS (DIRECT PAYMENTS),REDACTED,REDACTED
03.08.2018,ADULT SOCIAL CARE,REDACTED PERSONAL DATA,526.04,PHY LTS 18-64,PAYMENTS TO CLIENTS (DIRECT PAYMENTS),REDACTED,REDACTED
03.08.2018,ADULT SOCIAL CARE,PEOPLEPLUS ILS,535.6,PHY LTS 18-64,PAYMENTS TO CLIENTS (DIRECT PAYMENTS),2102847101,1000061886
03.08.2018,ADULT SOCIAL CARE,PEOPLEPLUS ILS,535.6,PHY LTS 18-64,PAYMENTS TO CLIENTS (DIRECT PAYMENTS),2102847334,1000061886
03.08.2018,ADULT SOCIAL CARE,PEOPLEPLUS ILS,535.6,PHY LTS 18-64,PAYMENTS TO CLIENTS (DIRECT PAYMENTS),2102847474,1000061886
03.08.2018,ADULT SOCIAL CARE,PEOPLEPLUS ILS,552.2,PHY LTS 18-64,PAYMENTS TO CLIENTS (DIRECT PAYMENTS),2102846826,1000061886
03.08.2018,ADULT SOCIAL CARE,PEOPLEPLUS ILS,556.52,PHY LTS 18-64,PAYMENTS TO CLIENTS (DIRECT PAYMENTS),2102847246,1000061886
03.08.2018,ADULT SOCIAL CARE,PEOPLEPLUS ILS,574.76,PHY LTS 18-64,PAYMENTS TO CLIENTS (DIRECT PAYMENTS),2102847010,1000061886
03.08.2018,ADULT SOCIAL CARE,PEOPLEPLUS ILS,585.2,PHY LTS 18-64,PAYMENTS TO CLIENTS (DIRECT PAYMENTS),2102846620,1000061886
03.08.2018,ADULT SOCIAL CARE,REDACTED PERSONAL DATA,594.76,PHY LTS 18-64,PAYMENTS TO CLIENTS (DIRECT PAYMENTS),REDACTED,REDACTED
03.08.2018,ADULT SOCIAL CARE,PEOPLEPLUS ILS,598.28,PHY LTS 18-64,PAYMENTS TO CLIENTS (DIRECT PAYMENTS),2102846851,1000061886
03.08.2018,ADULT SOCIAL CARE,PEOPLEPLUS ILS,600.6,PHY LTS 18-64,PAYMENTS TO CLIENTS (DIRECT PAYMENTS),2102847045,1000061886
03.08.2018,ADULT SOCIAL CARE,REDACTED PERSONAL DATA,602.44,PHY LTS 18-64,PAYMENTS TO CLIENTS (DIRECT PAYMENTS),REDACTED,REDACTED
03.08.2018,ADULT SOCIAL CARE,REDACTED PERSONAL DATA,602.48,PHY LTS 18-64,PAYMENTS TO CLIENTS (DIRECT PAYMENTS),REDACTED,REDACTED
03.08.2018,ADULT SOCIAL CARE,PEOPLEPLUS ILS,619.2,PHY LTS 18-64,PAYMENTS TO CLIENTS (DIRECT PAYMENTS),2102846770,1000061886
03.08.2018,ADULT SOCIAL CARE,FRESH IDEAS & SOLUTIONS SERVICES CIC,619.2,PHY LTS 18-64,PAYMENTS TO CLIENTS (DIRECT PAYMENTS),2102847298,1000070832
03.08.2018,ADULT SOCIAL CARE,PEOPLEPLUS ILS,629.64,PHY LTS 18-64,PAYMENTS TO CLIENTS (DIRECT PAYMENTS),2102846741,1000061886
03.08.2018,ADULT SOCIAL CARE,PEOPLEPLUS ILS,629.64,PHY LTS 18-64,PAYMENTS TO CLIENTS (DIRECT PAYMENTS),2102847155,1000061886
03.08.2018,ADULT SOCIAL CARE,PEOPLEPLUS ILS,629.64,PHY LTS 18-64,PAYMENTS TO CLIENTS (DIRECT PAYMENTS),2102847406,1000061886
03.08.2018,ADULT SOCIAL CARE,PEOPLEPLUS ILS,632.68,PHY LTS 18-64,PAYMENTS TO CLIENTS (DIRECT PAYMENTS),2102847220,1000061886
03.08.2018,ADULT SOCIAL CARE,REDACTED PERSONAL DATA,635.28,PHY LTS 18-64,PAYMENTS TO CLIENTS (DIRECT PAYMENTS),REDACTED,REDACTED
03.08.2018,ADULT SOCIAL CARE,REDACTED PERSONAL DATA,647.92,PHY LTS 18-64,PAYMENTS TO CLIENTS (DIRECT PAYMENTS),REDACTED,REDACTED
03.08.2018,ADULT SOCIAL CARE,REDACTED PERSONAL DATA,663.52,PHY LTS 18-64,PAYMENTS TO CLIENTS (DIRECT PAYMENTS),REDACTED,REDACTED
03.08.2018,ADULT SOCIAL CARE,REDACTED PERSONAL DATA,675.48,PHY LTS 18-64,PAYMENTS TO CLIENTS (DIRECT PAYMENTS),REDACTED,REDACTED
03.08.2018,ADULT SOCIAL CARE,REDACTED PERSONAL DATA,688.8,PHY LTS 18-64,PAYMENTS TO CLIENTS (DIRECT PAYMENTS),REDACTED,REDACTED
03.08.2018,ADULT SOCIAL CARE,PEOPLEPLUS ILS,702.8,PHY LTS 18-64,PAYMENTS TO CLIENTS (DIRECT PAYMENTS),2102847513,1000061886
03.08.2018,ADULT SOCIAL CARE,PEOPLEPLUS ILS,724.24,PHY LTS 18-64,PAYMENTS TO CLIENTS (DIRECT PAYMENTS),2102847415,1000061886
03.08.2018,ADULT SOCIAL CARE,REDACTED PERSONAL DATA,730.6,PHY LTS 18-64,PAYMENTS TO CLIENTS (DIRECT PAYMENTS),REDACTED,REDACTED
03.08.2018,ADULT SOCIAL CARE,REDACTED PERSONAL DATA,751.52,PHY LTS 18-64,PAYMENTS TO CLIENTS (DIRECT PAYMENTS),REDACTED,REDACTED
03.08.2018,ADULT SOCIAL CARE,REDACTED PERSONAL DATA,751.96,PHY LTS 18-64,PAYMENTS TO CLIENTS (DIRECT PAYMENTS),REDACTED,REDACTED
03.08.2018,ADULT SOCIAL CARE,PEOPLEPLUS ILS,765.52,PHY LTS 18-64,PAYMENTS TO CLIENTS (DIRECT PAYMENTS),2102846673,1000061886
03.08.2018,ADULT SOCIAL CARE,PEOPLEPLUS ILS,765.52,PHY LTS 18-64,PAYMENTS TO CLIENTS (DIRECT PAYMENTS),2102846916,1000061886
03.08.2018,ADULT SOCIAL CARE,PEOPLEPLUS ILS,779.88,PHY LTS 18-64,PAYMENTS TO CLIENTS (DIRECT PAYMENTS),2102846956,1000061886
03.08.2018,ADULT SOCIAL CARE,PEOPLEPLUS ILS,791.36,PHY LTS 18-64,PAYMENTS TO CLIENTS (DIRECT PAYMENTS),2102847269,1000061886
03.08.2018,ADULT SOCIAL CARE,PEOPLEPLUS ILS,796.88,PHY LTS 18-64,PAYMENTS TO CLIENTS (DIRECT PAYMENTS),2102847589,1000061886
03.08.2018,ADULT SOCIAL CARE,REDACTED PERSONAL DATA,814.2,PHY LTS 18-64,PAYMENTS TO CLIENTS (DIRECT PAYMENTS),REDACTED,REDACTED
03.08.2018,ADULT SOCIAL CARE,REDACTED PERSONAL DATA,824.64,PHY LTS 18-64,PAYMENTS TO CLIENTS (DIRECT PAYMENTS),REDACTED,REDACTED
03.08.2018,ADULT SOCIAL CARE,FRESH IDEAS & SOLUTIONS SERVICES CIC,828.2,PHY LTS 18-64,PAYMENTS TO CLIENTS (DIRECT PAYMENTS),2102846690,1000070832
03.08.2018,ADULT SOCIAL CARE,REDACTED PERSONAL DATA,836.36,PHY LTS 18-64,PAYMENTS TO CLIENTS (DIRECT PAYMENTS),REDACTED,REDACTED
03.08.2018,ADULT SOCIAL CARE,FRESH IDEAS & SOLUTIONS SERVICES CIC,840.64,PHY LTS 18-64,PAYMENTS TO CLIENTS (DIRECT PAYMENTS),2102847490,1000070832
03.08.2018,ADULT SOCIAL CARE,REDACTED PERSONAL DATA,856,PHY LTS 18-64,PAYMENTS TO CLIENTS (DIRECT PAYMENTS),REDACTED,REDACTED
03.08.2018,ADULT SOCIAL CARE,FRESH IDEAS & SOLUTIONS SERVICES CIC,870,PHY LTS 18-64,PAYMENTS TO CLIENTS (DIRECT PAYMENTS),2102846800,1000070832
03.08.2018,ADULT SOCIAL CARE,FRESH IDEAS & SOLUTIONS SERVICES CIC,870,PHY LTS 18-64,PAYMENTS TO CLIENTS (DIRECT PAYMENTS),2102847322,1000070832
03.08.2018,ADULT SOCIAL CARE,REDACTED PERSONAL DATA,876.88,PHY LTS 18-64,PAYMENTS TO CLIENTS (DIRECT PAYMENTS),REDACTED,REDACTED
03.08.2018,ADULT SOCIAL CARE,PEOPLEPLUS ILS,877.8,PHY LTS 18-64,PAYMENTS TO CLIENTS (DIRECT PAYMENTS),2102847081,1000061886
03.08.2018,ADULT SOCIAL CARE,REDACTED PERSONAL DATA,877.8,PHY LTS 18-64,PAYMENTS TO CLIENTS (DIRECT PAYMENTS),REDACTED,REDACTED
03.08.2018,ADULT SOCIAL CARE,REDACTED PERSONAL DATA,889.8,PHY LTS 18-64,PAYMENTS TO CLIENTS (DIRECT PAYMENTS),REDACTED,REDACTED
03.08.2018,ADULT SOCIAL CARE,PEOPLEPLUS ILS,891.52,PHY LTS 18-64,PAYMENTS TO CLIENTS (DIRECT PAYMENTS),2102846646,1000061886
03.08.2018,ADULT SOCIAL CARE,PEOPLEPLUS ILS,894.76,PHY LTS 18-64,PAYMENTS TO CLIENTS (DIRECT PAYMENTS),2102846764,1000061886
03.08.2018,ADULT SOCIAL CARE,PEOPLEPLUS ILS,911.8,PHY LTS 18-64,PAYMENTS TO CLIENTS (DIRECT PAYMENTS),2102846671,1000061886
03.08.2018,ADULT SOCIAL CARE,PEOPLEPLUS ILS,911.8,PHY LTS 18-64,PAYMENTS TO CLIENTS (DIRECT PAYMENTS),2102846862,1000061886
03.08.2018,ADULT SOCIAL CARE,REDACTED PERSONAL DATA,918.72,PHY LTS 18-64,PAYMENTS TO CLIENTS (DIRECT PAYMENTS),REDACTED,REDACTED
03.08.2018,ADULT SOCIAL CARE,REDACTED PERSONAL DATA,957.68,PHY LTS 18-64,PAYMENTS TO CLIENTS (DIRECT PAYMENTS),REDACTED,REDACTED
03.08.2018,ADULT SOCIAL CARE,PEOPLEPLUS ILS,974.52,PHY LTS 18-64,PAYMENTS TO CLIENTS (DIRECT PAYMENTS),2102847250,1000061886
03.08.2018,ADULT SOCIAL CARE,PEOPLEPLUS ILS,996.8,PHY LTS 18-64,PAYMENTS TO CLIENTS (DIRECT PAYMENTS),2102847036,1000061886
03.08.2018,ADULT SOCIAL CARE,REDACTED PERSONAL DATA,"1,002.32",PHY LTS 18-64,PAYMENTS TO CLIENTS (DIRECT PAYMENTS),REDACTED,REDACTED
03.08.2018,ADULT SOCIAL CARE,PEOPLEPLUS ILS,"1,003.20",PHY LTS 18-64,PAYMENTS TO CLIENTS (DIRECT PAYMENTS),2102847544,1000061886
03.08.2018,ADULT SOCIAL CARE,REDACTED PERSONAL DATA,"1,013.80",PHY LTS 18-64,PAYMENTS TO CLIENTS (DIRECT PAYMENTS),REDACTED,REDACTED
03.08.2018,ADULT SOCIAL CARE,PEOPLEPLUS ILS,"1,015.20",PHY LTS 18-64,PAYMENTS TO CLIENTS (DIRECT PAYMENTS),2102847575,1000061886
03.08.2018,ADULT SOCIAL CARE,PEOPLEPLUS ILS,"1,037.20",PHY LTS 18-64,PAYMENTS TO CLIENTS (DIRECT PAYMENTS),2102846717,1000061886
03.08.2018,ADULT SOCIAL CARE,PEOPLEPLUS ILS,"1,052.64",PHY LTS 18-64,PAYMENTS TO CLIENTS (DIRECT PAYMENTS),2102847493,1000061886
03.08.2018,ADULT SOCIAL CARE,PEOPLEPLUS ILS,"1,090.48",PHY LTS 18-64,PAYMENTS TO CLIENTS (DIRECT PAYMENTS),2102847462,1000061886
03.08.2018,ADULT SOCIAL CARE,PEOPLEPLUS ILS,"1,150.52",PHY LTS 18-64,PAYMENTS TO CLIENTS (DIRECT PAYMENTS),2102847571,1000061886
03.08.2018,ADULT SOCIAL CARE,REDACTED PERSONAL DATA,"1,159.96",PHY LTS 18-64,PAYMENTS TO CLIENTS (DIRECT PAYMENTS),REDACTED,REDACTED
03.08.2018,ADULT SOCIAL CARE,PEOPLEPLUS ILS,"1,184.00",PHY LTS 18-64,PAYMENTS TO CLIENTS (DIRECT PAYMENTS),2102847153,1000061886
03.08.2018,ADULT SOCIAL CARE,REDACTED PERSONAL DATA,"1,200.80",PHY LTS 18-64,PAYMENTS TO CLIENTS (DIRECT PAYMENTS),REDACTED,REDACTED
03.08.2018,ADULT SOCIAL CARE,REDACTED PERSONAL DATA,"1,204.16",PHY LTS 18-64,PAYMENTS TO CLIENTS (DIRECT PAYMENTS),REDACTED,REDACTED
03.08.2018,ADULT SOCIAL CARE,REDACTED PERSONAL DATA,"1,210.40",PHY LTS 18-64,PAYMENTS TO CLIENTS (DIRECT PAYMENTS),REDACTED,REDACTED
03.08.2018,ADULT SOCIAL CARE,PEOPLEPLUS ILS,"1,266.04",PHY LTS 18-64,PAYMENTS TO CLIENTS (DIRECT PAYMENTS),2102846936,1000061886
03.08.2018,ADULT SOCIAL CARE,PEOPLEPLUS ILS,"1,330.00",PHY LTS 18-64,PAYMENTS TO CLIENTS (DIRECT PAYMENTS),2102847580,1000061886
03.08.2018,ADULT SOCIAL CARE,PEOPLEPLUS ILS,"1,426.00",PHY LTS 18-64,PAYMENTS TO CLIENTS (DIRECT PAYMENTS),2102846960,1000061886
03.08.2018,ADULT SOCIAL CARE,PEOPLEPLUS ILS,"1,497.00",PHY LTS 18-64,PAYMENTS TO CLIENTS (DIRECT PAYMENTS),2102847100,1000061886
03.08.2018,ADULT SOCIAL CARE,REDACTED PERSONAL DATA,"1,579.20",PHY LTS 18-64,PAYMENTS TO CLIENTS (DIRECT PAYMENTS),REDACTED,REDACTED
03.08.2018,ADULT SOCIAL CARE,PEOPLEPLUS ILS,"1,579.76",PHY LTS 18-64,PAYMENTS TO CLIENTS (DIRECT PAYMENTS),2102846688,1000061886
03.08.2018,ADULT SOCIAL CARE,PEOPLEPLUS ILS,"1,706.92",PHY LTS 18-64,PAYMENTS TO CLIENTS (DIRECT PAYMENTS),2102847365,1000061886
03.08.2018,ADULT SOCIAL CARE,PEOPLEPLUS ILS,"1,722.68",PHY LTS 18-64,PAYMENTS TO CLIENTS (DIRECT PAYMENTS),2102846868,1000061886
03.08.2018,ADULT SOCIAL CARE,PEOPLEPLUS ILS,"1,733.56",PHY LTS 18-64,PAYMENTS TO CLIENTS (DIRECT PAYMENTS),2102847274,1000061886
03.08.2018,ADULT SOCIAL CARE,REDACTED PERSONAL DATA,"1,775.60",PHY LTS 18-64,PAYMENTS TO CLIENTS (DIRECT PAYMENTS),REDACTED,REDACTED
03.08.2018,ADULT SOCIAL CARE,RNIB COMMUNITY LIVING SERVICE,"1,917.48",PHY LTS 18-64,SUPPORTED LIVING,2102846714,11211087
03.08.2018,ADULT SOCIAL CARE,PEOPLEPLUS ILS,"1,998.60",PHY LTS 18-64,PAYMENTS TO CLIENTS (DIRECT PAYMENTS),2102846912,1000061886
03.08.2018,ADULT SOCIAL CARE,PEOPLEPLUS ILS,"2,076.20",PHY LTS 18-64,PAYMENTS TO CLIENTS (DIRECT PAYMENTS),2102846586,1000061886
03.08.2018,ADULT SOCIAL CARE,REDACTED PERSONAL DATA,"2,088.48",PHY LTS 18-64,PAYMENTS TO CLIENTS (DIRECT PAYMENTS),REDACTED,REDACTED
03.08.2018,ADULT SOCIAL CARE,PEOPLEPLUS ILS,"2,252.96",PHY LTS 18-64,PAYMENTS TO CLIENTS (DIRECT PAYMENTS),2102847385,1000061886
03.08.2018,ADULT SOCIAL CARE,PEOPLEPLUS ILS,"2,265.76",PHY LTS 18-64,PAYMENTS TO CLIENTS (DIRECT PAYMENTS),2102847242,1000061886
03.08.2018,ADULT SOCIAL CARE,PEOPLEPLUS ILS,"2,295.04",PHY LTS 18-64,PAYMENTS TO CLIENTS (DIRECT PAYMENTS),2102846883,1000061886
03.08.2018,ADULT SOCIAL CARE,PEOPLEPLUS ILS,"2,326.60",PHY LTS 18-64,PAYMENTS TO CLIENTS (DIRECT PAYMENTS),2102847087,1000061886
03.08.2018,ADULT SOCIAL CARE,REDACTED PERSONAL DATA,"2,422.96",PHY LTS 18-64,PAYMENTS TO CLIENTS (DIRECT PAYMENTS),REDACTED,REDACTED
03.08.2018,ADULT SOCIAL CARE,REDACTED PERSONAL DATA,"2,851.96",PHY LTS 18-64,PAYMENTS TO CLIENTS (DIRECT PAYMENTS),REDACTED,REDACTED
03.08.2018,ADULT SOCIAL CARE,THE REGARD PARTNERSHIP,"2,897.88",PHY LTS 18-64,SUPPORTED LIVING,2102847243,1823223
03.08.2018,ADULT SOCIAL CARE,PEOPLEPLUS ILS,"2,989.44",PHY LTS 18-64,PAYMENTS TO CLIENTS (DIRECT PAYMENTS),2102847454,1000061886
03.08.2018,ADULT SOCIAL CARE,PEOPLEPLUS ILS,"3,254.00",PHY LTS 18-64,PAYMENTS TO CLIENTS (DIRECT PAYMENTS),2102846745,1000061886
03.08.2018,ADULT SOCIAL CARE,REDACTED PERSONAL DATA,"3,278.60",PHY LTS 18-64,PAYMENTS TO CLIENTS (DIRECT PAYMENTS),REDACTED,REDACTED
03.08.2018,ADULT SOCIAL CARE,PEOPLEPLUS ILS,"3,307.52",PHY LTS 18-64,PAYMENTS TO CLIENTS (DIRECT PAYMENTS),2102846644,1000061886
03.08.2018,ADULT SOCIAL CARE,PEOPLEPLUS ILS,"3,576.40",PHY LTS 18-64,PAYMENTS TO CLIENTS (DIRECT PAYMENTS),2102846810,1000061886
03.08.2018,ADULT SOCIAL CARE,REDACTED PERSONAL DATA,"3,589.92",PHY LTS 18-64,PAYMENTS TO CLIENTS (DIRECT PAYMENTS),REDACTED,REDACTED
03.08.2018,ADULT SOCIAL CARE,THE REGARD PARTNERSHIP,"4,056.76",PHY LTS 18-64,SUPPORTED LIVING,2102846858,1823223
03.08.2018,ADULT SOCIAL CARE,REDACTED PERSONAL DATA,"4,608.04",PHY LTS 18-64,PAYMENTS TO CLIENTS (DIRECT PAYMENTS),REDACTED,REDACTED
03.08.2018,ADULT SOCIAL CARE,PEOPLEPLUS ILS,"7,698.60",PHY LTS 18-64,PAYMENTS TO CLIENTS (DIRECT PAYMENTS),2102846870,1000061886
03.08.2018,ADULT SOCIAL CARE,AGE UK  LEWISHAM & SOUTHWARK,"-4,564.28",PHY LTS 65+,DAYCARE,2102847180,1000066751
03.08.2018,ADULT SOCIAL CARE,FRESH IDEAS & SOLUTIONS SERVICES CIC,-450.1,PHY LTS 65+,PAYMENTS TO CLIENTS (DIRECT PAYMENTS),2102846927,1000070832
03.08.2018,ADULT SOCIAL CARE,AGE UK  LEWISHAM & SOUTHWARK,-424.28,PHY LTS 65+,DAYCARE,2102847212,1000066751
03.08.2018,ADULT SOCIAL CARE,REDACTED PERSONAL DATA,-407.12,PHY LTS 65+,DISCRETIONARY FLEXIBLE FEES & INCOME,REDACTED,REDACTED
03.08.2018,ADULT SOCIAL CARE,AGE UK  LEWISHAM & SOUTHWARK,-347.14,PHY LTS 65+,DAYCARE,2102847293,1000066751
03.08.2018,ADULT SOCIAL CARE,REDACTED PERSONAL DATA,-282.08,PHY LTS 65+,DISCRETIONARY FLEXIBLE FEES & INCOME,REDACTED,REDACTED
03.08.2018,ADULT SOCIAL CARE,PEOPLEPLUS ILS,-253.32,PHY LTS 65+,DISCRETIONARY FLEXIBLE FEES & INCOME,2102846731,1000061886
03.08.2018,ADULT SOCIAL CARE,PEOPLEPLUS ILS,263.92,PHY LTS 65+,PAYMENTS TO CLIENTS (DIRECT PAYMENTS),2102847218,1000061886
03.08.2018,ADULT SOCIAL CARE,AGE UK  LEWISHAM & SOUTHWARK,264,PHY LTS 65+,DAYCARE,2102847282,1000066751
03.08.2018,ADULT SOCIAL CARE,SOUTHWARK CYPRIOT DAY CENTRE LTD,288,PHY LTS 65+,DAYCARE,2102847019,1000067736
03.08.2018,ADULT SOCIAL CARE,PEOPLEPLUS ILS,306.52,PHY LTS 65+,PAYMENTS TO CLIENTS (DIRECT PAYMENTS),2102847506,1000061886
03.08.2018,ADULT SOCIAL CARE,PEOPLEPLUS ILS,308.6,PHY LTS 65+,PAYMENTS TO CLIENTS (DIRECT PAYMENTS),2102847531,1000061886
03.08.2018,ADULT SOCIAL CARE,PEOPLEPLUS ILS,323.32,PHY LTS 65+,PAYMENTS TO CLIENTS (DIRECT PAYMENTS),2102846854,1000061886
03.08.2018,ADULT SOCIAL CARE,PEOPLEPLUS ILS,341.6,PHY LTS 65+,PAYMENTS TO CLIENTS (DIRECT PAYMENTS),2102847206,1000061886
03.08.2018,ADULT SOCIAL CARE,PEOPLEPLUS ILS,359.16,PHY LTS 65+,PAYMENTS TO CLIENTS (DIRECT PAYMENTS),2102846742,1000061886
03.08.2018,ADULT SOCIAL CARE,AGE UK  LEWISHAM & SOUTHWARK,360,PHY LTS 65+,DAYCARE,2102846804,1000066751
03.08.2018,ADULT SOCIAL CARE,AGE UK  LEWISHAM & SOUTHWARK,360,PHY LTS 65+,DAYCARE,2102846840,1000066751
03.08.2018,ADULT SOCIAL CARE,AGE UK  LEWISHAM & SOUTHWARK,360,PHY LTS 65+,DAYCARE,2102846896,1000066751
03.08.2018,ADULT SOCIAL CARE,AGE UK  LEWISHAM & SOUTHWARK,360,PHY LTS 65+,DAYCARE,2102847070,1000066751
03.08.2018,ADULT SOCIAL CARE,AGE UK  LEWISHAM & SOUTHWARK,360,PHY LTS 65+,DAYCARE,2102847099,1000066751
03.08.2018,ADULT SOCIAL CARE,AGE UK  LEWISHAM & SOUTHWARK,360,PHY LTS 65+,DAYCARE,2102847110,1000066751
03.08.2018,ADULT SOCIAL CARE,AGE UK  LEWISHAM & SOUTHWARK,360,PHY LTS 65+,DAYCARE,2102847150,1000066751
03.08.2018,ADULT SOCIAL CARE,AGE UK  LEWISHAM & SOUTHWARK,360,PHY LTS 65+,DAYCARE,2102847228,1000066751
03.08.2018,ADULT SOCIAL CARE,AGE UK  LEWISHAM & SOUTHWARK,360,PHY LTS 65+,DAYCARE,2102847272,1000066751
03.08.2018,ADULT SOCIAL CARE,AGE UK  LEWISHAM & SOUTHWARK,360,PHY LTS 65+,DAYCARE,2102847402,1000066751
03.08.2018,ADULT SOCIAL CARE,AGE UK  LEWISHAM & SOUTHWARK,360,PHY LTS 65+,DAYCARE,2102847533,1000066751
03.08.2018,ADULT SOCIAL CARE,AGE UK  LEWISHAM & SOUTHWARK,360,PHY LTS 65+,DAYCARE,2102847570,1000066751
03.08.2018,ADULT SOCIAL CARE,PEOPLEPLUS ILS,365,PHY LTS 65+,PAYMENTS TO CLIENTS (DIRECT PAYMENTS),2102847262,1000061886
03.08.2018,ADULT SOCIAL CARE,PEOPLEPLUS ILS,365.76,PHY LTS 65+,PAYMENTS TO CLIENTS (DIRECT PAYMENTS),2102847329,1000061886
03.08.2018,ADULT SOCIAL CARE,PEOPLEPLUS ILS,376.2,PHY LTS 65+,PAYMENTS TO CLIENTS (DIRECT PAYMENTS),2102847292,1000061886
03.08.2018,ADULT SOCIAL CARE,REDACTED PERSONAL DATA,385.76,PHY LTS 65+,PAYMENTS TO CLIENTS (DIRECT PAYMENTS),REDACTED,REDACTED
03.08.2018,ADULT SOCIAL CARE,PEOPLEPLUS ILS,391.48,PHY LTS 65+,PAYMENTS TO CLIENTS (DIRECT PAYMENTS),2102847473,1000061886
03.08.2018,ADULT SOCIAL CARE,PEOPLEPLUS ILS,407.56,PHY LTS 65+,PAYMENTS TO CLIENTS (DIRECT PAYMENTS),2102846780,1000061886
03.08.2018,ADULT SOCIAL CARE,PEOPLEPLUS ILS,407.56,PHY LTS 65+,PAYMENTS TO CLIENTS (DIRECT PAYMENTS),2102847140,1000061886
03.08.2018,ADULT SOCIAL CARE,BLACK ELDER GROUP SWK,408,PHY LTS 65+,DAYCARE,2102847264,1000067369
03.08.2018,ADULT SOCIAL CARE,PEOPLEPLUS ILS,410.2,PHY LTS 65+,PAYMENTS TO CLIENTS (DIRECT PAYMENTS),2102846946,1000061886
03.08.2018,ADULT SOCIAL CARE,REDACTED PERSONAL DATA,417.72,PHY LTS 65+,PAYMENTS TO CLIENTS (DIRECT PAYMENTS),REDACTED,REDACTED
03.08.2018,ADULT SOCIAL CARE,PEOPLEPLUS ILS,418,PHY LTS 65+,PAYMENTS TO CLIENTS (DIRECT PAYMENTS),2102847483,1000061886
03.08.2018,ADULT SOCIAL CARE,PEOPLEPLUS ILS,423.52,PHY LTS 65+,PAYMENTS TO CLIENTS (DIRECT PAYMENTS),2102847001,1000061886
03.08.2018,ADULT SOCIAL CARE,PEOPLEPLUS ILS,423.52,PHY LTS 65+,PAYMENTS TO CLIENTS (DIRECT PAYMENTS),2102847280,1000061886
03.08.2018,ADULT SOCIAL CARE,PEOPLEPLUS ILS,452,PHY LTS 65+,PAYMENTS TO CLIENTS (DIRECT PAYMENTS),2102847328,1000061886
03.08.2018,ADULT SOCIAL CARE,REDACTED PERSONAL DATA,468.44,PHY LTS 65+,PAYMENTS TO CLIENTS (DIRECT PAYMENTS),REDACTED,REDACTED
03.08.2018,ADULT SOCIAL CARE,PEOPLEPLUS ILS,472.88,PHY LTS 65+,PAYMENTS TO CLIENTS (DIRECT PAYMENTS),2102847441,1000061886
03.08.2018,ADULT SOCIAL CARE,REDACTED PERSONAL DATA,479.8,PHY LTS 65+,PAYMENTS TO CLIENTS (DIRECT PAYMENTS),REDACTED,REDACTED
03.08.2018,ADULT SOCIAL CARE,PEOPLEPLUS ILS,505.4,PHY LTS 65+,PAYMENTS TO CLIENTS (DIRECT PAYMENTS),2102847527,1000061886
03.08.2018,ADULT SOCIAL CARE,REDACTED PERSONAL DATA,512.04,PHY LTS 65+,PAYMENTS TO CLIENTS (DIRECT PAYMENTS),REDACTED,REDACTED
03.08.2018,ADULT SOCIAL CARE,PEOPLEPLUS ILS,517.28,PHY LTS 65+,PAYMENTS TO CLIENTS (DIRECT PAYMENTS),2102846702,1000061886
03.08.2018,ADULT SOCIAL CARE,PEOPLEPLUS ILS,535.64,PHY LTS 65+,PAYMENTS TO CLIENTS (DIRECT PAYMENTS),2102847048,1000061886
03.08.2018,ADULT SOCIAL CARE,AGE UK  LEWISHAM & SOUTHWARK,540,PHY LTS 65+,DAYCARE,2102846881,1000066751
03.08.2018,ADULT SOCIAL CARE,AGE UK  LEWISHAM & SOUTHWARK,540,PHY LTS 65+,DAYCARE,2102847178,1000066751
03.08.2018,ADULT SOCIAL CARE,AGE CONCERN LEWISHAM & SOUTHWARK,540,PHY LTS 65+,DAYCARE,2102847286,1000057586
03.08.2018,ADULT SOCIAL CARE,AGE UK  LEWISHAM & SOUTHWARK,540,PHY LTS 65+,DAYCARE,2102847300,1000066751
03.08.2018,ADULT SOCIAL CARE,REDACTED PERSONAL DATA,542.52,PHY LTS 65+,PAYMENTS TO CLIENTS (DIRECT PAYMENTS),REDACTED,REDACTED
03.08.2018,ADULT SOCIAL CARE,FRESH IDEAS & SOLUTIONS SERVICES CIC,545.87,PHY LTS 65+,PAYMENTS TO CLIENTS (DIRECT PAYMENTS),2102846975,1000070832
03.08.2018,ADULT SOCIAL CARE,PEOPLEPLUS ILS,546.04,PHY LTS 65+,PAYMENTS TO CLIENTS (DIRECT PAYMENTS),2102846846,1000061886
03.08.2018,ADULT SOCIAL CARE,PEOPLEPLUS ILS,552.2,PHY LTS 65+,PAYMENTS TO CLIENTS (DIRECT PAYMENTS),2102846875,1000061886
03.08.2018,ADULT SOCIAL CARE,PEOPLEPLUS ILS,556.52,PHY LTS 65+,PAYMENTS TO CLIENTS (DIRECT PAYMENTS),2102847033,1000061886
03.08.2018,ADULT SOCIAL CARE,PEOPLEPLUS ILS,556.52,PHY LTS 65+,PAYMENTS TO CLIENTS (DIRECT PAYMENTS),2102847484,1000061886
03.08.2018,ADULT SOCIAL CARE,PEOPLEPLUS ILS,564.32,PHY LTS 65+,PAYMENTS TO CLIENTS (DIRECT PAYMENTS),2102846798,1000061886
03.08.2018,ADULT SOCIAL CARE,PEOPLEPLUS ILS,566.96,PHY LTS 65+,PAYMENTS TO CLIENTS (DIRECT PAYMENTS),2102847323,1000061886
03.08.2018,ADULT SOCIAL CARE,PEOPLEPLUS ILS,566.96,PHY LTS 65+,PAYMENTS TO CLIENTS (DIRECT PAYMENTS),2102847428,1000061886
03.08.2018,ADULT SOCIAL CARE,PEOPLEPLUS ILS,573.2,PHY LTS 65+,PAYMENTS TO CLIENTS (DIRECT PAYMENTS),2102847196,1000061886
03.08.2018,ADULT SOCIAL CARE,PEOPLEPLUS ILS,576.05,PHY LTS 65+,PAYMENTS TO CLIENTS (DIRECT PAYMENTS),2102846630,1000061886
03.08.2018,ADULT SOCIAL CARE,PEOPLEPLUS ILS,577.4,PHY LTS 65+,PAYMENTS TO CLIENTS (DIRECT PAYMENTS),2102846813,1000061886
03.08.2018,ADULT SOCIAL CARE,BLACK ELDER GROUP SWK,588,PHY LTS 65+,DAYCARE,2102846866,1000067369
03.08.2018,ADULT SOCIAL CARE,PEOPLEPLUS ILS,594.08,PHY LTS 65+,PAYMENTS TO CLIENTS (DIRECT PAYMENTS),2102847259,1000061886
03.08.2018,ADULT SOCIAL CARE,PEOPLEPLUS ILS,598.32,PHY LTS 65+,PAYMENTS TO CLIENTS (DIRECT PAYMENTS),2102846737,1000061886
03.08.2018,ADULT SOCIAL CARE,PEOPLEPLUS ILS,599,PHY LTS 65+,PAYMENTS TO CLIENTS (DIRECT PAYMENTS),2102847320,1000061886
03.08.2018,ADULT SOCIAL CARE,REDACTED PERSONAL DATA,605.2,PHY LTS 65+,PAYMENTS TO CLIENTS (DIRECT PAYMENTS),REDACTED,REDACTED
03.08.2018,ADULT SOCIAL CARE,PEOPLEPLUS ILS,619.2,PHY LTS 65+,PAYMENTS TO CLIENTS (DIRECT PAYMENTS),2102846693,1000061886
03.08.2018,ADULT SOCIAL CARE,PEOPLEPLUS ILS,632.68,PHY LTS 65+,PAYMENTS TO CLIENTS (DIRECT PAYMENTS),2102847511,1000061886
03.08.2018,ADULT SOCIAL CARE,PEOPLEPLUS ILS,650.56,PHY LTS 65+,PAYMENTS TO CLIENTS (DIRECT PAYMENTS),2102847427,1000061886
03.08.2018,ADULT SOCIAL CARE,REDACTED PERSONAL DATA,668.8,PHY LTS 65+,PAYMENTS TO CLIENTS (DIRECT PAYMENTS),REDACTED,REDACTED
03.08.2018,ADULT SOCIAL CARE,PEOPLEPLUS ILS,669.2,PHY LTS 65+,PAYMENTS TO CLIENTS (DIRECT PAYMENTS),2102847537,1000061886
03.08.2018,ADULT SOCIAL CARE,PEOPLEPLUS ILS,671.44,PHY LTS 65+,PAYMENTS TO CLIENTS (DIRECT PAYMENTS),2102847332,1000061886
03.08.2018,ADULT SOCIAL CARE,BLACK ELDER GROUP SWK,680,PHY LTS 65+,DAYCARE,2102847138,1000067369
03.08.2018,ADULT SOCIAL CARE,PEOPLEPLUS ILS,692.6,PHY LTS 65+,PAYMENTS TO CLIENTS (DIRECT PAYMENTS),2102846781,1000061886
03.08.2018,ADULT SOCIAL CARE,AGE UK  LEWISHAM & SOUTHWARK,720,PHY LTS 65+,DAYCARE,2102846901,1000066751
03.08.2018,ADULT SOCIAL CARE,AGE UK  LEWISHAM & SOUTHWARK,720,PHY LTS 65+,DAYCARE,2102847313,1000066751
03.08.2018,ADULT SOCIAL CARE,PEOPLEPLUS ILS,741.96,PHY LTS 65+,PAYMENTS TO CLIENTS (DIRECT PAYMENTS),2102846735,1000061886
03.08.2018,ADULT SOCIAL CARE,PEOPLEPLUS ILS,750.52,PHY LTS 65+,PAYMENTS TO CLIENTS (DIRECT PAYMENTS),2102847535,1000061886
03.08.2018,ADULT SOCIAL CARE,PEOPLEPLUS ILS,755.04,PHY LTS 65+,PAYMENTS TO CLIENTS (DIRECT PAYMENTS),2102847129,1000061886
03.08.2018,ADULT SOCIAL CARE,PEOPLEPLUS ILS,765.46,PHY LTS 65+,PAYMENTS TO CLIENTS (DIRECT PAYMENTS),2102847051,1000061886
03.08.2018,ADULT SOCIAL CARE,PEOPLEPLUS ILS,765.52,PHY LTS 65+,PAYMENTS TO CLIENTS (DIRECT PAYMENTS),2102847398,1000061886
03.08.2018,ADULT SOCIAL CARE,PEOPLEPLUS ILS,774.52,PHY LTS 65+,PAYMENTS TO CLIENTS (DIRECT PAYMENTS),2102847529,1000061886
03.08.2018,ADULT SOCIAL CARE,REDACTED PERSONAL DATA,783.72,PHY LTS 65+,PAYMENTS TO CLIENTS (DIRECT PAYMENTS),REDACTED,REDACTED
03.08.2018,ADULT SOCIAL CARE,REDACTED PERSONAL DATA,783.76,PHY LTS 65+,PAYMENTS TO CLIENTS (DIRECT PAYMENTS),REDACTED,REDACTED
03.08.2018,ADULT SOCIAL CARE,PEOPLEPLUS ILS,796.84,PHY LTS 65+,PAYMENTS TO CLIENTS (DIRECT PAYMENTS),2102847074,1000061886
03.08.2018,ADULT SOCIAL CARE,PEOPLEPLUS ILS,797.92,PHY LTS 65+,PAYMENTS TO CLIENTS (DIRECT PAYMENTS),2102846540,1000061886
03.08.2018,ADULT SOCIAL CARE,PEOPLEPLUS ILS,801.8,PHY LTS 65+,PAYMENTS TO CLIENTS (DIRECT PAYMENTS),2102847119,1000061886
03.08.2018,ADULT SOCIAL CARE,REDACTED PERSONAL DATA,802.84,PHY LTS 65+,PAYMENTS TO CLIENTS (DIRECT PAYMENTS),REDACTED,REDACTED
03.08.2018,ADULT SOCIAL CARE,HESTIA HOUSING & SUPPORT,804.64,PHY LTS 65+,PAYMENTS TO CLIENTS (DIRECT PAYMENTS),2102847515,1000066260
03.08.2018,ADULT SOCIAL CARE,PEOPLEPLUS ILS,811.72,PHY LTS 65+,PAYMENTS TO CLIENTS (DIRECT PAYMENTS),2102846812,1000061886
03.08.2018,ADULT SOCIAL CARE,PEOPLEPLUS ILS,844.72,PHY LTS 65+,PAYMENTS TO CLIENTS (DIRECT PAYMENTS),2102846705,1000061886
03.08.2018,ADULT SOCIAL CARE,PEOPLEPLUS ILS,844.72,PHY LTS 65+,PAYMENTS TO CLIENTS (DIRECT PAYMENTS),2102846891,1000061886
03.08.2018,ADULT SOCIAL CARE,REDACTED PERSONAL DATA,883.48,PHY LTS 65+,PAYMENTS TO CLIENTS (DIRECT PAYMENTS),REDACTED,REDACTED
03.08.2018,ADULT SOCIAL CARE,PEOPLEPLUS ILS,890.92,PHY LTS 65+,PAYMENTS TO CLIENTS (DIRECT PAYMENTS),2102846836,1000061886
03.08.2018,ADULT SOCIAL CARE,PEOPLEPLUS ILS,911.8,PHY LTS 65+,PAYMENTS TO CLIENTS (DIRECT PAYMENTS),2102846935,1000061886
03.08.2018,ADULT SOCIAL CARE,PEOPLEPLUS ILS,953.6,PHY LTS 65+,PAYMENTS TO CLIENTS (DIRECT PAYMENTS),2102846953,1000061886
03.08.2018,ADULT SOCIAL CARE,PEOPLEPLUS ILS,964.04,PHY LTS 65+,PAYMENTS TO CLIENTS (DIRECT PAYMENTS),2102847419,1000061886
03.08.2018,ADULT SOCIAL CARE,PEOPLEPLUS ILS,992.6,PHY LTS 65+,PAYMENTS TO CLIENTS (DIRECT PAYMENTS),2102846884,1000061886
03.08.2018,ADULT SOCIAL CARE,REDACTED PERSONAL DATA,994,PHY LTS 65+,PAYMENTS TO CLIENTS (DIRECT PAYMENTS),REDACTED,REDACTED
03.08.2018,ADULT SOCIAL CARE,REDACTED PERSONAL DATA,"1,023.20",PHY LTS 65+,PAYMENTS TO CLIENTS (DIRECT PAYMENTS),REDACTED,REDACTED
03.08.2018,ADULT SOCIAL CARE,PEOPLEPLUS ILS,"1,026.76",PHY LTS 65+,PAYMENTS TO CLIENTS (DIRECT PAYMENTS),2102847381,1000061886
03.08.2018,ADULT SOCIAL CARE,PEOPLEPLUS ILS,"1,077.68",PHY LTS 65+,PAYMENTS TO CLIENTS (DIRECT PAYMENTS),2102847523,1000061886
03.08.2018,ADULT SOCIAL CARE,REDACTED PERSONAL DATA,"1,106.80",PHY LTS 65+,PAYMENTS TO CLIENTS (DIRECT PAYMENTS),REDACTED,REDACTED
03.08.2018,ADULT SOCIAL CARE,REDACTED PERSONAL DATA,"1,107.72",PHY LTS 65+,PAYMENTS TO CLIENTS (DIRECT PAYMENTS),REDACTED,REDACTED
03.08.2018,ADULT SOCIAL CARE,PEOPLEPLUS ILS,"1,126.80",PHY LTS 65+,PAYMENTS TO CLIENTS (DIRECT PAYMENTS),2102847442,1000061886
03.08.2018,ADULT SOCIAL CARE,PEOPLEPLUS ILS,"1,133.48",PHY LTS 65+,PAYMENTS TO CLIENTS (DIRECT PAYMENTS),2102846992,1000061886
03.08.2018,ADULT SOCIAL CARE,REDACTED PERSONAL DATA,"1,149.52",PHY LTS 65+,PAYMENTS TO CLIENTS (DIRECT PAYMENTS),REDACTED,REDACTED
03.08.2018,ADULT SOCIAL CARE,PEOPLEPLUS ILS,"1,188.32",PHY LTS 65+,PAYMENTS TO CLIENTS (DIRECT PAYMENTS),2102846684,1000061886
03.08.2018,ADULT SOCIAL CARE,PEOPLEPLUS ILS,"1,192.40",PHY LTS 65+,PAYMENTS TO CLIENTS (DIRECT PAYMENTS),2102847319,1000061886
03.08.2018,ADULT SOCIAL CARE,PEOPLEPLUS ILS,"1,253.99",PHY LTS 65+,PAYMENTS TO CLIENTS (DIRECT PAYMENTS),2102847487,1000061886
03.08.2018,ADULT SOCIAL CARE,REDACTED PERSONAL DATA,"1,274.00",PHY LTS 65+,PAYMENTS TO CLIENTS (DIRECT PAYMENTS),REDACTED,REDACTED
03.08.2018,ADULT SOCIAL CARE,PEOPLEPLUS ILS,"1,288.00",PHY LTS 65+,PAYMENTS TO CLIENTS (DIRECT PAYMENTS),2102846842,1000061886
03.08.2018,ADULT SOCIAL CARE,REDACTED PERSONAL DATA,"1,371.76",PHY LTS 65+,PAYMENTS TO CLIENTS (DIRECT PAYMENTS),REDACTED,REDACTED
03.08.2018,ADULT SOCIAL CARE,PEOPLEPLUS ILS,"1,413.40",PHY LTS 65+,PAYMENTS TO CLIENTS (DIRECT PAYMENTS),2102847121,1000061886
03.08.2018,ADULT SOCIAL CARE,PEOPLEPLUS ILS,"1,428.08",PHY LTS 65+,PAYMENTS TO CLIENTS (DIRECT PAYMENTS),2102846768,1000061886
03.08.2018,ADULT SOCIAL CARE,PEOPLEPLUS ILS,"1,517.92",PHY LTS 65+,PAYMENTS TO CLIENTS (DIRECT PAYMENTS),2102846837,1000061886
03.08.2018,ADULT SOCIAL CARE,REDACTED PERSONAL DATA,"1,586.60",PHY LTS 65+,PAYMENTS TO CLIENTS (DIRECT PAYMENTS),REDACTED,REDACTED
03.08.2018,ADULT SOCIAL CARE,PEOPLEPLUS ILS,"1,634.32",PHY LTS 65+,PAYMENTS TO CLIENTS (DIRECT PAYMENTS),2102847412,1000061886
03.08.2018,ADULT SOCIAL CARE,PEOPLEPLUS ILS,"1,652.00",PHY LTS 65+,PAYMENTS TO CLIENTS (DIRECT PAYMENTS),2102847553,1000061886
03.08.2018,ADULT SOCIAL CARE,REDACTED PERSONAL DATA,"1,774.72",PHY LTS 65+,PAYMENTS TO CLIENTS (DIRECT PAYMENTS),REDACTED,REDACTED
03.08.2018,ADULT SOCIAL CARE,PEOPLEPLUS ILS,"1,820.00",PHY LTS 65+,PAYMENTS TO CLIENTS (DIRECT PAYMENTS),2102846793,1000061886
03.08.2018,ADULT SOCIAL CARE,PEOPLEPLUS ILS,"1,845.40",PHY LTS 65+,PAYMENTS TO CLIENTS (DIRECT PAYMENTS),2102846580,1000061886
03.08.2018,ADULT SOCIAL CARE,PEOPLEPLUS ILS,"2,154.71",PHY LTS 65+,PAYMENTS TO CLIENTS (DIRECT PAYMENTS),2102847530,1000061886
03.08.2018,ADULT SOCIAL CARE,PEOPLEPLUS ILS,"2,211.44",PHY LTS 65+,PAYMENTS TO CLIENTS (DIRECT PAYMENTS),2102846730,1000061886
03.08.2018,ADULT SOCIAL CARE,PEOPLEPLUS ILS,"2,307.20",PHY LTS 65+,PAYMENTS TO CLIENTS (DIRECT PAYMENTS),2102846944,1000061886
03.08.2018,ADULT SOCIAL CARE,PEOPLEPLUS ILS,"2,681.60",PHY LTS 65+,PAYMENTS TO CLIENTS (DIRECT PAYMENTS),2102846747,1000061886
03.08.2018,ADULT SOCIAL CARE,PEOPLEPLUS ILS,"2,780.40",PHY LTS 65+,PAYMENTS TO CLIENTS (DIRECT PAYMENTS),2102846773,1000061886
03.08.2018,ADULT SOCIAL CARE,PEOPLEPLUS ILS,"3,469.09",PHY LTS 65+,PAYMENTS TO CLIENTS (DIRECT PAYMENTS),2102847265,1000061886
03.08.2018,ADULT SOCIAL CARE,CHOICE SUPPORT,"4,347.44",PHY LTS 65+,SUPPORTED LIVING,2102846703,1104183
03.08.2018,ADULT SOCIAL CARE,PEOPLEPLUS ILS,"4,411.60",PHY LTS 65+,PAYMENTS TO CLIENTS (DIRECT PAYMENTS),2102847290,1000061886
03.08.2018,ADULT SOCIAL CARE,F A ALBIN AND SONS,900,PUBLIC FUNERALS S.46,MISCELLANEOUS EXPENSES,5902314410,11313949
03.08.2018,ADULT SOCIAL CARE,F A ALBIN AND SONS,982,PUBLIC FUNERALS S.46,MISCELLANEOUS EXPENSES,5902314415,11313949
03.08.2018,ADULT SOCIAL CARE,F A ALBIN AND SONS,"1,064.00",PUBLIC FUNERALS S.46,MISCELLANEOUS EXPENSES,5902314408,11313949
03.08.2018,ADULT SOCIAL CARE,F A ALBIN AND SONS,"1,190.00",PUBLIC FUNERALS S.46,PAYMENTS TO CLIENTS (DIRECT PAYMENTS),2102847776,11313949
03.08.2018,ADULT SOCIAL CARE,F A ALBIN AND SONS,"1,288.00",PUBLIC FUNERALS S.46,MISCELLANEOUS EXPENSES,5902314412,11313949
03.08.2018,ADULT SOCIAL CARE,PEOPLEPLUS ILS,"1,188.00",S.75 PHB LBS SHARE,RECOVERABLE COSTS INCL. HEALTH,2102847244,1000061886
03.08.2018,ADULT SOCIAL CARE,LEWISHAM INDO CHINESE COMMUNITY,258.72,SEN LTS 65+,DAYCARE,2102847375,1000076593
03.08.2018,ADULT SOCIAL CARE,PEOPLEPLUS ILS,271.72,SOCIAL ISOLATION,PAYMENTS TO CLIENTS (DIRECT PAYMENTS),2102847340,1000061886
03.08.2018,ADULT SOCIAL CARE,AGE UK  LEWISHAM & SOUTHWARK,360,SOCIAL ISOLATION,DAYCARE,2102846799,1000066751
03.08.2018,ADULT SOCIAL CARE,BLACK ELDER GROUP SWK,368,SOCIAL ISOLATION,DAYCARE,2102847387,1000067369
03.08.2018,ADULT SOCIAL CARE,PEOPLEPLUS ILS,423.52,SOCIAL ISOLATION,PAYMENTS TO CLIENTS (DIRECT PAYMENTS),2102846775,1000061886
03.08.2018,ADULT SOCIAL CARE,PEOPLEPLUS ILS,501.6,SOCIAL ISOLATION,PAYMENTS TO CLIENTS (DIRECT PAYMENTS),2102846831,1000061886
03.08.2018,ADULT SOCIAL CARE,AGE UK  LEWISHAM & SOUTHWARK,540,SOCIAL ISOLATION,DAYCARE,2102846763,1000066751
03.08.2018,ADULT SOCIAL CARE,AGE UK  LEWISHAM & SOUTHWARK,540,SOCIAL ISOLATION,DAYCARE,2102847002,1000066751
03.08.2018,ADULT SOCIAL CARE,AGE UK  LEWISHAM & SOUTHWARK,540,SOCIAL ISOLATION,DAYCARE,2102847251,1000066751
03.08.2018,ADULT SOCIAL CARE,PEOPLEPLUS ILS,546.04,SOCIAL ISOLATION,PAYMENTS TO CLIENTS (DIRECT PAYMENTS),2102847201,1000061886
03.08.2018,ADULT SOCIAL CARE,REDACTED PERSONAL DATA,614.4,SOCIAL ISOLATION,PAYMENTS TO CLIENTS (DIRECT PAYMENTS),REDACTED,REDACTED
03.08.2018,ADULT SOCIAL CARE,REDACTED PERSONAL DATA,839.6,SOCIAL ISOLATION,PAYMENTS TO CLIENTS (DIRECT PAYMENTS),REDACTED,REDACTED
03.08.2018,ADULT SOCIAL CARE,AGE UK  LEWISHAM & SOUTHWARK,900,SOCIAL ISOLATION,DAYCARE,2102847380,1000066751
03.08.2018,ADULT SOCIAL CARE,PEOPLEPLUS ILS,"1,218.56",SOCIAL ISOLATION,PAYMENTS TO CLIENTS (DIRECT PAYMENTS),2102846819,1000061886
03.08.2018,ADULT SOCIAL CARE,PEOPLEPLUS ILS,"1,329.80",SOCIAL ISOLATION,PAYMENTS TO CLIENTS (DIRECT PAYMENTS),2102847541,1000061886
03.08.2018,ADULT SOCIAL CARE,PEOPLEPLUS ILS,"2,027.12",SOCIAL ISOLATION,PAYMENTS TO CLIENTS (DIRECT PAYMENTS),2102847097,1000061886
03.08.2018,ADULT SOCIAL CARE,PEOPLEPLUS ILS,"2,131.20",SOCIAL ISOLATION,PAYMENTS TO CLIENTS (DIRECT PAYMENTS),2102847031,1000061886
03.08.2018,ADULT SOCIAL CARE,BUDDI LTD,480,SOUTHWARK RESOURCE CENTRE,EQUIPMENT PURCHASE & REPAIR,5902314345,1000067243
03.08.2018,ADULT SOCIAL CARE,REDACTED PERSONAL DATA,259.68,SPEC NEEDS CHILDREN,PAYMENTS TO CLIENTS (DIRECT PAYMENTS),REDACTED,REDACTED
03.08.2018,ADULT SOCIAL CARE,REDACTED PERSONAL DATA,259.68,SPEC NEEDS CHILDREN,PAYMENTS TO CLIENTS (DIRECT PAYMENTS),REDACTED,REDACTED
03.08.2018,ADULT SOCIAL CARE,REDACTED PERSONAL DATA,259.68,SPEC NEEDS CHILDREN,PAYMENTS TO CLIENTS (DIRECT PAYMENTS),REDACTED,REDACTED
03.08.2018,ADULT SOCIAL CARE,REDACTED PERSONAL DATA,259.68,SPEC NEEDS CHILDREN,PAYMENTS TO CLIENTS (DIRECT PAYMENTS),REDACTED,REDACTED
03.08.2018,ADULT SOCIAL CARE,REDACTED PERSONAL DATA,259.68,SPEC NEEDS CHILDREN,PAYMENTS TO CLIENTS (DIRECT PAYMENTS),REDACTED,REDACTED
03.08.2018,ADULT SOCIAL CARE,REDACTED PERSONAL DATA,267.16,SPEC NEEDS CHILDREN,PAYMENTS TO CLIENTS (DIRECT PAYMENTS),REDACTED,REDACTED
03.08.2018,ADULT SOCIAL CARE,PEOPLEPLUS ILS,273.68,SPEC NEEDS CHILDREN,PAYMENTS TO CLIENTS (DIRECT PAYMENTS),2102847595,1000061886
03.08.2018,ADULT SOCIAL CARE,PEOPLEPLUS ILS,273.68,SPEC NEEDS CHILDREN,PAYMENTS TO CLIENTS (DIRECT PAYMENTS),2102847602,1000061886
03.08.2018,ADULT SOCIAL CARE,PEOPLEPLUS ILS,273.68,SPEC NEEDS CHILDREN,PAYMENTS TO CLIENTS (DIRECT PAYMENTS),2102847615,1000061886
03.08.2018,ADULT SOCIAL CARE,PEOPLEPLUS ILS,288.68,SPEC NEEDS CHILDREN,PAYMENTS TO CLIENTS (DIRECT PAYMENTS),2102847761,1000061886
03.08.2018,ADULT SOCIAL CARE,PEOPLEPLUS ILS,299.6,SPEC NEEDS CHILDREN,PAYMENTS TO CLIENTS (DIRECT PAYMENTS),2102847604,1000061886
03.08.2018,ADULT SOCIAL CARE,PEOPLEPLUS ILS,305.96,SPEC NEEDS CHILDREN,PAYMENTS TO CLIENTS (DIRECT PAYMENTS),2102847667,1000061886
03.08.2018,ADULT SOCIAL CARE,REDACTED PERSONAL DATA,307.2,SPEC NEEDS CHILDREN,PAYMENTS TO CLIENTS (DIRECT PAYMENTS),REDACTED,REDACTED
03.08.2018,ADULT SOCIAL CARE,REDACTED PERSONAL DATA,307.2,SPEC NEEDS CHILDREN,PAYMENTS TO CLIENTS (DIRECT PAYMENTS),REDACTED,REDACTED
03.08.2018,ADULT SOCIAL CARE,PEOPLEPLUS ILS,321.2,SPEC NEEDS CHILDREN,PAYMENTS TO CLIENTS (DIRECT PAYMENTS),2102847754,1000061886
03.08.2018,ADULT SOCIAL CARE,REDACTED PERSONAL DATA,329.56,SPEC NEEDS CHILDREN,PAYMENTS TO CLIENTS (DIRECT PAYMENTS),REDACTED,REDACTED
03.08.2018,ADULT SOCIAL CARE,REDACTED PERSONAL DATA,329.56,SPEC NEEDS CHILDREN,PAYMENTS TO CLIENTS (DIRECT PAYMENTS),REDACTED,REDACTED
03.08.2018,ADULT SOCIAL CARE,PEOPLEPLUS ILS,333.6,SPEC NEEDS CHILDREN,PAYMENTS TO CLIENTS (DIRECT PAYMENTS),2102847671,1000061886
03.08.2018,ADULT SOCIAL CARE,PEOPLEPLUS ILS,333.6,SPEC NEEDS CHILDREN,PAYMENTS TO CLIENTS (DIRECT PAYMENTS),2102847747,1000061886
03.08.2018,ADULT SOCIAL CARE,PEOPLEPLUS ILS,348.6,SPEC NEEDS CHILDREN,PAYMENTS TO CLIENTS (DIRECT PAYMENTS),2102847670,1000061886
03.08.2018,ADULT SOCIAL CARE,PEOPLEPLUS ILS,359.52,SPEC NEEDS CHILDREN,PAYMENTS TO CLIENTS (DIRECT PAYMENTS),2102847630,1000061886
03.08.2018,ADULT SOCIAL CARE,PEOPLEPLUS ILS,363.56,SPEC NEEDS CHILDREN,PAYMENTS TO CLIENTS (DIRECT PAYMENTS),2102847740,1000061886
03.08.2018,ADULT SOCIAL CARE,REDACTED PERSONAL DATA,380.28,SPEC NEEDS CHILDREN,PAYMENTS TO CLIENTS (DIRECT PAYMENTS),REDACTED,REDACTED
03.08.2018,ADULT SOCIAL CARE,PEOPLEPLUS ILS,389.48,SPEC NEEDS CHILDREN,PAYMENTS TO CLIENTS (DIRECT PAYMENTS),2102847736,1000061886
03.08.2018,ADULT SOCIAL CARE,PEOPLEPLUS ILS,393.52,SPEC NEEDS CHILDREN,PAYMENTS TO CLIENTS (DIRECT PAYMENTS),2102847654,1000061886
03.08.2018,ADULT SOCIAL CARE,PEOPLEPLUS ILS,393.52,SPEC NEEDS CHILDREN,PAYMENTS TO CLIENTS (DIRECT PAYMENTS),2102847683,1000061886
03.08.2018,ADULT SOCIAL CARE,PEOPLEPLUS ILS,393.52,SPEC NEEDS CHILDREN,PAYMENTS TO CLIENTS (DIRECT PAYMENTS),2102847687,1000061886
03.08.2018,ADULT SOCIAL CARE,PEOPLEPLUS ILS,393.52,SPEC NEEDS CHILDREN,PAYMENTS TO CLIENTS (DIRECT PAYMENTS),2102847725,1000061886
03.08.2018,ADULT SOCIAL CARE,REDACTED PERSONAL DATA,409.48,SPEC NEEDS CHILDREN,PAYMENTS TO CLIENTS (DIRECT PAYMENTS),REDACTED,REDACTED
03.08.2018,ADULT SOCIAL CARE,PEOPLEPLUS ILS,423.48,SPEC NEEDS CHILDREN,PAYMENTS TO CLIENTS (DIRECT PAYMENTS),2102847688,1000061886
03.08.2018,ADULT SOCIAL CARE,PEOPLEPLUS ILS,433.36,SPEC NEEDS CHILDREN,PAYMENTS TO CLIENTS (DIRECT PAYMENTS),2102847689,1000061886
03.08.2018,ADULT SOCIAL CARE,PEOPLEPLUS ILS,433.36,SPEC NEEDS CHILDREN,PAYMENTS TO CLIENTS (DIRECT PAYMENTS),2102847700,1000061886
03.08.2018,ADULT SOCIAL CARE,PEOPLEPLUS ILS,445,SPEC NEEDS CHILDREN,PAYMENTS TO CLIENTS (DIRECT PAYMENTS),2102847633,1000061886
03.08.2018,ADULT SOCIAL CARE,PEOPLEPLUS ILS,453.44,SPEC NEEDS CHILDREN,PAYMENTS TO CLIENTS (DIRECT PAYMENTS),2102847690,1000061886
03.08.2018,ADULT SOCIAL CARE,PEOPLEPLUS ILS,453.44,SPEC NEEDS CHILDREN,PAYMENTS TO CLIENTS (DIRECT PAYMENTS),2102847760,1000061886
03.08.2018,ADULT SOCIAL CARE,PEOPLEPLUS ILS,468.44,SPEC NEEDS CHILDREN,PAYMENTS TO CLIENTS (DIRECT PAYMENTS),2102847697,1000061886
03.08.2018,ADULT SOCIAL CARE,REDACTED PERSONAL DATA,469.4,SPEC NEEDS CHILDREN,PAYMENTS TO CLIENTS (DIRECT PAYMENTS),REDACTED,REDACTED
03.08.2018,ADULT SOCIAL CARE,REDACTED PERSONAL DATA,484.4,SPEC NEEDS CHILDREN,PAYMENTS TO CLIENTS (DIRECT PAYMENTS),REDACTED,REDACTED
03.08.2018,ADULT SOCIAL CARE,PEOPLEPLUS ILS,492.52,SPEC NEEDS CHILDREN,PAYMENTS TO CLIENTS (DIRECT PAYMENTS),2102847613,1000061886
03.08.2018,ADULT SOCIAL CARE,PEOPLEPLUS ILS,498.4,SPEC NEEDS CHILDREN,PAYMENTS TO CLIENTS (DIRECT PAYMENTS),2102847653,1000061886
03.08.2018,ADULT SOCIAL CARE,REDACTED PERSONAL DATA,499.36,SPEC NEEDS CHILDREN,PAYMENTS TO CLIENTS (DIRECT PAYMENTS),REDACTED,REDACTED
03.08.2018,ADULT SOCIAL CARE,REDACTED PERSONAL DATA,502.6,SPEC NEEDS CHILDREN,PAYMENTS TO CLIENTS (DIRECT PAYMENTS),REDACTED,REDACTED
03.08.2018,ADULT SOCIAL CARE,REDACTED PERSONAL DATA,512.36,SPEC NEEDS CHILDREN,PAYMENTS TO CLIENTS (DIRECT PAYMENTS),REDACTED,REDACTED
03.08.2018,ADULT SOCIAL CARE,PEOPLEPLUS ILS,513.36,SPEC NEEDS CHILDREN,PAYMENTS TO CLIENTS (DIRECT PAYMENTS),2102847597,1000061886
03.08.2018,ADULT SOCIAL CARE,PEOPLEPLUS ILS,513.36,SPEC NEEDS CHILDREN,PAYMENTS TO CLIENTS (DIRECT PAYMENTS),2102847738,1000061886
03.08.2018,ADULT SOCIAL CARE,REDACTED PERSONAL DATA,522.6,SPEC NEEDS CHILDREN,PAYMENTS TO CLIENTS (DIRECT PAYMENTS),REDACTED,REDACTED
03.08.2018,ADULT SOCIAL CARE,REDACTED PERSONAL DATA,522.6,SPEC NEEDS CHILDREN,PAYMENTS TO CLIENTS (DIRECT PAYMENTS),REDACTED,REDACTED
03.08.2018,ADULT SOCIAL CARE,PEOPLEPLUS ILS,533.2,SPEC NEEDS CHILDREN,PAYMENTS TO CLIENTS (DIRECT PAYMENTS),2102847644,1000061886
03.08.2018,ADULT SOCIAL CARE,REDACTED PERSONAL DATA,539.28,SPEC NEEDS CHILDREN,PAYMENTS TO CLIENTS (DIRECT PAYMENTS),REDACTED,REDACTED
03.08.2018,ADULT SOCIAL CARE,REDACTED PERSONAL DATA,559.28,SPEC NEEDS CHILDREN,PAYMENTS TO CLIENTS (DIRECT PAYMENTS),REDACTED,REDACTED
03.08.2018,ADULT SOCIAL CARE,REDACTED PERSONAL DATA,569.24,SPEC NEEDS CHILDREN,PAYMENTS TO CLIENTS (DIRECT PAYMENTS),REDACTED,REDACTED
03.08.2018,ADULT SOCIAL CARE,PEOPLEPLUS ILS,573.28,SPEC NEEDS CHILDREN,PAYMENTS TO CLIENTS (DIRECT PAYMENTS),2102847612,1000061886
03.08.2018,ADULT SOCIAL CARE,PEOPLEPLUS ILS,573.28,SPEC NEEDS CHILDREN,PAYMENTS TO CLIENTS (DIRECT PAYMENTS),2102847616,1000061886
03.08.2018,ADULT SOCIAL CARE,PEOPLEPLUS ILS,573.28,SPEC NEEDS CHILDREN,PAYMENTS TO CLIENTS (DIRECT PAYMENTS),2102847696,1000061886
03.08.2018,ADULT SOCIAL CARE,PEOPLEPLUS ILS,597.4,SPEC NEEDS CHILDREN,PAYMENTS TO CLIENTS (DIRECT PAYMENTS),2102847716,1000061886
03.08.2018,ADULT SOCIAL CARE,REDACTED PERSONAL DATA,606.56,SPEC NEEDS CHILDREN,PAYMENTS TO CLIENTS (DIRECT PAYMENTS),REDACTED,REDACTED
03.08.2018,ADULT SOCIAL CARE,PEOPLEPLUS ILS,608.4,SPEC NEEDS CHILDREN,PAYMENTS TO CLIENTS (DIRECT PAYMENTS),2102847614,1000061886
03.08.2018,ADULT SOCIAL CARE,REDACTED PERSONAL DATA,619.2,SPEC NEEDS CHILDREN,PAYMENTS TO CLIENTS (DIRECT PAYMENTS),REDACTED,REDACTED
03.08.2018,ADULT SOCIAL CARE,PEOPLEPLUS ILS,642.32,SPEC NEEDS CHILDREN,PAYMENTS TO CLIENTS (DIRECT PAYMENTS),2102847744,1000061886
03.08.2018,ADULT SOCIAL CARE,PEOPLEPLUS ILS,656.16,SPEC NEEDS CHILDREN,PAYMENTS TO CLIENTS (DIRECT PAYMENTS),2102847727,1000061886
03.08.2018,ADULT SOCIAL CARE,PEOPLEPLUS ILS,680.2,SPEC NEEDS CHILDREN,PAYMENTS TO CLIENTS (DIRECT PAYMENTS),2102847692,1000061886
03.08.2018,ADULT SOCIAL CARE,REDACTED PERSONAL DATA,715.96,SPEC NEEDS CHILDREN,PAYMENTS TO CLIENTS (DIRECT PAYMENTS),REDACTED,REDACTED
03.08.2018,ADULT SOCIAL CARE,PEOPLEPLUS ILS,716.12,SPEC NEEDS CHILDREN,PAYMENTS TO CLIENTS (DIRECT PAYMENTS),2102847620,1000061886
03.08.2018,ADULT SOCIAL CARE,REDACTED PERSONAL DATA,719.04,SPEC NEEDS CHILDREN,PAYMENTS TO CLIENTS (DIRECT PAYMENTS),REDACTED,REDACTED
03.08.2018,ADULT SOCIAL CARE,PEOPLEPLUS ILS,723.08,SPEC NEEDS CHILDREN,PAYMENTS TO CLIENTS (DIRECT PAYMENTS),2102847649,1000061886
03.08.2018,ADULT SOCIAL CARE,PEOPLEPLUS ILS,723.08,SPEC NEEDS CHILDREN,PAYMENTS TO CLIENTS (DIRECT PAYMENTS),2102847712,1000061886
03.08.2018,ADULT SOCIAL CARE,PEOPLEPLUS ILS,723.08,SPEC NEEDS CHILDREN,PAYMENTS TO CLIENTS (DIRECT PAYMENTS),2102847728,1000061886
03.08.2018,ADULT SOCIAL CARE,REDACTED PERSONAL DATA,739.04,SPEC NEEDS CHILDREN,PAYMENTS TO CLIENTS (DIRECT PAYMENTS),REDACTED,REDACTED
03.08.2018,ADULT SOCIAL CARE,REDACTED PERSONAL DATA,768.8,SPEC NEEDS CHILDREN,PAYMENTS TO CLIENTS (DIRECT PAYMENTS),REDACTED,REDACTED
03.08.2018,ADULT SOCIAL CARE,REDACTED PERSONAL DATA,828.92,SPEC NEEDS CHILDREN,PAYMENTS TO CLIENTS (DIRECT PAYMENTS),REDACTED,REDACTED
03.08.2018,ADULT SOCIAL CARE,REDACTED PERSONAL DATA,838.88,SPEC NEEDS CHILDREN,PAYMENTS TO CLIENTS (DIRECT PAYMENTS),REDACTED,REDACTED
03.08.2018,ADULT SOCIAL CARE,PEOPLEPLUS ILS,842.92,SPEC NEEDS CHILDREN,PAYMENTS TO CLIENTS (DIRECT PAYMENTS),2102847663,1000061886
03.08.2018,ADULT SOCIAL CARE,REDACTED PERSONAL DATA,858.88,SPEC NEEDS CHILDREN,PAYMENTS TO CLIENTS (DIRECT PAYMENTS),REDACTED,REDACTED
03.08.2018,ADULT SOCIAL CARE,REDACTED PERSONAL DATA,881.6,SPEC NEEDS CHILDREN,PAYMENTS TO CLIENTS (DIRECT PAYMENTS),REDACTED,REDACTED
03.08.2018,ADULT SOCIAL CARE,REDACTED PERSONAL DATA,888.84,SPEC NEEDS CHILDREN,PAYMENTS TO CLIENTS (DIRECT PAYMENTS),REDACTED,REDACTED
03.08.2018,ADULT SOCIAL CARE,PEOPLEPLUS ILS,900.7,SPEC NEEDS CHILDREN,PAYMENTS TO CLIENTS (DIRECT PAYMENTS),2102847661,1000061886
03.08.2018,ADULT SOCIAL CARE,PEOPLEPLUS ILS,931.52,SPEC NEEDS CHILDREN,PAYMENTS TO CLIENTS (DIRECT PAYMENTS),2102847608,1000061886
03.08.2018,ADULT SOCIAL CARE,REDACTED PERSONAL DATA,938.8,SPEC NEEDS CHILDREN,PAYMENTS TO CLIENTS (DIRECT PAYMENTS),REDACTED,REDACTED
03.08.2018,ADULT SOCIAL CARE,PEOPLEPLUS ILS,967.4,SPEC NEEDS CHILDREN,PAYMENTS TO CLIENTS (DIRECT PAYMENTS),2102847642,1000061886
03.08.2018,ADULT SOCIAL CARE,REDACTED PERSONAL DATA,"1,005.20",SPEC NEEDS CHILDREN,PAYMENTS TO CLIENTS (DIRECT PAYMENTS),REDACTED,REDACTED
03.08.2018,ADULT SOCIAL CARE,PEOPLEPLUS ILS,"1,077.00",SPEC NEEDS CHILDREN,PAYMENTS TO CLIENTS (DIRECT PAYMENTS),2102847691,1000061886
03.08.2018,ADULT SOCIAL CARE,PEOPLEPLUS ILS,"1,082.60",SPEC NEEDS CHILDREN,PAYMENTS TO CLIENTS (DIRECT PAYMENTS),2102847695,1000061886
03.08.2018,ADULT SOCIAL CARE,REDACTED PERSONAL DATA,"1,133.56",SPEC NEEDS CHILDREN,PAYMENTS TO CLIENTS (DIRECT PAYMENTS),REDACTED,REDACTED
03.08.2018,ADULT SOCIAL CARE,REDACTED PERSONAL DATA,"1,148.16",SPEC NEEDS CHILDREN,PAYMENTS TO CLIENTS (DIRECT PAYMENTS),REDACTED,REDACTED
03.08.2018,ADULT SOCIAL CARE,REDACTED PERSONAL DATA,"1,218.40",SPEC NEEDS CHILDREN,PAYMENTS TO CLIENTS (DIRECT PAYMENTS),REDACTED,REDACTED
03.08.2018,ADULT SOCIAL CARE,PEOPLEPLUS ILS,"1,232.40",SPEC NEEDS CHILDREN,PAYMENTS TO CLIENTS (DIRECT PAYMENTS),2102847609,1000061886
03.08.2018,ADULT SOCIAL CARE,PEOPLEPLUS ILS,"1,326.40",SPEC NEEDS CHILDREN,PAYMENTS TO CLIENTS (DIRECT PAYMENTS),2102847686,1000061886
03.08.2018,ADULT SOCIAL CARE,PEOPLEPLUS ILS,"1,326.40",SPEC NEEDS CHILDREN,PAYMENTS TO CLIENTS (DIRECT PAYMENTS),2102847717,1000061886
03.08.2018,ADULT SOCIAL CARE,PEOPLEPLUS ILS,"1,490.00",SPEC NEEDS CHILDREN,PAYMENTS TO CLIENTS (DIRECT PAYMENTS),2102847720,1000061886
03.08.2018,ADULT SOCIAL CARE,PEOPLEPLUS ILS,"1,541.80",SPEC NEEDS CHILDREN,PAYMENTS TO CLIENTS (DIRECT PAYMENTS),2102847621,1000061886
03.08.2018,ADULT SOCIAL CARE,PEOPLEPLUS ILS,"1,559.76",SPEC NEEDS CHILDREN,PAYMENTS TO CLIENTS (DIRECT PAYMENTS),2102847752,1000061886
03.08.2018,ADULT SOCIAL CARE,PEOPLEPLUS ILS,"1,849.00",SPEC NEEDS CHILDREN,PAYMENTS TO CLIENTS (DIRECT PAYMENTS),2102847705,1000061886
03.08.2018,ADULT SOCIAL CARE,PEOPLEPLUS ILS,"1,882.84",SPEC NEEDS CHILDREN,PAYMENTS TO CLIENTS (DIRECT PAYMENTS),2102847638,1000061886
03.08.2018,ADULT SOCIAL CARE,PEOPLEPLUS ILS,"1,900.80",SPEC NEEDS CHILDREN,PAYMENTS TO CLIENTS (DIRECT PAYMENTS),2102847693,1000061886
03.08.2018,ADULT SOCIAL CARE,REDACTED PERSONAL DATA,"2,010.40",SPEC NEEDS CHILDREN,PAYMENTS TO CLIENTS (DIRECT PAYMENTS),REDACTED,REDACTED
03.08.2018,ADULT SOCIAL CARE,REDACTED PERSONAL DATA,"2,604.80",SPEC NEEDS CHILDREN,PAYMENTS TO CLIENTS (DIRECT PAYMENTS),REDACTED,REDACTED
03.08.2018,ADULT SOCIAL CARE,PEOPLEPLUS ILS,"3,676.20",SPEC NEEDS CHILDREN,PAYMENTS TO CLIENTS (DIRECT PAYMENTS),2102847657,1000061886
03.08.2018,ADULT SOCIAL CARE,REDACTED PERSONAL DATA,"4,543.40",SPEC NEEDS CHILDREN,PAYMENTS TO CLIENTS (DIRECT PAYMENTS),REDACTED,REDACTED
03.08.2018,ADULT SOCIAL CARE,PEOPLEPLUS ILS,"4,721.00",SPEC NEEDS CHILDREN,PAYMENTS TO CLIENTS (DIRECT PAYMENTS),2102847706,1000061886
03.08.2018,ADULT SOCIAL CARE,REDACTED PERSONAL DATA,"10,928.00",SPEC NEEDS CHILDREN,PAYMENTS TO CLIENTS (DIRECT PAYMENTS),REDACTED,REDACTED
03.08.2018,ADULT SOCIAL CARE,REDACTED PERSONAL DATA,259.68,TRANSITIONS 14-18YRS,PAYMENTS TO CLIENTS (DIRECT PAYMENTS),REDACTED,REDACTED
03.08.2018,ADULT SOCIAL CARE,REDACTED PERSONAL DATA,269.6,TRANSITIONS 14-18YRS,PAYMENTS TO CLIENTS (DIRECT PAYMENTS),REDACTED,REDACTED
03.08.2018,ADULT SOCIAL CARE,REDACTED PERSONAL DATA,307.2,TRANSITIONS 14-18YRS,PAYMENTS TO CLIENTS (DIRECT PAYMENTS),REDACTED,REDACTED
03.08.2018,ADULT SOCIAL CARE,REDACTED PERSONAL DATA,307.2,TRANSITIONS 14-18YRS,PAYMENTS TO CLIENTS (DIRECT PAYMENTS),REDACTED,REDACTED
03.08.2018,ADULT SOCIAL CARE,PEOPLEPLUS ILS,308.88,TRANSITIONS 14-18YRS,PAYMENTS TO CLIENTS (DIRECT PAYMENTS),2102847764,1000061886
03.08.2018,ADULT SOCIAL CARE,PEOPLEPLUS ILS,313.6,TRANSITIONS 14-18YRS,PAYMENTS TO CLIENTS (DIRECT PAYMENTS),2102847684,1000061886
03.08.2018,ADULT SOCIAL CARE,REDACTED PERSONAL DATA,327.2,TRANSITIONS 14-18YRS,PAYMENTS TO CLIENTS (DIRECT PAYMENTS),REDACTED,REDACTED
03.08.2018,ADULT SOCIAL CARE,PEOPLEPLUS ILS,333.6,TRANSITIONS 14-18YRS,PAYMENTS TO CLIENTS (DIRECT PAYMENTS),2102847592,1000061886
03.08.2018,ADULT SOCIAL CARE,PEOPLEPLUS ILS,333.6,TRANSITIONS 14-18YRS,PAYMENTS TO CLIENTS (DIRECT PAYMENTS),2102847669,1000061886
03.08.2018,ADULT SOCIAL CARE,PEOPLEPLUS ILS,348.6,TRANSITIONS 14-18YRS,PAYMENTS TO CLIENTS (DIRECT PAYMENTS),2102847619,1000061886
03.08.2018,ADULT SOCIAL CARE,REDACTED PERSONAL DATA,359.52,TRANSITIONS 14-18YRS,PAYMENTS TO CLIENTS (DIRECT PAYMENTS),REDACTED,REDACTED
03.08.2018,ADULT SOCIAL CARE,PEOPLEPLUS ILS,383.44,TRANSITIONS 14-18YRS,PAYMENTS TO CLIENTS (DIRECT PAYMENTS),2102847648,1000061886
03.08.2018,ADULT SOCIAL CARE,PEOPLEPLUS ILS,393.52,TRANSITIONS 14-18YRS,PAYMENTS TO CLIENTS (DIRECT PAYMENTS),2102847598,1000061886
03.08.2018,ADULT SOCIAL CARE,REDACTED PERSONAL DATA,394.4,TRANSITIONS 14-18YRS,PAYMENTS TO CLIENTS (DIRECT PAYMENTS),REDACTED,REDACTED
03.08.2018,ADULT SOCIAL CARE,REDACTED PERSONAL DATA,414.92,TRANSITIONS 14-18YRS,PAYMENTS TO CLIENTS (DIRECT PAYMENTS),REDACTED,REDACTED
03.08.2018,ADULT SOCIAL CARE,REDACTED PERSONAL DATA,430.8,TRANSITIONS 14-18YRS,PAYMENTS TO CLIENTS (DIRECT PAYMENTS),REDACTED,REDACTED
03.08.2018,ADULT SOCIAL CARE,PEOPLEPLUS ILS,464.8,TRANSITIONS 14-18YRS,PAYMENTS TO CLIENTS (DIRECT PAYMENTS),2102847731,1000061886
03.08.2018,ADULT SOCIAL CARE,REDACTED PERSONAL DATA,494,TRANSITIONS 14-18YRS,PAYMENTS TO CLIENTS (DIRECT PAYMENTS),REDACTED,REDACTED
03.08.2018,ADULT SOCIAL CARE,PEOPLEPLUS ILS,513.36,TRANSITIONS 14-18YRS,PAYMENTS TO CLIENTS (DIRECT PAYMENTS),2102847763,1000061886
03.08.2018,ADULT SOCIAL CARE,REDACTED PERSONAL DATA,522.6,TRANSITIONS 14-18YRS,PAYMENTS TO CLIENTS (DIRECT PAYMENTS),REDACTED,REDACTED
03.08.2018,ADULT SOCIAL CARE,REDACTED PERSONAL DATA,539.28,TRANSITIONS 14-18YRS,PAYMENTS TO CLIENTS (DIRECT PAYMENTS),REDACTED,REDACTED
03.08.2018,ADULT SOCIAL CARE,PEOPLEPLUS ILS,563.2,TRANSITIONS 14-18YRS,PAYMENTS TO CLIENTS (DIRECT PAYMENTS),2102847600,1000061886
03.08.2018,ADULT SOCIAL CARE,REDACTED PERSONAL DATA,599.2,TRANSITIONS 14-18YRS,PAYMENTS TO CLIENTS (DIRECT PAYMENTS),REDACTED,REDACTED
03.08.2018,ADULT SOCIAL CARE,PEOPLEPLUS ILS,603.24,TRANSITIONS 14-18YRS,PAYMENTS TO CLIENTS (DIRECT PAYMENTS),2102847666,1000061886
03.08.2018,ADULT SOCIAL CARE,REDACTED PERSONAL DATA,619.2,TRANSITIONS 14-18YRS,PAYMENTS TO CLIENTS (DIRECT PAYMENTS),REDACTED,REDACTED
03.08.2018,ADULT SOCIAL CARE,PEOPLEPLUS ILS,643.6,TRANSITIONS 14-18YRS,PAYMENTS TO CLIENTS (DIRECT PAYMENTS),2102847734,1000061886
03.08.2018,ADULT SOCIAL CARE,REDACTED PERSONAL DATA,648.96,TRANSITIONS 14-18YRS,PAYMENTS TO CLIENTS (DIRECT PAYMENTS),REDACTED,REDACTED
03.08.2018,ADULT SOCIAL CARE,REDACTED PERSONAL DATA,709.17,TRANSITIONS 14-18YRS,PAYMENTS TO CLIENTS (DIRECT PAYMENTS),REDACTED,REDACTED
03.08.2018,ADULT SOCIAL CARE,REDACTED PERSONAL DATA,718,TRANSITIONS 14-18YRS,PAYMENTS TO CLIENTS (DIRECT PAYMENTS),REDACTED,REDACTED
03.08.2018,ADULT SOCIAL CARE,REDACTED PERSONAL DATA,738,TRANSITIONS 14-18YRS,PAYMENTS TO CLIENTS (DIRECT PAYMENTS),REDACTED,REDACTED
03.08.2018,ADULT SOCIAL CARE,PEOPLEPLUS ILS,743.4,TRANSITIONS 14-18YRS,PAYMENTS TO CLIENTS (DIRECT PAYMENTS),2102847672,1000061886
03.08.2018,ADULT SOCIAL CARE,PEOPLEPLUS ILS,754,TRANSITIONS 14-18YRS,PAYMENTS TO CLIENTS (DIRECT PAYMENTS),2102847704,1000061886
03.08.2018,ADULT SOCIAL CARE,PEOPLEPLUS ILS,782.8,TRANSITIONS 14-18YRS,PAYMENTS TO CLIENTS (DIRECT PAYMENTS),2102847751,1000061886
03.08.2018,ADULT SOCIAL CARE,PEOPLEPLUS ILS,857.68,TRANSITIONS 14-18YRS,PAYMENTS TO CLIENTS (DIRECT PAYMENTS),2102847629,1000061886
03.08.2018,ADULT SOCIAL CARE,PEOPLEPLUS ILS,861.32,TRANSITIONS 14-18YRS,PAYMENTS TO CLIENTS (DIRECT PAYMENTS),2102847714,1000061886
03.08.2018,ADULT SOCIAL CARE,PEOPLEPLUS ILS,895.6,TRANSITIONS 14-18YRS,PAYMENTS TO CLIENTS (DIRECT PAYMENTS),2102847618,1000061886
03.08.2018,ADULT SOCIAL CARE,REDACTED PERSONAL DATA,917.52,TRANSITIONS 14-18YRS,PAYMENTS TO CLIENTS (DIRECT PAYMENTS),REDACTED,REDACTED
03.08.2018,ADULT SOCIAL CARE,REDACTED PERSONAL DATA,958.8,TRANSITIONS 14-18YRS,PAYMENTS TO CLIENTS (DIRECT PAYMENTS),REDACTED,REDACTED
03.08.2018,ADULT SOCIAL CARE,REDACTED PERSONAL DATA,978.72,TRANSITIONS 14-18YRS,PAYMENTS TO CLIENTS (DIRECT PAYMENTS),REDACTED,REDACTED
03.08.2018,ADULT SOCIAL CARE,PEOPLEPLUS ILS,986.44,TRANSITIONS 14-18YRS,PAYMENTS TO CLIENTS (DIRECT PAYMENTS),2102847685,1000061886
03.08.2018,ADULT SOCIAL CARE,PEOPLEPLUS ILS,988,TRANSITIONS 14-18YRS,PAYMENTS TO CLIENTS (DIRECT PAYMENTS),2102847748,1000061886
03.08.2018,ADULT SOCIAL CARE,REDACTED PERSONAL DATA,992.08,TRANSITIONS 14-18YRS,PAYMENTS TO CLIENTS (DIRECT PAYMENTS),REDACTED,REDACTED
03.08.2018,ADULT SOCIAL CARE,PEOPLEPLUS ILS,"1,039.20",TRANSITIONS 14-18YRS,PAYMENTS TO CLIENTS (DIRECT PAYMENTS),2102847643,1000061886
03.08.2018,ADULT SOCIAL CARE,REDACTED PERSONAL DATA,"1,076.80",TRANSITIONS 14-18YRS,PAYMENTS TO CLIENTS (DIRECT PAYMENTS),REDACTED,REDACTED
03.08.2018,ADULT SOCIAL CARE,PEOPLEPLUS ILS,"1,112.56",TRANSITIONS 14-18YRS,PAYMENTS TO CLIENTS (DIRECT PAYMENTS),2102847606,1000061886
03.08.2018,ADULT SOCIAL CARE,REDACTED PERSONAL DATA,"1,137.00",TRANSITIONS 14-18YRS,PAYMENTS TO CLIENTS (DIRECT PAYMENTS),REDACTED,REDACTED
03.08.2018,ADULT SOCIAL CARE,REDACTED PERSONAL DATA,"1,168.80",TRANSITIONS 14-18YRS,PAYMENTS TO CLIENTS (DIRECT PAYMENTS),REDACTED,REDACTED
03.08.2018,ADULT SOCIAL CARE,REDACTED PERSONAL DATA,"1,323.28",TRANSITIONS 14-18YRS,PAYMENTS TO CLIENTS (DIRECT PAYMENTS),REDACTED,REDACTED
03.08.2018,ADULT SOCIAL CARE,PEOPLEPLUS ILS,"1,334.00",TRANSITIONS 14-18YRS,PAYMENTS TO CLIENTS (DIRECT PAYMENTS),2102847698,1000061886
03.08.2018,ADULT SOCIAL CARE,REDACTED PERSONAL DATA,"1,384.20",TRANSITIONS 14-18YRS,PAYMENTS TO CLIENTS (DIRECT PAYMENTS),REDACTED,REDACTED
03.08.2018,ADULT SOCIAL CARE,REDACTED PERSONAL DATA,"1,456.00",TRANSITIONS 14-18YRS,PAYMENTS TO CLIENTS (DIRECT PAYMENTS),REDACTED,REDACTED
03.08.2018,ADULT SOCIAL CARE,REDACTED PERSONAL DATA,"1,814.00",TRANSITIONS 14-18YRS,PAYMENTS TO CLIENTS (DIRECT PAYMENTS),REDACTED,REDACTED
03.08.2018,ADULT SOCIAL CARE,PEOPLEPLUS ILS,"3,044.08",TRANSITIONS 14-18YRS,PAYMENTS TO CLIENTS (DIRECT PAYMENTS),2102847622,1000061886
03.08.2018,ADULT SOCIAL CARE,PEOPLEPLUS ILS,"4,062.80",TRANSITIONS 14-18YRS,PAYMENTS TO CLIENTS (DIRECT PAYMENTS),2102847718,1000061886
03.08.2018,ADULT SOCIAL CARE,PEOPLEPLUS ILS,"4,922.56",TRANSITIONS 14-18YRS,PAYMENTS TO CLIENTS (DIRECT PAYMENTS),2102847749,1000061886
03.08.2018,ASSET MANAGEMENT,STANNAH LIFT SERVICES LTD,"1,840.00",ADAPTATIONS,BUILDING R&M,5902314293,1063595
03.08.2018,ASSET MANAGEMENT,ANTHONY OGUNFEIBO & CO SOLICITORS,458,DISREPAIR,LEGAL FEES & COURT COSTS,2102846447,1000057216
03.08.2018,CENTRAL FUNCTIONS,VEOLIA ES (UK)LTD,"154,189.00",HEATING ACCOUNT,GAS,5902314300,1824835
03.08.2018,CENTRAL FUNCTIONS,POSTURITE (UK) LTD,639.58,HOME OWNERSHIP,EQUIPMENT PURCHASE & REPAIR,5902314132,11015468
03.08.2018,CHIEF EXECUTIVE,MATERIALS SCIENCE CONSULTANTS LTD,450,CAPITAL PS (REGEN),CONSTRUCTION FEES - ARCHITECT,5902313842,1000044926
03.08.2018,CHIEF EXECUTIVE,SHARPE PRITCHARD LLP,"1,436.00",CAPITAL PS (REGEN),CONSTRUCTION FEES - LEGAL,5902314291,1790085
03.08.2018,CHIEF EXECUTIVE'S OFFICE,WELLFAIR2WORK LTD,"31,195.00",CHIEF EXEC'S OFFICE,GRANTS,5902314112,1000078927
03.08.2018,CHILDREN'S SERVICES,IMAGO LTD,"13,353.10",ACTION FOR CHILDRENS,EXTERNAL AGENCIES AND BODIES,5902314306,1000076913
03.08.2018,CHILDREN'S SERVICES,INSTITUTE OF LEARNING UNLIMITED,"8,400.00",ADULT SKILLS BUDGET,GRANTS,5902314284,1000068095
03.08.2018,CHILDREN'S SERVICES,SWIIS FOSTER CARE LTD,375,AGENCY FOSTERING,EXTERNAL AGENCIES AND BODIES,5902314387,1000069633
03.08.2018,CHILDREN'S SERVICES,WESLEY GRYK SOLICITORS,"1,032.00",CARE GRPS  4 TO 6,OTHER PAYMENTS FOR CLIENTS,5902314366,1000080430
03.08.2018,CHILDREN'S SERVICES,MILES PRIVATE HIRE LTD,"1,078.00",CARE PRACTICE GROUP SET C,OTHER PAYMENTS FOR CLIENTS,5902314376,1000078590
03.08.2018,CHILDREN'S SERVICES,MILES PRIVATE HIRE LTD,"1,666.00",CARE PRACTICE GROUP SET C,OTHER PAYMENTS FOR CLIENTS,5902314377,1000078590
03.08.2018,CHILDREN'S SERVICES,MILES PRIVATE HIRE LTD,"2,058.00",CARE PRACTICE GROUP SET C,OTHER PAYMENTS FOR CLIENTS,5902314374,1000078590
03.08.2018,CHILDREN'S SERVICES,CATCH 22 CHARITY LTD,"80,000.00",CATCH 22 INNOVATION GRANT,PROFESSIONAL FEES,5902313336,1000061518
03.08.2018,CHILDREN'S SERVICES,ACTION FOR CHILDREN SERVICES LTD,315.4,CLA TEAM SAFEGUARDING,EXTERNAL AGENCIES AND BODIES,5902314389,1000049984
03.08.2018,CHILDREN'S SERVICES,ACTION FOR CHILDREN SERVICES LTD,330.25,CLA TEAM SAFEGUARDING,EXTERNAL AGENCIES AND BODIES,5902314398,1000049984
03.08.2018,CHILDREN'S SERVICES,INTERPRETING DIRECT CO (UK) LTD,"8,127.50",FINANCE,INTERPRETING SERVICES,5902314382,1000070133
03.08.2018,CHILDREN'S SERVICES,REDACTED PERSONAL DATA,627,JOINT FUNDED ADULT CARE PACKAGES,PAYMENTS TO CLIENTS (DIRECT PAYMENTS),REDACTED,REDACTED
03.08.2018,CHILDREN'S SERVICES,REDACTED PERSONAL DATA,"2,853.65",PFA TEAM SOUTHWARK 9 PLUS,M&M ALLOWANCE CO-OPS,REDACTED,REDACTED
03.08.2018,CHILDREN'S SERVICES,PEARSON PUBLISHING LTD,"4,250.00",PUPIL PREMIUM CURRENT YEAR,HARDWARE,5902314403,1000048910
03.08.2018,CHILDREN'S SERVICES,PEARSON PUBLISHING LTD,"4,250.00",PUPIL PREMIUM CURRENT YEAR,SOFTWARE,5902314403,1000048910
03.08.2018,CHILDREN'S SERVICES,LOGICOUS LTD,"1,211.25",RESIDENCE ORDERS,EXTERNAL AGENCIES AND BODIES,5902314393,1000073852
03.08.2018,CHILDREN'S SERVICES,THE WIN PROJECT LTD,912,SEMI INDEPENDENT,OTHER PAYMENTS FOR CLIENTS,5902314369,1000080710
03.08.2018,CHILDREN'S SERVICES,MIME CONSULTING LTD,600,TACKLING TROUBLED FAMILIES,EXTERNAL AGENCIES AND BODIES,5902314409,1000057079
03.08.2018,COMMUNITIES,COOPER CLOSE CO-OPERATIVE LTD,"14,525.50",COOPERS CLOSE CO-OP,M&M ALLOWANCE CO-OPS,5902314288,1216346
03.08.2018,CUSTOMER EXPERIENCE,HQN LTD,"1,500.00",HOUSING NEEDS,EQUIPMENT PURCHASE & REPAIR,5902314404,1000035252
03.08.2018,DULWICH COMMUNITY COUNCIL,PAXTON GREEN TIME BANK,"3,000.00",TIME2CELEBRATE KINGSWOOD,GRANT,CHEQUE PAYMENT,CHEQUE PAYMENT
03.08.2018,ENVIRONMENT AND LEISURE,MATERIALS SCIENCE CONSULTANTS LTD,450,CAPITAL PS (LEISURE),CONSTRUCTION FEES - ARCHITECT,5902314183,1000044926
03.08.2018,ENVIRONMENT AND LEISURE,GOOSE GREEN PRIMARY AND NURSERY SCHOOL,"1,165.00",CAPITAL PS (LEISURE),CAPITAL GRANTS,5902314402,1000070613
03.08.2018,ENVIRONMENT DIRECTORATE,R J MOTORS LIMITED,250.68,COMMERCIAL VEH CTRL A/C,VEHICLE REPAIRS & MAINTENANCE,5902314358,1000047106
03.08.2018,ENVIRONMENT DIRECTORATE,R J MOTORS LIMITED,451.8,COMMERCIAL VEH CTRL A/C,VEHICLE REPAIRS & MAINTENANCE,5902314287,1000047106
03.08.2018,ENVIRONMENT DIRECTORATE,R J MOTORS LIMITED,992.2,COMMERCIAL VEH CTRL A/C,VEHICLE REPAIRS & MAINTENANCE,5902314302,1000047106
03.08.2018,ENVIRONMENT DIRECTORATE,PAULINE SPENCER,370,JETS NORTH TEAM,TRAINING,5902314356,1000069376
03.08.2018,ENVIRONMENT DIRECTORATE,PAULINE SPENCER,370,JETS NORTH TEAM,TRAINING,5902314356,1000069376
03.08.2018,ENVIRONMENT DIRECTORATE,PAULINE SPENCER,370,JETS NORTH TEAM,TRAINING,5902314356,1000069376
03.08.2018,ENVIRONMENT DIRECTORATE,PAULINE SPENCER,700,JETS NORTH TEAM,TRAINING,5902314356,1000069376
03.08.2018,ENVIRONMENT DIRECTORATE,PAULINE SPENCER,750,JETS NORTH TEAM,TRAINING,5902314356,1000069376
03.08.2018,F & C S EXCLUDING CORPORATE BUDGETS,THE COLLEGE OF LAW SERVICES LTD,"1,395.00",LEGAL SVCES MANAGEMENT,PROFESSIONAL FEES,5902314308,1016846
03.08.2018,F & C S EXCLUDING CORPORATE BUDGETS,MILLS & REEVE,"2,950.00",LEGAL SVCES MANAGEMENT,PROFESSIONAL FEES,5902314211,1000053603
03.08.2018,F & C S EXCLUDING CORPORATE BUDGETS,BUDGET CARPETS,387.5,SESS,OTHER PAYMENTS FOR CLIENTS,5902314357,11319076
03.08.2018,LEISURE DIRECTORATE,NPOWER,-426.77,BRANDON LIBRARY,ELECTRICITY,5902314361,1000055441
03.08.2018,LEISURE DIRECTORATE,NPOWER,-307.41,BRANDON LIBRARY,ELECTRICITY,5902314330,1000055441
03.08.2018,LEISURE DIRECTORATE,NPOWER,281.99,BRANDON LIBRARY,ELECTRICITY,5902314368,1000055441
03.08.2018,LEISURE DIRECTORATE,NPOWER,307.41,BRANDON LIBRARY,ELECTRICITY,5902314320,1000055441
03.08.2018,LEISURE DIRECTORATE,NPOWER,307.41,BRANDON LIBRARY,ELECTRICITY,5902314326,1000055441
03.08.2018,LEISURE DIRECTORATE,NPOWER,426.77,BRANDON LIBRARY,ELECTRICITY,5902314360,1000055441
03.08.2018,LEISURE DIRECTORATE,ASKEWS & HOLTS LIBRARY SERVICES LTD,996.25,STOCK SERVICES,BOOKS & PUBLICATIONS,5902313915,1494168
03.08.2018,MODERNISATION HGF,ROYAL MAIL GROUP LTD,"2,502.00",160 TOOLEY ST.,POSTAGES,5902314316,1000008168
03.08.2018,MODERNISATION HGF,ETC VENUES LTD,330,CORPORATE TRAINING BUDGETS,TRAINING,5902314312,1000045226
03.08.2018,MODERNISATION HGF,JOHN STATTERS ASSOCIATES,"2,375.00",HR PAYROLL COSTS,CONSULTANTS SERVICES,5902314319,1000065600
03.08.2018,MODERNISATION HGF,JOHN STATTERS ASSOCIATES,"3,562.50",HR PAYROLL COSTS,CONSULTANTS SERVICES,5902314321,1000065600
03.08.2018,MODERNISATION HGF,SHARPE PRITCHARD LLP,896,IT MANAGEMENT,CONSULTANTS SERVICES,5902314296,1790085
03.08.2018,PLANNING AND TRANSPORT,DELVA PATMAN REDLER LLP,750,STRATEGIC APPLICATIONS,PROFESSIONAL FEES,5902314281,1000003301
03.08.2018,PROPERTY SERVICES,MARK STOLWORTHY,"4,579.38",PROPERTY SERVICES,PROFESSIONAL FEES,5902314391,1000081242
03.08.2018,PUBLIC HEALTH,LEWISHAM AND GREENWICH NHS TRUST,839.5,SEXUAL HEALTH - STI,EXTERNAL AGENCIES AND BODIES,5902314372,1000076183
03.08.2018,RESIDENT SERVICES,CHARTWELLS,"4,431.22",SUPPORTED HOSTELS,CATERING MATERIALS & SUPPLIES,5902314304,1000010625
03.08.2018,RESIDENT SERVICES,PPROPERTYPLACEBOOK LTD,"1,085.00",TA PLACEMENTS,EXTERNAL AGENCIES AND BODIES,5902314322,1000077817
03.08.2018,RESIDENT SERVICES,PPROPERTYPLACEBOOK LTD,"2,167.00",TA PLACEMENTS,EXTERNAL AGENCIES AND BODIES,5902314324,1000077817
03.08.2018,RESIDENT SERVICES,TAAKSVALE HOUSING LTD,"2,790.00",TA PLACEMENTS,EXTERNAL AGENCIES AND BODIES,5902314309,1000073665
03.08.2018,RESIDENT SERVICES,PPROPERTYPLACEBOOK LTD,"3,150.00",TA PLACEMENTS,EXTERNAL AGENCIES AND BODIES,5902314329,1000077817
03.08.2018,REVENUES AND BENEFITS,HEYWOOD LIMITED,"3,589.45",PENSIONS,CONSULTANTS SERVICES,5902314338,1000038304
03.08.2018,SOUTHWARK BUILDING SERVICES,EXTREME ROPE ACCESS LTD,670,BUSINESS SUPPORT,OTHER CONTRACTORS,2102847775,3000001805
03.08.2018,SOUTHWARK BUILDING SERVICES,KEMICO LIMITED,924.48,STORES/LOGISTICS,CREDITORS -GR/IR CLEARING ACCOUNT,5902314370,1000030226
03.08.2018,SOUTHWARK BUILDING SERVICES,KEMICO LIMITED,"1,080.00",STORES/LOGISTICS,CREDITORS -GR/IR CLEARING ACCOUNT,5902314370,1000030226
03.08.2018,SOUTHWARK BUILDING SERVICES,KEMICO LIMITED,"1,296.00",STORES/LOGISTICS,CREDITORS -GR/IR CLEARING ACCOUNT,5902314370,1000030226
04.08.2018,ADULT SOCIAL CARE,CAREWATCH LEWISHAM,"10,026.70",REABLEMENT SERVICE,HOMECARE - IC,5902313609,1000042627
04.08.2018,ASSET MANAGEMENT,AJM ADAPTIONS LTD,290,ADAPTATIONS,BUILDING R&M,5902314140,1000080297
04.08.2018,CENTRAL FUNCTIONS,STANBURY BUILDING SERVICES LTD,"2,995.00",COMMERCIAL PROPERTIES,BUILDING R&M,5902314388,1000078207
04.08.2018,CHIEF EXECUTIVE,INFINITY NETWORKS LTD,332,CAPITAL PS (REGEN),CONSTRUCTION,5902314285,1000035571
04.08.2018,CHIEF EXECUTIVE,INFINITY NETWORKS LTD,553,CAPITAL PS (REGEN),CONSTRUCTION,5902314285,1000035571
04.08.2018,CHIEF EXECUTIVE,INFINITY NETWORKS LTD,630,CAPITAL PS (REGEN),CONSTRUCTION,5902314285,1000035571
04.08.2018,CHIEF EXECUTIVE,INFINITY NETWORKS LTD,"1,176.00",CAPITAL PS (REGEN),CONSTRUCTION,5902314285,1000035571
04.08.2018,CHIEF EXECUTIVE,INFINITY NETWORKS LTD,"2,235.00",CAPITAL PS (REGEN),CONSTRUCTION,5902314285,1000035571
04.08.2018,CHILDREN'S SERVICES,HEALTHCARE & TRANSPORT SERVICES,660,SCH TRANS - CONTRACT COST,HIRED VEHICLES,5902314318,1000042743
04.08.2018,CHILDREN'S SERVICES,HEALTHCARE & TRANSPORT SERVICES,730,SCH TRANS - CONTRACT COST,HIRED VEHICLES,5902314318,1000042743
04.08.2018,CHILDREN'S SERVICES,HEALTHCARE & TRANSPORT SERVICES,"9,078.00",SCH TRANS - CONTRACT COST,CAB FARES,5902314075,1000042743
04.08.2018,CHILDREN'S SERVICES,HEALTHCARE & TRANSPORT SERVICES,"19,060.00",SCH TRANS - CONTRACT COST,HIRED VEHICLES,5902314318,1000042743
04.08.2018,CUSTOMER EXPERIENCE HGF,PESH FLOWERS,"1,980.00",REGISTRARS,OFFICE EXPENSES,5902314063,1441954
04.08.2018,ENVIRONMENT AND LEISURE,BELL PHILLIPS ARCHITECTS LTD,"4,536.00",CAPITAL PS (LEISURE),CONSTRUCTION FEES  - EXTERNAL,5902313604,1000069307
04.08.2018,HOUSING HRA,CALFORD SEADEN LLP,"2,027.71",CAPITAL PS (HRA),CONSTRUCTION FEES  - EXTERNAL,5902314214,1061592
04.08.2018,HOUSING HRA,CALFORD SEADEN LLP,"4,231.15",CAPITAL PS (HRA),CONSTRUCTION FEES  - EXTERNAL,5902313547,1061592
04.08.2018,HOUSING HRA,CALFORD SEADEN LLP,"4,741.06",CAPITAL PS (HRA),CONSTRUCTION FEES  - EXTERNAL,5902314198,1061592
04.08.2018,HOUSING HRA,MORGAN SINDALL PLC,"303,022.00",CAPITAL PS (HRA),CONSTRUCTION MAIN CONTRACT -CERTIFICATED,2102845258,3000001556
04.08.2018,LEISURE DIRECTORATE,THE STOCKROOM ARCHIVE MANAGEMENT LTD,"6,500.00",HERITAGE,OTHER CONTRACTORS,5902314292,1000079579
05.08.2018,CHILDREN AND ADULT,PELLINGS LLP,581.25,CAPITAL PS (EDUCATION),CONSTRUCTION MAIN CONTRACT -CERTIFICATED,5902314103,1009262
05.08.2018,CHILDREN AND ADULT,PELLINGS LLP,581.25,CAPITAL PS (EDUCATION),CONSTRUCTION MAIN CONTRACT -CERTIFICATED,5902314103,1009262
05.08.2018,CHILDREN AND ADULT,PELLINGS LLP,581.25,CAPITAL PS (EDUCATION),CONSTRUCTION MAIN CONTRACT -CERTIFICATED,5902314103,1009262
05.08.2018,CHILDREN AND ADULT,PELLINGS LLP,581.25,CAPITAL PS (EDUCATION),CONSTRUCTION MAIN CONTRACT -CERTIFICATED,5902314103,1009262
05.08.2018,ENVIRONMENT AND LEISURE,PELLINGS LLP,"1,488.00",CAPITAL PS (LEISURE),CONSTRUCTION FEES  - EXTERNAL,5902314289,1009262
05.08.2018,ENVIRONMENT DIRECTORATE,THE T.P. PARTNERSHIP,445,ESTATE CLEANING-GENERAL,OTHER CONTRACTORS,5902314182,1000045906
05.08.2018,ENVIRONMENT DIRECTORATE,THE T.P. PARTNERSHIP,455,ESTATE CLEANING-GENERAL,OTHER CONTRACTORS,5902314186,1000045906
05.08.2018,ENVIRONMENT DIRECTORATE,CROWN OIL UK,383.03,SANDGATE STREET,VEHICLE FUEL,5902313790,1000074865
05.08.2018,ENVIRONMENT DIRECTORATE,SOUTHWARK NEWSPAPER LTD,276,STREET WORKS OVERHEADS,MARKETING & PUBLICITY SERVICES,5902314263,1556957
05.08.2018,ENVIRONMENT DIRECTORATE,SOUTHWARK NEWSPAPER LTD,288,STREET WORKS OVERHEADS,MARKETING & PUBLICITY SERVICES,5902314218,1556957
05.08.2018,ENVIRONMENT DIRECTORATE,SOUTHWARK NEWSPAPER LTD,288,STREET WORKS OVERHEADS,MARKETING & PUBLICITY SERVICES,5902314220,1556957
05.08.2018,ENVIRONMENT DIRECTORATE,SOUTHWARK NEWSPAPER LTD,288,STREET WORKS OVERHEADS,MARKETING & PUBLICITY SERVICES,5902314224,1556957
05.08.2018,ENVIRONMENT DIRECTORATE,SOUTHWARK NEWSPAPER LTD,288,STREET WORKS OVERHEADS,MARKETING & PUBLICITY SERVICES,5902314260,1556957
05.08.2018,ENVIRONMENT DIRECTORATE,SOUTHWARK NEWSPAPER LTD,288,STREET WORKS OVERHEADS,MARKETING & PUBLICITY SERVICES,5902314266,1556957
05.08.2018,ENVIRONMENT DIRECTORATE,SOUTHWARK NEWSPAPER LTD,288,STREET WORKS OVERHEADS,MARKETING & PUBLICITY SERVICES,5902314267,1556957
05.08.2018,ENVIRONMENT DIRECTORATE,SOUTHWARK NEWSPAPER LTD,300,STREET WORKS OVERHEADS,MARKETING & PUBLICITY SERVICES,5902314269,1556957
05.08.2018,F & C S EXCLUDING CORPORATE BUDGETS,DSI BILLING SERVICES LTD,"2,554.08",ADMINISTRATIVE SUPPORT,POSTAGES,5902314315,1000058640
05.08.2018,HOUSING HRA,CARTER JONAS LLP,"1,400.00",CAPITAL PS (HRA),LAND & BUILDINGS ACQUISITION FEES,5902314118,1000073124
05.08.2018,HOUSING HRA,CARTER JONAS LLP,"3,700.00",CAPITAL PS (REGEN),LAND & BUILDINGS ACQUISITION FEES,5902314122,1000073124
05.08.2018,MODERNISATION HGF,TMS DEVELOPMENT INTERNATIONAL LTD,465,ORG TRANSFORMATION,TRAINING,5902314280,1000080859
06.08.2018,ADULT SOCIAL CARE,REDACTED PERSONAL DATA,266.65,APPOINTEESHIPS,OTHER PAYMENTS FOR CLIENTS,REDACTED,REDACTED
06.08.2018,ADULT SOCIAL CARE,CHOICE SUPPORT,400,APPOINTEESHIPS,OTHER PAYMENTS FOR CLIENTS,2102849405,1104183
06.08.2018,ADULT SOCIAL CARE,REDACTED PERSONAL DATA,"1,050.00",APPOINTEESHIPS,OTHER PAYMENTS FOR CLIENTS,REDACTED,REDACTED
06.08.2018,ADULT SOCIAL CARE,REDACTED PERSONAL DATA,"1,500.00",APPOINTEESHIPS,OTHER PAYMENTS FOR CLIENTS,REDACTED,REDACTED
06.08.2018,ADULT SOCIAL CARE,EDF ENERGY PLC,"2,102.72",APPOINTEESHIPS,OTHER PAYMENTS FOR CLIENTS,2102849399,1008746
06.08.2018,ADULT SOCIAL CARE,SENSE,"-22,400.00",LD LTS 18-64,RESIDENTIAL CARE,2102839170,1000046797
06.08.2018,ADULT SOCIAL CARE,BRANDON TRUST,-690.64,LD LTS 18-64,"MAND STATUTORY CHARGES, RESIDENTIAL",2102848258,1000042417
06.08.2018,ADULT SOCIAL CARE,ENDURANCE CARE LTD,-644.8,LD LTS 18-64,"MAND STATUTORY CHARGES, RESIDENTIAL",2102848443,1000080552
06.08.2018,ADULT SOCIAL CARE,THE REGARD PARTNERSHIP (IVY LODGE),-570.04,LD LTS 18-64,"MAND STATUTORY CHARGES, RESIDENTIAL",2102849113,11002026
06.08.2018,ADULT SOCIAL CARE,AITCH CARE HOMES (LONDON) LTD,-537.8,LD LTS 18-64,"MAND STATUTORY CHARGES, RESIDENTIAL",2102848300,1000059432
06.08.2018,ADULT SOCIAL CARE,THE PADDOCK (THE SWALLOW GROUP),-537.8,LD LTS 18-64,"MAND STATUTORY CHARGES, RESIDENTIAL",2102848400,11153854
06.08.2018,ADULT SOCIAL CARE,SAFFRONLAND HOMES,-537.8,LD LTS 18-64,"MAND STATUTORY CHARGES, RESIDENTIAL",2102848729,1000072152
06.08.2018,ADULT SOCIAL CARE,THE PADDOCK (THE SWALLOW GROUP),-537.8,LD LTS 18-64,"MAND STATUTORY CHARGES, RESIDENTIAL",2102849016,11153854
06.08.2018,ADULT SOCIAL CARE,CLEARWATER CARE (HACKNEY) LTD,-430.6,LD LTS 18-64,"MAND STATUTORY CHARGES, RESIDENTIAL",2102848619,1000070479
06.08.2018,ADULT SOCIAL CARE,GLEN CARE GROUP,-409.52,LD LTS 18-64,"MAND STATUTORY CHARGES, RESIDENTIAL",2102848272,1000050223
06.08.2018,ADULT SOCIAL CARE,CARE MANAGEMENT GROUP,-408.04,LD LTS 18-64,"MAND STATUTORY CHARGES, RESIDENTIAL",2102848871,1000040475
06.08.2018,ADULT SOCIAL CARE,BRANDON TRUST,-404.04,LD LTS 18-64,"MAND STATUTORY CHARGES, RESIDENTIAL",2102848997,1000042417
06.08.2018,ADULT SOCIAL CARE,SENSE,-402.6,LD LTS 18-64,"MAND STATUTORY CHARGES, RESIDENTIAL",2102839175,1000046797
06.08.2018,ADULT SOCIAL CARE,CARE MANAGEMENT GROUP,-402.6,LD LTS 18-64,"MAND STATUTORY CHARGES, RESIDENTIAL",2102848156,1000040475
06.08.2018,ADULT SOCIAL CARE,VOYAGE LTD (EVESLEIGH KENT),-402.6,LD LTS 18-64,"MAND STATUTORY CHARGES, RESIDENTIAL",2102848178,1000041320
06.08.2018,ADULT SOCIAL CARE,CHOICE CARE GROUP,-402.6,LD LTS 18-64,"MAND STATUTORY CHARGES, RESIDENTIAL",2102848305,1572506
06.08.2018,ADULT SOCIAL CARE,SENSE,-402.6,LD LTS 18-64,"MAND STATUTORY CHARGES, RESIDENTIAL",2102848360,1000046797
06.08.2018,ADULT SOCIAL CARE,HAZELDENE LTD,-402.6,LD LTS 18-64,"MAND STATUTORY CHARGES, RESIDENTIAL",2102848438,1000019679
06.08.2018,ADULT SOCIAL CARE,CHOICE CARE GROUP,-402.6,LD LTS 18-64,"MAND STATUTORY CHARGES, RESIDENTIAL",2102848441,1572506
06.08.2018,ADULT SOCIAL CARE,THE REGARD PARTNERSHIP,-402.6,LD LTS 18-64,"MAND STATUTORY CHARGES, RESIDENTIAL",2102848462,1823223
06.08.2018,ADULT SOCIAL CARE,HAZELDENE LTD,-402.6,LD LTS 18-64,"MAND STATUTORY CHARGES, RESIDENTIAL",2102848602,1000019679
06.08.2018,ADULT SOCIAL CARE,NEXUS PROGRAMME LTD,-402.6,LD LTS 18-64,"MAND STATUTORY CHARGES, RESIDENTIAL",2102848614,1000025336
06.08.2018,ADULT SOCIAL CARE,THE FRANCES TAYLOR FOUNDATION,-402.6,LD LTS 18-64,"MAND STATUTORY CHARGES, RESIDENTIAL",2102848792,1000007274
06.08.2018,ADULT SOCIAL CARE,31 WOODBOURNE (FRANCES TAYLOR FOUNDATION),-402.6,LD LTS 18-64,"MAND STATUTORY CHARGES, RESIDENTIAL",2102848806,1000063870
06.08.2018,ADULT SOCIAL CARE,CRAEGMOOR WILLOWS HYTHE PRIORY,-402.6,LD LTS 18-64,"MAND STATUTORY CHARGES, RESIDENTIAL",2102848926,1000072287
06.08.2018,ADULT SOCIAL CARE,SEEABILITY,-402.6,LD LTS 18-64,"MAND STATUTORY CHARGES, RESIDENTIAL",2102849139,1000043641
06.08.2018,ADULT SOCIAL CARE,HORNCASTLE CARE CENTRE,-402.6,LD LTS 18-64,"MAND STATUTORY CHARGES, NURSING",2102849175,1000060228
06.08.2018,ADULT SOCIAL CARE,ASHDENE HOUSE LIMITED,-401.56,LD LTS 18-64,"MAND STATUTORY CHARGES, RESIDENTIAL",2102849099,1000021007
06.08.2018,ADULT SOCIAL CARE,THE REGARD PARTNERSHIP,-401.12,LD LTS 18-64,"MAND STATUTORY CHARGES, RESIDENTIAL",2102848628,1823223
06.08.2018,ADULT SOCIAL CARE,THE MEATH,-400.64,LD LTS 18-64,"MAND STATUTORY CHARGES, RESIDENTIAL",2102848882,1000056796
06.08.2018,ADULT SOCIAL CARE,THE REGARD PARTNERSHIP,-400.6,LD LTS 18-64,"MAND STATUTORY CHARGES, RESIDENTIAL",2102848512,1823223
06.08.2018,ADULT SOCIAL CARE,THE REGARD PARTNERSHIP (INGLEWOOD HSE),-400.6,LD LTS 18-64,"MAND STATUTORY CHARGES, RESIDENTIAL",2102848644,11307451
06.08.2018,ADULT SOCIAL CARE,CRAEGMOOR WHEELHOUSE PRIORY,-400.6,LD LTS 18-64,"MAND STATUTORY CHARGES, RESIDENTIAL",2102848721,1000068452
06.08.2018,ADULT SOCIAL CARE,BRANDON TRUST,-400.6,LD LTS 18-64,"MAND STATUTORY CHARGES, RESIDENTIAL",2102848769,1000042417
06.08.2018,ADULT SOCIAL CARE,OGILVIE COURT,-400.6,LD LTS 18-64,"MAND STATUTORY CHARGES, RESIDENTIAL",2102848937,1910302
06.08.2018,ADULT SOCIAL CARE,BRANDON TRUST,-400.6,LD LTS 18-64,"MAND STATUTORY CHARGES, RESIDENTIAL",2102848943,1000042417
06.08.2018,ADULT SOCIAL CARE,BRANDON TRUST,-400.6,LD LTS 18-64,"MAND STATUTORY CHARGES, RESIDENTIAL",2102849036,1000042417
06.08.2018,ADULT SOCIAL CARE,CRAEGMOOR DEVONSHIRE ROAD PRIORY,-400.6,LD LTS 18-64,"MAND STATUTORY CHARGES, RESIDENTIAL",2102849053,1000068453
06.08.2018,ADULT SOCIAL CARE,CRAEGMOOR (WINDSOR HOUSE),-400.6,LD LTS 18-64,"MAND STATUTORY CHARGES, RESIDENTIAL",2102849179,1000072462
06.08.2018,ADULT SOCIAL CARE,BRANDON TRUST,-400.4,LD LTS 18-64,"MAND STATUTORY CHARGES, RESIDENTIAL",2102848253,1000042417
06.08.2018,ADULT SOCIAL CARE,INSIGHT,-395.8,LD LTS 18-64,"MAND STATUTORY CHARGES, RESIDENTIAL",2102848670,1825618
06.08.2018,ADULT SOCIAL CARE,GROVE CARE PARTNERSHIP,-391.64,LD LTS 18-64,"MAND STATUTORY CHARGES, RESIDENTIAL",2102848565,1000052893
06.08.2018,ADULT SOCIAL CARE,CLACTON FAMILY TRUST LTD,-386.6,LD LTS 18-64,"MAND STATUTORY CHARGES, RESIDENTIAL",2102849305,1000012183
06.08.2018,ADULT SOCIAL CARE,MCCH,-384.8,LD LTS 18-64,"MAND STATUTORY CHARGES, RESIDENTIAL",2102848143,1000031156
06.08.2018,ADULT SOCIAL CARE,THE REGARD PARTNERSHIP,-383,LD LTS 18-64,"MAND STATUTORY CHARGES, RESIDENTIAL",2102849124,1823223
06.08.2018,ADULT SOCIAL CARE,CRAEGMOOR HEALTHCARE,-372.6,LD LTS 18-64,"MAND STATUTORY CHARGES, RESIDENTIAL",2102848496,1323845
06.08.2018,ADULT SOCIAL CARE,THE MEATH,-360.8,LD LTS 18-64,"MAND STATUTORY CHARGES, RESIDENTIAL",2102848240,1000056796
06.08.2018,ADULT SOCIAL CARE,DIAGRAMA HEALTH CARE,-360.8,LD LTS 18-64,"MAND STATUTORY CHARGES, RESIDENTIAL",2102848370,1000075492
06.08.2018,ADULT SOCIAL CARE,CHOICE CARE GROUP,-358.6,LD LTS 18-64,"MAND STATUTORY CHARGES, RESIDENTIAL",2102848196,1572506
06.08.2018,ADULT SOCIAL CARE,GROVE CARE PARTNERSHIP,-355.32,LD LTS 18-64,"MAND STATUTORY CHARGES, RESIDENTIAL",2102849046,1000052893
06.08.2018,ADULT SOCIAL CARE,VOYAGE LTD (EVESLEIGH KENT),-349.6,LD LTS 18-64,"MAND STATUTORY CHARGES, RESIDENTIAL",2102848874,1000041320
06.08.2018,ADULT SOCIAL CARE,VALUE IN CARE LTD,-348.6,LD LTS 18-64,"MAND STATUTORY CHARGES, RESIDENTIAL",2102848451,1000041975
06.08.2018,ADULT SOCIAL CARE,FIR TREE LODGE (SEE ABILITY),-348.6,LD LTS 18-64,"MAND STATUTORY CHARGES, RESIDENTIAL",2102848516,1000052257
06.08.2018,ADULT SOCIAL CARE,CARE MANAGEMENT GROUP,-343.8,LD LTS 18-64,"MAND STATUTORY CHARGES, RESIDENTIAL",2102848725,1000040475
06.08.2018,ADULT SOCIAL CARE,LEONARD CHESHIRE (GARDEN HOUSE),-343.8,LD LTS 18-64,"MAND STATUTORY CHARGES, RESIDENTIAL",2102849322,1000049748
06.08.2018,ADULT SOCIAL CARE,CHOICE SUPPORT,-330.4,LD LTS 18-64,"MAND STATUTORY CHARGES, RESIDENTIAL",2102848836,1104183
06.08.2018,ADULT SOCIAL CARE,BRANDON TRUST,-329.76,LD LTS 18-64,"MAND STATUTORY CHARGES, RESIDENTIAL",2102849269,1000042417
06.08.2018,ADULT SOCIAL CARE,BRANDON TRUST,-328.24,LD LTS 18-64,"MAND STATUTORY CHARGES, RESIDENTIAL",2102848510,1000042417
06.08.2018,ADULT SOCIAL CARE,COMMUNITY INTEGRATED CARE,-327.12,LD LTS 18-64,"MAND STATUTORY CHARGES, RESIDENTIAL",2102849261,1000072886
06.08.2018,ADULT SOCIAL CARE,BRANDON TRUST,-325.88,LD LTS 18-64,"MAND STATUTORY CHARGES, RESIDENTIAL",2102849156,1000042417
06.08.2018,ADULT SOCIAL CARE,INSIGHT,-325.2,LD LTS 18-64,"MAND STATUTORY CHARGES, RESIDENTIAL",2102849254,1825618
06.08.2018,ADULT SOCIAL CARE,NATIONAL AUTISTIC SOCIETY CARE PACK,-323,LD LTS 18-64,"MAND STATUTORY CHARGES, RESIDENTIAL",2102848154,1000020538
06.08.2018,ADULT SOCIAL CARE,THE AVENUES TRUST,-323,LD LTS 18-64,"MAND STATUTORY CHARGES, RESIDENTIAL",2102848173,1981708
06.08.2018,ADULT SOCIAL CARE,BRANDON TRUST,-323,LD LTS 18-64,"MAND STATUTORY CHARGES, RESIDENTIAL",2102848234,1000042417
06.08.2018,ADULT SOCIAL CARE,SEEABILITY,-323,LD LTS 18-64,"MAND STATUTORY CHARGES, RESIDENTIAL",2102848242,1000043641
06.08.2018,ADULT SOCIAL CARE,ASD UNIQUE SERVICES LTD,-323,LD LTS 18-64,"MAND STATUTORY CHARGES, RESIDENTIAL",2102848327,1000038819
06.08.2018,ADULT SOCIAL CARE,DIAGRAMA HEALTH CARE,-323,LD LTS 18-64,"MAND STATUTORY CHARGES, RESIDENTIAL",2102848352,1000075492
06.08.2018,ADULT SOCIAL CARE,LEONARD CHESHIRE (GARDEN HOUSE),-323,LD LTS 18-64,"MAND STATUTORY CHARGES, RESIDENTIAL",2102848368,1000049748
06.08.2018,ADULT SOCIAL CARE,THE REGARD PARTNERSHIP,-323,LD LTS 18-64,"MAND STATUTORY CHARGES, RESIDENTIAL",2102848380,1823223
06.08.2018,ADULT SOCIAL CARE,BRANDON TRUST,-323,LD LTS 18-64,"MAND STATUTORY CHARGES, RESIDENTIAL",2102848398,1000042417
06.08.2018,ADULT SOCIAL CARE,THE CHILTERNS - OPTIMA CARE,-323,LD LTS 18-64,"MAND STATUTORY CHARGES, RESIDENTIAL",2102848500,1000042209
06.08.2018,ADULT SOCIAL CARE,BRANDON TRUST,-323,LD LTS 18-64,"MAND STATUTORY CHARGES, RESIDENTIAL",2102848555,1000042417
06.08.2018,ADULT SOCIAL CARE,BRANDON TRUST,-323,LD LTS 18-64,"MAND STATUTORY CHARGES, RESIDENTIAL",2102848563,1000042417
06.08.2018,ADULT SOCIAL CARE,CHOICE SUPPORT,-323,LD LTS 18-64,"MAND STATUTORY CHARGES, RESIDENTIAL",2102848568,1104183
06.08.2018,ADULT SOCIAL CARE,BRANDON TRUST,-323,LD LTS 18-64,"MAND STATUTORY CHARGES, RESIDENTIAL",2102848578,1000042417
06.08.2018,ADULT SOCIAL CARE,GROVE CARE PARTNERSHIP,-323,LD LTS 18-64,"MAND STATUTORY CHARGES, RESIDENTIAL",2102848582,1000052893
06.08.2018,ADULT SOCIAL CARE,THE DRIVE CARE HOMES LTD (ADULTS),-323,LD LTS 18-64,"MAND STATUTORY CHARGES, RESIDENTIAL",2102848587,1000055145
06.08.2018,ADULT SOCIAL CARE,BRANDON TRUST,-323,LD LTS 18-64,"MAND STATUTORY CHARGES, RESIDENTIAL",2102848595,1000042417
06.08.2018,ADULT SOCIAL CARE,GLENPAT HOMES,-323,LD LTS 18-64,"MAND STATUTORY CHARGES, RESIDENTIAL",2102848610,1000059312
06.08.2018,ADULT SOCIAL CARE,ASHINGHAM HOUSE LIMITED,-323,LD LTS 18-64,"MAND STATUTORY CHARGES, RESIDENTIAL",2102848634,1000016504
06.08.2018,ADULT SOCIAL CARE,SAFFRONLAND HOMES (HESTIA),-323,LD LTS 18-64,"MAND STATUTORY CHARGES, RESIDENTIAL",2102848675,1000021616
06.08.2018,ADULT SOCIAL CARE,BRANDON TRUST,-323,LD LTS 18-64,"MAND STATUTORY CHARGES, RESIDENTIAL",2102848733,1000042417
06.08.2018,ADULT SOCIAL CARE,ACTION ON HEARING LOSS,-323,LD LTS 18-64,"MAND STATUTORY CHARGES, RESIDENTIAL",2102848746,1000014488
06.08.2018,ADULT SOCIAL CARE,SAFFRONLAND HOMES (HESTIA),-323,LD LTS 18-64,"MAND STATUTORY CHARGES, RESIDENTIAL",2102848750,1000021616
06.08.2018,ADULT SOCIAL CARE,SAFFRONLAND HOMES (HESTIA),-323,LD LTS 18-64,"MAND STATUTORY CHARGES, RESIDENTIAL",2102848771,1000021616
06.08.2018,ADULT SOCIAL CARE,BRANDON TRUST,-323,LD LTS 18-64,"MAND STATUTORY CHARGES, RESIDENTIAL",2102848787,1000042417
06.08.2018,ADULT SOCIAL CARE,DIAGRAMA HEALTH CARE,-323,LD LTS 18-64,"MAND STATUTORY CHARGES, RESIDENTIAL",2102848789,1000075492
06.08.2018,ADULT SOCIAL CARE,BRANDON TRUST,-323,LD LTS 18-64,"MAND STATUTORY CHARGES, RESIDENTIAL",2102848817,1000042417
06.08.2018,ADULT SOCIAL CARE,CHOICE SUPPORT,-323,LD LTS 18-64,"MAND STATUTORY CHARGES, RESIDENTIAL",2102848825,1104183
06.08.2018,ADULT SOCIAL CARE,VOYAGE LTD (EVESLEIGH KENT),-323,LD LTS 18-64,"MAND STATUTORY CHARGES, RESIDENTIAL",2102848827,1000041320
06.08.2018,ADULT SOCIAL CARE,VOYAGE CARE (MOUNTEARL),-323,LD LTS 18-64,"MAND STATUTORY CHARGES, RESIDENTIAL",2102848892,1000078173
06.08.2018,ADULT SOCIAL CARE,FERRY CARE LTD,-323,LD LTS 18-64,"MAND STATUTORY CHARGES, RESIDENTIAL",2102848928,1000041775
06.08.2018,ADULT SOCIAL CARE,SAFFRONLAND HOMES (HESTIA),-323,LD LTS 18-64,"MAND STATUTORY CHARGES, RESIDENTIAL",2102848947,1000021616
06.08.2018,ADULT SOCIAL CARE,BRANDON TRUST,-323,LD LTS 18-64,"MAND STATUTORY CHARGES, RESIDENTIAL",2102849029,1000042417
06.08.2018,ADULT SOCIAL CARE,BRANDON TRUST,-323,LD LTS 18-64,"MAND STATUTORY CHARGES, RESIDENTIAL",2102849044,1000042417
06.08.2018,ADULT SOCIAL CARE,BRANDON TRUST,-323,LD LTS 18-64,"MAND STATUTORY CHARGES, RESIDENTIAL",2102849048,1000042417
06.08.2018,ADULT SOCIAL CARE,ASHBROOK HOUSE,-323,LD LTS 18-64,"MAND STATUTORY CHARGES, RESIDENTIAL",2102849078,1000007424
06.08.2018,ADULT SOCIAL CARE,RYDE HOUSE,-323,LD LTS 18-64,"MAND STATUTORY CHARGES, RESIDENTIAL",2102849164,1022373
06.08.2018,ADULT SOCIAL CARE,SAFFRONLAND HOMES,-323,LD LTS 18-64,"MAND STATUTORY CHARGES, RESIDENTIAL",2102849214,1000072152
06.08.2018,ADULT SOCIAL CARE,LEONARD CHESHIRE (GARDEN HOUSE),-323,LD LTS 18-64,"MAND STATUTORY CHARGES, RESIDENTIAL",2102849226,1000049748
06.08.2018,ADULT SOCIAL CARE,SAFFRONLAND HOMES,-323,LD LTS 18-64,"MAND STATUTORY CHARGES, RESIDENTIAL",2102849230,1000072152
06.08.2018,ADULT SOCIAL CARE,STEPPING STONES RESETTLEMENT UNIT,-323,LD LTS 18-64,"MAND STATUTORY CHARGES, RESIDENTIAL",2102849272,1000032806
06.08.2018,ADULT SOCIAL CARE,BRANDON TRUST,-323,LD LTS 18-64,"MAND STATUTORY CHARGES, RESIDENTIAL",2102849280,1000042417
06.08.2018,ADULT SOCIAL CARE,BROADHAM CARE LIMITED,-323,LD LTS 18-64,"MAND STATUTORY CHARGES, RESIDENTIAL",2102849284,1000057411
06.08.2018,ADULT SOCIAL CARE,CHOICE CARE GROUP,-323,LD LTS 18-64,"MAND STATUTORY CHARGES, RESIDENTIAL",2102849296,1572506
06.08.2018,ADULT SOCIAL CARE,BRANDON TRUST,-323,LD LTS 18-64,"MAND STATUTORY CHARGES, RESIDENTIAL",2102849302,1000042417
06.08.2018,ADULT SOCIAL CARE,LEONARD CHESHIRE (THICKET ROAD),-323,LD LTS 18-64,"MAND STATUTORY CHARGES, RESIDENTIAL",2102849362,1000049761
06.08.2018,ADULT SOCIAL CARE,BRANDON TRUST,-321.8,LD LTS 18-64,"MAND STATUTORY CHARGES, RESIDENTIAL",2102848991,1000042417
06.08.2018,ADULT SOCIAL CARE,LEONARD CHESHIRE (THICKET ROAD),-321.56,LD LTS 18-64,"MAND STATUTORY CHARGES, RESIDENTIAL",2102848520,1000049761
06.08.2018,ADULT SOCIAL CARE,REDACTED PERSONAL DATA,-321.56,LD LTS 18-64,"MAND STATUTORY CHARGES, RESIDENTIAL",REDACTED,REDACTED
06.08.2018,ADULT SOCIAL CARE,SAFFRONLAND HOMES (HESTIA),-315.2,LD LTS 18-64,"MAND STATUTORY CHARGES, RESIDENTIAL",2102848288,1000021616
06.08.2018,ADULT SOCIAL CARE,BRANDON TRUST,-311.4,LD LTS 18-64,"MAND STATUTORY CHARGES, RESIDENTIAL",2102848574,1000042417
06.08.2018,ADULT SOCIAL CARE,BRANDON TRUST,-311.4,LD LTS 18-64,"MAND STATUTORY CHARGES, RESIDENTIAL",2102848884,1000042417
06.08.2018,ADULT SOCIAL CARE,BROADHAM CARE LIMITED,-262.2,LD LTS 18-64,"MAND STATUTORY CHARGES, RESIDENTIAL",2102848183,1000057411
06.08.2018,ADULT SOCIAL CARE,CARLTON NURSING HOMES LTD,-262.2,LD LTS 18-64,"MAND STATUTORY CHARGES, RESIDENTIAL",2102848387,1000070431
06.08.2018,ADULT SOCIAL CARE,THE DRIVE CARE HOMES LTD,-262.2,LD LTS 18-64,"MAND STATUTORY CHARGES, RESIDENTIAL",2102848599,1000003889
06.08.2018,ADULT SOCIAL CARE,REDACTED PERSONAL DATA,261.8,LD LTS 18-64,SUPPORTED LIVING,REDACTED,REDACTED
06.08.2018,ADULT SOCIAL CARE,REDACTED PERSONAL DATA,266.12,LD LTS 18-64,SUPPORTED LIVING,REDACTED,REDACTED
06.08.2018,ADULT SOCIAL CARE,BRANDON TRUST,266.56,LD LTS 18-64,SUPPORTED LIVING,2102848815,1000042417
06.08.2018,ADULT SOCIAL CARE,REDACTED PERSONAL DATA,281.28,LD LTS 18-64,SUPPORTED LIVING,REDACTED,REDACTED
06.08.2018,ADULT SOCIAL CARE,REDACTED PERSONAL DATA,281.28,LD LTS 18-64,SUPPORTED LIVING,REDACTED,REDACTED
06.08.2018,ADULT SOCIAL CARE,SUPREME CARE SERVICES LTD,283.9,LD LTS 18-64,HOMECARE - C&V,2102847882,1000059416
06.08.2018,ADULT SOCIAL CARE,REDACTED PERSONAL DATA,301.28,LD LTS 18-64,SUPPORTED LIVING,REDACTED,REDACTED
06.08.2018,ADULT SOCIAL CARE,REDACTED PERSONAL DATA,301.28,LD LTS 18-64,SUPPORTED LIVING,REDACTED,REDACTED
06.08.2018,ADULT SOCIAL CARE,FIR TREE LODGE (SEE ABILITY),323.2,LD LTS 18-64,OTHER PAYMENTS FOR CLIENTS,2102848312,1000052257
06.08.2018,ADULT SOCIAL CARE,THE RATHBONE CENTRE,374.4,LD LTS 18-64,SUPPORTED LIVING,2102848483,1000050632
06.08.2018,ADULT SOCIAL CARE,SWK DISABLEMENT ASSN,409.92,LD LTS 18-64,SUPPORTED LIVING,2102849201,1000011698
06.08.2018,ADULT SOCIAL CARE,REDACTED PERSONAL DATA,421.92,LD LTS 18-64,SUPPORTED LIVING,REDACTED,REDACTED
06.08.2018,ADULT SOCIAL CARE,PECULIAR CARE HOMES LTD,430.8,LD LTS 18-64,SUPPORTED LIVING,2102848254,1000076991
06.08.2018,ADULT SOCIAL CARE,REDACTED PERSONAL DATA,441.92,LD LTS 18-64,SUPPORTED LIVING,REDACTED,REDACTED
06.08.2018,ADULT SOCIAL CARE,REDACTED PERSONAL DATA,441.92,LD LTS 18-64,SUPPORTED LIVING,REDACTED,REDACTED
06.08.2018,ADULT SOCIAL CARE,SAFFRONLAND HOMES (HESTIA),462.36,LD LTS 18-64,DAYCARE,2102848289,1000021616
06.08.2018,ADULT SOCIAL CARE,CONTACT PROFESSIONALS,465,LD LTS 18-64,SUPPORTED LIVING,2102848097,1000057263
06.08.2018,ADULT SOCIAL CARE,SENSE,518.8,LD LTS 18-64,HOMECARE - SPOT,2102844859,1000046797
06.08.2018,ADULT SOCIAL CARE,REDACTED PERSONAL DATA,562.56,LD LTS 18-64,SUPPORTED LIVING,REDACTED,REDACTED
06.08.2018,ADULT SOCIAL CARE,REDACTED PERSONAL DATA,562.56,LD LTS 18-64,SUPPORTED LIVING,REDACTED,REDACTED
06.08.2018,ADULT SOCIAL CARE,REDACTED PERSONAL DATA,562.56,LD LTS 18-64,SUPPORTED LIVING,REDACTED,REDACTED
06.08.2018,ADULT SOCIAL CARE,REDACTED PERSONAL DATA,582.56,LD LTS 18-64,SUPPORTED LIVING,REDACTED,REDACTED
06.08.2018,ADULT SOCIAL CARE,MEDACS HOMECARE,582.9,LD LTS 18-64,SUPPORTED LIVING,2102848029,11287415
06.08.2018,ADULT SOCIAL CARE,BRANDON TRUST,611.28,LD LTS 18-64,SUPPORTED LIVING,2102849312,1000042417
06.08.2018,ADULT SOCIAL CARE,L & Q LIVING,641.2,LD LTS 18-64,SUPPORTED LIVING,2102848185,1000057917
06.08.2018,ADULT SOCIAL CARE,THE REGARD PARTNERSHIP,675.2,LD LTS 18-64,SUPPORTED LIVING,2102848199,1823223
06.08.2018,ADULT SOCIAL CARE,CARE MANAGEMENT GROUP,726,LD LTS 18-64,SUPPORTED LIVING,2102848128,1000040475
06.08.2018,ADULT SOCIAL CARE,SAFFRONLAND HOMES (HESTIA),750.76,LD LTS 18-64,DAYCARE,2102848751,1000021616
06.08.2018,ADULT SOCIAL CARE,SENSE,786.83,LD LTS 18-64,"MAND STATUTORY CHARGES, RESIDENTIAL",2102839171,1000046797
06.08.2018,ADULT SOCIAL CARE,REDACTED PERSONAL DATA,840.6,LD LTS 18-64,SUPPORTED LIVING,REDACTED,REDACTED
06.08.2018,ADULT SOCIAL CARE,CRAEGMOOR WHEELHOUSE PRIORY,870,LD LTS 18-64,OTHER PAYMENTS FOR CLIENTS,2102848804,1000068452
06.08.2018,ADULT SOCIAL CARE,SAFFRONLAND HOMES (HESTIA),918.76,LD LTS 18-64,DAYCARE,2102848676,1000021616
06.08.2018,ADULT SOCIAL CARE,LAMBETH & SOUTHWARK MENCAP,988.8,LD LTS 18-64,SUPPORTED LIVING,2102849188,1000005477
06.08.2018,ADULT SOCIAL CARE,SENSE,"1,037.60",LD LTS 18-64,SUPPORTED LIVING,2102838307,1000046797
06.08.2018,ADULT SOCIAL CARE,SENSE,"1,037.60",LD LTS 18-64,SUPPORTED LIVING,2102848569,1000046797
06.08.2018,ADULT SOCIAL CARE,MEDACS HOMECARE,"1,040.40",LD LTS 18-64,SUPPORTED LIVING,2102848491,11287415
06.08.2018,ADULT SOCIAL CARE,TRUECARE HAVEN SUPPORT LTD,"1,072.60",LD LTS 18-64,SUPPORTED LIVING,2102849104,1000078974
06.08.2018,ADULT SOCIAL CARE,THE REGARD PARTNERSHIP,"1,362.40",LD LTS 18-64,SUPPORTED LIVING,2102848668,1823223
06.08.2018,ADULT SOCIAL CARE,MEDACS HOMECARE,"1,430.62",LD LTS 18-64,HOMECARE - SPOT,2102848027,11287415
06.08.2018,ADULT SOCIAL CARE,CHOICE SUPPORT,"1,483.44",LD LTS 18-64,SUPPORTED LIVING,2102848452,1104183
06.08.2018,ADULT SOCIAL CARE,LINKAGE COMMUNITY TRUST LTD,"1,598.52",LD LTS 18-64,SUPPORTED LIVING,2102849119,1000003632
06.08.2018,ADULT SOCIAL CARE,SENSE,"1,749.47",LD LTS 18-64,OTHER PAYMENTS FOR CLIENTS,2102848596,1000046797
06.08.2018,ADULT SOCIAL CARE,CHOICE SUPPORT,"2,015.80",LD LTS 18-64,SUPPORTED LIVING,2102849128,1104183
06.08.2018,ADULT SOCIAL CARE,BRANDON TRUST,"2,031.20",LD LTS 18-64,RESIDENTIAL CARE,2102848252,1000042417
06.08.2018,ADULT SOCIAL CARE,CHOICE SUPPORT,"2,056.00",LD LTS 18-64,RESIDENTIAL CARE,2102848824,1104183
06.08.2018,ADULT SOCIAL CARE,CONTACT PROFESSIONALS,"2,066.25",LD LTS 18-64,HOMECARE - SPOT,2102848017,1000057263
06.08.2018,ADULT SOCIAL CARE,CONTACT PROFESSIONALS,"2,280.00",LD LTS 18-64,HOMECARE - SPOT,2102848019,1000057263
06.08.2018,ADULT SOCIAL CARE,CONTACT PROFESSIONALS,"2,280.00",LD LTS 18-64,HOMECARE - SPOT,2102848021,1000057263
06.08.2018,ADULT SOCIAL CARE,BRANDON TRUST,"2,342.72",LD LTS 18-64,RESIDENTIAL CARE,2102849301,1000042417
06.08.2018,ADULT SOCIAL CARE,THE FRANCES TAYLOR FOUNDATION,"2,444.76",LD LTS 18-64,RESIDENTIAL CARE,2102848791,1000007274
06.08.2018,ADULT SOCIAL CARE,31 WOODBOURNE (FRANCES TAYLOR FOUNDATION),"2,444.76",LD LTS 18-64,RESIDENTIAL CARE,2102848805,1000063870
06.08.2018,ADULT SOCIAL CARE,REDACTED PERSONAL DATA,"2,470.64",LD LTS 18-64,RESIDENTIAL CARE,REDACTED,REDACTED
06.08.2018,ADULT SOCIAL CARE,CONTACT PROFESSIONALS,"2,565.00",LD LTS 18-64,HOMECARE - SPOT,2102848018,1000057263
06.08.2018,ADULT SOCIAL CARE,NATIONAL AUTISTIC SOCIETY CARE PACK,"2,568.96",LD LTS 18-64,OTHER PAYMENTS FOR CLIENTS,2102848127,1000020538
06.08.2018,ADULT SOCIAL CARE,LA ROSA RESIDENTIAL CARE HOME,"2,585.16",LD LTS 18-64,RESIDENTIAL CARE,2102849167,1000053962
06.08.2018,ADULT SOCIAL CARE,CONTACT PROFESSIONALS,"2,626.75",LD LTS 18-64,HOMECARE - SPOT,2102848022,1000057263
06.08.2018,ADULT SOCIAL CARE,BRANDON TRUST,"2,781.12",LD LTS 18-64,SUPPORTED LIVING,2102848671,1000042417
06.08.2018,ADULT SOCIAL CARE,THE PADDOCK (THE SWALLOW GROUP),"2,884.56",LD LTS 18-64,RESIDENTIAL CARE,2102849015,11153854
06.08.2018,ADULT SOCIAL CARE,BRANDON TRUST,"2,896.72",LD LTS 18-64,RESIDENTIAL CARE,2102848397,1000042417
06.08.2018,ADULT SOCIAL CARE,CHOICE SUPPORT,"2,909.80",LD LTS 18-64,SUPPORTED LIVING,2102848347,1104183
06.08.2018,ADULT SOCIAL CARE,THE PADDOCK (THE SWALLOW GROUP),"2,927.80",LD LTS 18-64,RESIDENTIAL CARE,2102848399,11153854
06.08.2018,ADULT SOCIAL CARE,BRANDON TRUST,"2,955.52",LD LTS 18-64,RESIDENTIAL CARE,2102849268,1000042417
06.08.2018,ADULT SOCIAL CARE,BRANDON TRUST,"3,058.88",LD LTS 18-64,RESIDENTIAL CARE,2102848577,1000042417
06.08.2018,ADULT SOCIAL CARE,CHOICE SUPPORT,"3,064.76",LD LTS 18-64,RESIDENTIAL CARE,2102848275,1104183
06.08.2018,ADULT SOCIAL CARE,REDACTED PERSONAL DATA,"3,144.64",LD LTS 18-64,SUPPORTED LIVING,REDACTED,REDACTED
06.08.2018,ADULT SOCIAL CARE,CRAEGMOOR (WINDSOR HOUSE),"3,227.60",LD LTS 18-64,RESIDENTIAL CARE,2102849178,1000072462
06.08.2018,ADULT SOCIAL CARE,BRANDON TRUST,"3,236.72",LD LTS 18-64,RESIDENTIAL CARE,2102848732,1000042417
06.08.2018,ADULT SOCIAL CARE,BRANDON TRUST,"3,236.72",LD LTS 18-64,RESIDENTIAL CARE,2102848942,1000042417
06.08.2018,ADULT SOCIAL CARE,CRAEGMOOR WILLOWS HYTHE PRIORY,"3,240.00",LD LTS 18-64,RESIDENTIAL CARE,2102848925,1000072287
06.08.2018,ADULT SOCIAL CARE,ASHDENE HOUSE LIMITED,"3,272.76",LD LTS 18-64,RESIDENTIAL CARE,2102849098,1000021007
06.08.2018,ADULT SOCIAL CARE,LOVE WALK HOSTEL FOR DISABLED,"3,280.00",LD LTS 18-64,RESIDENTIAL CARE,2102848390,1008978
06.08.2018,ADULT SOCIAL CARE,REDACTED PERSONAL DATA,"3,301.80",LD LTS 18-64,SUPPORTED LIVING,REDACTED,REDACTED
06.08.2018,ADULT SOCIAL CARE,BRANDON TRUST,"3,305.56",LD LTS 18-64,RESIDENTIAL CARE,2102849035,1000042417
06.08.2018,ADULT SOCIAL CARE,BRANDON TRUST,"3,408.80",LD LTS 18-64,RESIDENTIAL CARE,2102849047,1000042417
06.08.2018,ADULT SOCIAL CARE,THE REGARD PARTNERSHIP (IVY LODGE),"3,525.72",LD LTS 18-64,RESIDENTIAL CARE,2102849112,11002026
06.08.2018,ADULT SOCIAL CARE,BRANDON TRUST,"3,632.00",LD LTS 18-64,RESIDENTIAL CARE,2102848594,1000042417
06.08.2018,ADULT SOCIAL CARE,THE DRIVE CARE HOMES LTD (ADULTS),"3,791.48",LD LTS 18-64,RESIDENTIAL CARE,2102848586,1000055145
06.08.2018,ADULT SOCIAL CARE,BRANDON TRUST,"3,828.96",LD LTS 18-64,RESIDENTIAL CARE,2102848257,1000042417
06.08.2018,ADULT SOCIAL CARE,BRANDON TRUST,"3,828.96",LD LTS 18-64,RESIDENTIAL CARE,2102848786,1000042417
06.08.2018,ADULT SOCIAL CARE,BRANDON TRUST,"3,878.20",LD LTS 18-64,RESIDENTIAL CARE,2102848768,1000042417
06.08.2018,ADULT SOCIAL CARE,DIAGRAMA HEALTH CARE,"3,924.56",LD LTS 18-64,RESIDENTIAL CARE,2102848351,1000075492
06.08.2018,ADULT SOCIAL CARE,LEONARD CHESHIRE (GARDEN HOUSE),"3,933.80",LD LTS 18-64,RESIDENTIAL CARE,2102848367,1000049748
06.08.2018,ADULT SOCIAL CARE,CARE MANAGEMENT GROUP,"3,940.00",LD LTS 18-64,SUPPORTED LIVING,2102848374,1000040475
06.08.2018,ADULT SOCIAL CARE,RYDE HOUSE,"3,944.00",LD LTS 18-64,RESIDENTIAL CARE,2102849163,1022373
06.08.2018,ADULT SOCIAL CARE,BRANDON TRUST,"3,978.36",LD LTS 18-64,RESIDENTIAL CARE,2102849177,1000042417
06.08.2018,ADULT SOCIAL CARE,DIAGRAMA HEALTH CARE,"3,990.36",LD LTS 18-64,RESIDENTIAL CARE,2102848959,1000075492
06.08.2018,ADULT SOCIAL CARE,ENDURANCE CARE LTD,"4,069.76",LD LTS 18-64,RESIDENTIAL CARE,2102848442,1000080552
06.08.2018,ADULT SOCIAL CARE,CHOICE SUPPORT,"4,101.32",LD LTS 18-64,SUPPORTED LIVING,2102848448,1104183
06.08.2018,ADULT SOCIAL CARE,BRANDON TRUST,"4,188.52",LD LTS 18-64,RESIDENTIAL CARE,2102848883,1000042417
06.08.2018,ADULT SOCIAL CARE,BRANDON TRUST,"4,203.04",LD LTS 18-64,RESIDENTIAL CARE,2102849028,1000042417
06.08.2018,ADULT SOCIAL CARE,THE REGARD PARTNERSHIP,"4,225.20",LD LTS 18-64,SUPPORTED LIVING,2102848152,1823223
06.08.2018,ADULT SOCIAL CARE,PLUS SERVICES,"4,252.00",LD LTS 18-64,RESIDENTIAL CARE,2102848269,1000021241
06.08.2018,ADULT SOCIAL CARE,CHOICE SUPPORT,"4,264.92",LD LTS 18-64,RESIDENTIAL CARE,2102849063,1104183
06.08.2018,ADULT SOCIAL CARE,LEONARD CHESHIRE (GARDEN HOUSE),"4,293.00",LD LTS 18-64,RESIDENTIAL CARE,2102849321,1000049748
06.08.2018,ADULT SOCIAL CARE,ASHBROOK HOUSE,"4,325.16",LD LTS 18-64,RESIDENTIAL CARE,2102849077,1000007424
06.08.2018,ADULT SOCIAL CARE,BRANDON TRUST,"4,353.00",LD LTS 18-64,RESIDENTIAL CARE,2102848509,1000042417
06.08.2018,ADULT SOCIAL CARE,BRANDON TRUST,"4,377.40",LD LTS 18-64,RESIDENTIAL CARE,2102849279,1000042417
06.08.2018,ADULT SOCIAL CARE,CRAEGMOOR DEVONSHIRE ROAD PRIORY,"4,392.52",LD LTS 18-64,RESIDENTIAL CARE,2102849052,1000068453
06.08.2018,ADULT SOCIAL CARE,LEONARD CHESHIRE (GARDEN HOUSE),"4,403.60",LD LTS 18-64,RESIDENTIAL CARE,2102848865,1000049748
06.08.2018,ADULT SOCIAL CARE,DIAGRAMA HEALTH CARE,"4,440.56",LD LTS 18-64,RESIDENTIAL CARE,2102848788,1000075492
06.08.2018,ADULT SOCIAL CARE,DIAGRAMA HEALTH CARE,"4,493.04",LD LTS 18-64,RESIDENTIAL CARE,2102848274,1000075492
06.08.2018,ADULT SOCIAL CARE,BRANDON TRUST,"4,521.44",LD LTS 18-64,RESIDENTIAL CARE,2102848562,1000042417
06.08.2018,ADULT SOCIAL CARE,PLUS SERVICES,"4,534.00",LD LTS 18-64,SUPPORTED LIVING,2102848140,1000021241
06.08.2018,ADULT SOCIAL CARE,HEALTH PERSONNEL LTD,"4,548.00",LD LTS 18-64,SUPPORTED LIVING,2102849247,1000076377
06.08.2018,ADULT SOCIAL CARE,DIAGRAMA HEALTH CARE,"4,572.76",LD LTS 18-64,RESIDENTIAL CARE,2102848369,1000075492
06.08.2018,ADULT SOCIAL CARE,CHOICE SUPPORT,"4,572.76",LD LTS 18-64,RESIDENTIAL CARE,2102848567,1104183
06.08.2018,ADULT SOCIAL CARE,OGILVIE COURT,"4,591.92",LD LTS 18-64,RESIDENTIAL CARE,2102848936,1910302
06.08.2018,ADULT SOCIAL CARE,GLEN CARE GROUP,"4,646.00",LD LTS 18-64,RESIDENTIAL CARE,2102848941,1000050223
06.08.2018,ADULT SOCIAL CARE,LEONARD CHESHIRE (GARDEN HOUSE),"4,646.00",LD LTS 18-64,RESIDENTIAL CARE,2102849225,1000049748
06.08.2018,ADULT SOCIAL CARE,COMMUNITY INTEGRATED CARE,"4,800.00",LD LTS 18-64,RESIDENTIAL CARE,2102849260,1000072886
06.08.2018,ADULT SOCIAL CARE,THE REGARD PARTNERSHIP,"4,852.84",LD LTS 18-64,RESIDENTIAL CARE,2102848379,1823223
06.08.2018,ADULT SOCIAL CARE,HEALTH PERSONNEL LTD,"4,884.00",LD LTS 18-64,SUPPORTED LIVING,2102848660,1000076377
06.08.2018,ADULT SOCIAL CARE,ASD UNIQUE SERVICES LTD,"4,941.12",LD LTS 18-64,RESIDENTIAL CARE,2102848326,1000038819
06.08.2018,ADULT SOCIAL CARE,CARE MANAGEMENT GROUP,"4,960.00",LD LTS 18-64,SUPPORTED LIVING,2102848696,1000040475
06.08.2018,ADULT SOCIAL CARE,PLUS SERVICES,"4,970.16",LD LTS 18-64,SUPPORTED LIVING,2102848524,1000021241
06.08.2018,ADULT SOCIAL CARE,SAHARA CARE HOMES LTD,"5,000.00",LD LTS 18-64,RESIDENTIAL CARE,2102848428,1000066134
06.08.2018,ADULT SOCIAL CARE,HAZELDENE LTD,"5,004.75",LD LTS 18-64,RESIDENTIAL CARE,2102848437,1000019679
06.08.2018,ADULT SOCIAL CARE,HEALTH PERSONNEL LTD,"5,057.64",LD LTS 18-64,SUPPORTED LIVING,2102848502,1000076377
06.08.2018,ADULT SOCIAL CARE,BRANDON TRUST,"5,068.96",LD LTS 18-64,RESIDENTIAL CARE,2102848996,1000042417
06.08.2018,ADULT SOCIAL CARE,MCCH,"5,073.60",LD LTS 18-64,RESIDENTIAL CARE,2102848142,1000031156
06.08.2018,ADULT SOCIAL CARE,NATIONAL AUTISTIC SOCIETY CARE PACK,"5,096.20",LD LTS 18-64,RESIDENTIAL CARE,2102848153,1000020538
06.08.2018,ADULT SOCIAL CARE,PLUS SERVICES,"5,097.56",LD LTS 18-64,SUPPORTED LIVING,2102848604,1000021241
06.08.2018,ADULT SOCIAL CARE,BRANDON TRUST,"5,111.08",LD LTS 18-64,RESIDENTIAL CARE,2102848573,1000042417
06.08.2018,ADULT SOCIAL CARE,BRANDON TRUST,"5,159.20",LD LTS 18-64,RESIDENTIAL CARE,2102848816,1000042417
06.08.2018,ADULT SOCIAL CARE,PLUS SERVICES,"5,174.04",LD LTS 18-64,RESIDENTIAL CARE,2102848962,1000021241
06.08.2018,ADULT SOCIAL CARE,GLEN CARE GROUP,"5,191.40",LD LTS 18-64,RESIDENTIAL CARE,2102848271,1000050223
06.08.2018,ADULT SOCIAL CARE,THE MEATH,"5,191.40",LD LTS 18-64,RESIDENTIAL CARE,2102848881,1000056796
06.08.2018,ADULT SOCIAL CARE,VOYAGE LTD (EVESLEIGH KENT),"5,199.48",LD LTS 18-64,RESIDENTIAL CARE,2102848826,1000041320
06.08.2018,ADULT SOCIAL CARE,CARE MANAGEMENT GROUP,"5,240.56",LD LTS 18-64,SUPPORTED LIVING,2102849290,1000040475
06.08.2018,ADULT SOCIAL CARE,CRAEGMOOR WHEELHOUSE PRIORY,"5,259.04",LD LTS 18-64,RESIDENTIAL CARE,2102848720,1000068452
06.08.2018,ADULT SOCIAL CARE,PLUS SERVICES,"5,272.80",LD LTS 18-64,SUPPORTED LIVING,2102848484,1000021241
06.08.2018,ADULT SOCIAL CARE,AITCH CARE HOMES (LONDON) LTD,"5,295.24",LD LTS 18-64,RESIDENTIAL CARE,2102848299,1000059432
06.08.2018,ADULT SOCIAL CARE,TRUECARE HAVEN SUPPORT LTD,"5,298.00",LD LTS 18-64,RESIDENTIAL CARE,2102848868,1000078974
06.08.2018,ADULT SOCIAL CARE,CHOICE SUPPORT,"5,327.28",LD LTS 18-64,SUPPORTED LIVING,2102848744,1104183
06.08.2018,ADULT SOCIAL CARE,CARE MANAGEMENT GROUP,"5,391.76",LD LTS 18-64,RESIDENTIAL CARE,2102848870,1000040475
06.08.2018,ADULT SOCIAL CARE,INSIGHT,"5,437.28",LD LTS 18-64,RESIDENTIAL CARE,2102848363,1825618
06.08.2018,ADULT SOCIAL CARE,CHOICE SUPPORT,"5,461.08",LD LTS 18-64,SUPPORTED LIVING,2102848589,1104183
06.08.2018,ADULT SOCIAL CARE,CHOICE SUPPORT,"5,467.52",LD LTS 18-64,SUPPORTED LIVING,2102848249,1104183
06.08.2018,ADULT SOCIAL CARE,CHOICE SUPPORT,"5,536.76",LD LTS 18-64,RESIDENTIAL CARE,2102848835,1104183
06.08.2018,ADULT SOCIAL CARE,CARE MANAGEMENT GROUP,"5,656.00",LD LTS 18-64,RESIDENTIAL CARE,2102848155,1000040475
06.08.2018,ADULT SOCIAL CARE,HAZELDENE LTD,"5,704.52",LD LTS 18-64,RESIDENTIAL CARE,2102848601,1000019679
06.08.2018,ADULT SOCIAL CARE,THE MEATH,"5,759.76",LD LTS 18-64,RESIDENTIAL CARE,2102848239,1000056796
06.08.2018,ADULT SOCIAL CARE,LONDON CYRENIANS HOUSING LTD,"5,768.96",LD LTS 18-64,SUPPORTED LIVING,2102849011,1000078600
06.08.2018,ADULT SOCIAL CARE,VOYAGE CARE (MOUNTEARL),"5,841.12",LD LTS 18-64,RESIDENTIAL CARE,2102849006,1000078173
06.08.2018,ADULT SOCIAL CARE,CHOICE SUPPORT,"6,021.76",LD LTS 18-64,SUPPORTED LIVING,2102848561,1104183
06.08.2018,ADULT SOCIAL CARE,THE AVENUES TRUST,"6,041.68",LD LTS 18-64,RESIDENTIAL CARE,2102848172,1981708
06.08.2018,ADULT SOCIAL CARE,VOYAGE LTD (EVESLEIGH KENT),"6,091.32",LD LTS 18-64,RESIDENTIAL CARE,2102848873,1000041320
06.08.2018,ADULT SOCIAL CARE,CHOICE SUPPORT,"6,311.52",LD LTS 18-64,SUPPORTED LIVING,2102848807,1104183
06.08.2018,ADULT SOCIAL CARE,OPTIMA CARE (SHINE) LONDON LTD,"6,317.32",LD LTS 18-64,SUPPORTED LIVING,2102849210,1000079614
06.08.2018,ADULT SOCIAL CARE,THE REGARD PARTNERSHIP (INGLEWOOD HSE),"6,482.60",LD LTS 18-64,RESIDENTIAL CARE,2102848643,11307451
06.08.2018,ADULT SOCIAL CARE,BRANDON TRUST,"6,482.76",LD LTS 18-64,RESIDENTIAL CARE,2102848233,1000042417
06.08.2018,ADULT SOCIAL CARE,OPTIMA CARE (SHINE) LONDON LTD,"6,533.56",LD LTS 18-64,SUPPORTED LIVING,2102848701,1000079614
06.08.2018,ADULT SOCIAL CARE,CHOICE SUPPORT,"6,603.28",LD LTS 18-64,RESIDENTIAL CARE,2102848284,1104183
06.08.2018,ADULT SOCIAL CARE,STEPPING STONES RESETTLEMENT UNIT,"6,605.40",LD LTS 18-64,RESIDENTIAL CARE,2102849271,1000032806
06.08.2018,ADULT SOCIAL CARE,BRANDON TRUST,"6,655.96",LD LTS 18-64,RESIDENTIAL CARE,2102849043,1000042417
06.08.2018,ADULT SOCIAL CARE,THE REGARD PARTNERSHIP,"6,766.84",LD LTS 18-64,RESIDENTIAL CARE,2102849123,1823223
06.08.2018,ADULT SOCIAL CARE,VOYAGE CARE (MOUNTEARL),"6,788.88",LD LTS 18-64,RESIDENTIAL CARE,2102848891,1000078173
06.08.2018,ADULT SOCIAL CARE,CLEARWATER CARE (HACKNEY) LTD,"6,800.00",LD LTS 18-64,RESIDENTIAL CARE,2102848618,1000070479
06.08.2018,ADULT SOCIAL CARE,ACTION ON HEARING LOSS,"6,838.28",LD LTS 18-64,RESIDENTIAL CARE,2102848745,1000014488
06.08.2018,ADULT SOCIAL CARE,GLEN CARE GROUP,"6,868.00",LD LTS 18-64,RESIDENTIAL CARE,2102848181,1000050223
06.08.2018,ADULT SOCIAL CARE,SAFFRONLAND HOMES,"6,868.00",LD LTS 18-64,RESIDENTIAL CARE,2102848728,1000072152
06.08.2018,ADULT SOCIAL CARE,LEONARD CHESHIRE (THICKET ROAD),"6,906.96",LD LTS 18-64,RESIDENTIAL CARE,2102848463,1000049761
06.08.2018,ADULT SOCIAL CARE,SAFFRONLAND HOMES,"6,928.36",LD LTS 18-64,RESIDENTIAL CARE,2102848180,11172608
06.08.2018,ADULT SOCIAL CARE,LONDON CYRENIANS HOUSING LTD,"6,937.88",LD LTS 18-64,SUPPORTED LIVING,2102848467,1000078600
06.08.2018,ADULT SOCIAL CARE,SEQUENCE CARE LTD,"6,993.00",LD LTS 18-64,SUPPORTED LIVING,2102849094,1000080343
06.08.2018,ADULT SOCIAL CARE,CHOICE SUPPORT,"7,013.84",LD LTS 18-64,SUPPORTED LIVING,2102848702,1104183
06.08.2018,ADULT SOCIAL CARE,VALUE IN CARE LTD,"7,035.52",LD LTS 18-64,RESIDENTIAL CARE,2102848450,1000041975
06.08.2018,ADULT SOCIAL CARE,NEXUS PROGRAMME LTD,"7,100.08",LD LTS 18-64,RESIDENTIAL CARE,2102848613,1000025336
06.08.2018,ADULT SOCIAL CARE,CLACTON FAMILY TRUST LTD,"7,106.92",LD LTS 18-64,RESIDENTIAL CARE,2102849304,1000012183
06.08.2018,ADULT SOCIAL CARE,RNIB COMMUNITY LIVING SERVICE,"7,129.24",LD LTS 18-64,RESIDENTIAL CARE,2102848712,11211087
06.08.2018,ADULT SOCIAL CARE,BROADHAM CARE LIMITED,"7,200.00",LD LTS 18-64,RESIDENTIAL CARE,2102849283,1000057411
06.08.2018,ADULT SOCIAL CARE,VOYAGE LTD (EVESLEIGH KENT),"7,213.16",LD LTS 18-64,RESIDENTIAL CARE,2102848177,1000041320
06.08.2018,ADULT SOCIAL CARE,BRANDON TRUST,"7,226.48",LD LTS 18-64,RESIDENTIAL CARE,2102849155,1000042417
06.08.2018,ADULT SOCIAL CARE,PLUS SERVICES,"7,228.00",LD LTS 18-64,SUPPORTED LIVING,2102848963,1000021241
06.08.2018,ADULT SOCIAL CARE,INDEPENDENCE HOMES LTD,"7,245.40",LD LTS 18-64,RESIDENTIAL CARE,2102849310,1000058961
06.08.2018,ADULT SOCIAL CARE,BRANDON TRUST,"7,268.60",LD LTS 18-64,RESIDENTIAL CARE,2102848554,1000042417
06.08.2018,ADULT SOCIAL CARE,THE REGARD PARTNERSHIP,"7,272.00",LD LTS 18-64,RESIDENTIAL CARE,2102848627,1823223
06.08.2018,ADULT SOCIAL CARE,BRANDON TRUST,"7,299.40",LD LTS 18-64,RESIDENTIAL CARE,2102848990,1000042417
06.08.2018,ADULT SOCIAL CARE,CRAEGMOOR HEALTHCARE,"7,305.44",LD LTS 18-64,RESIDENTIAL CARE,2102848495,1323845
06.08.2018,ADULT SOCIAL CARE,GROVE CARE PARTNERSHIP,"7,393.20",LD LTS 18-64,RESIDENTIAL CARE,2102848581,1000052893
06.08.2018,ADULT SOCIAL CARE,SAFFRONLAND HOMES (HESTIA),"7,482.08",LD LTS 18-64,RESIDENTIAL CARE,2102848946,1000021616
06.08.2018,ADULT SOCIAL CARE,GLENPAT HOMES,"7,540.68",LD LTS 18-64,RESIDENTIAL CARE,2102848609,1000059312
06.08.2018,ADULT SOCIAL CARE,BROADHAM CARE LIMITED,"7,600.00",LD LTS 18-64,RESIDENTIAL CARE,2102848182,1000057411
06.08.2018,ADULT SOCIAL CARE,BURNHAM HOUSE,"7,600.00",LD LTS 18-64,RESIDENTIAL CARE,2102849136,1000050697
06.08.2018,ADULT SOCIAL CARE,CHOICE CARE GROUP,"7,662.88",LD LTS 18-64,RESIDENTIAL CARE,2102848304,1572506
06.08.2018,ADULT SOCIAL CARE,OPTIMA CARE (SHINE) LONDON LTD,"7,675.60",LD LTS 18-64,SUPPORTED LIVING,2102848716,1000079614
06.08.2018,ADULT SOCIAL CARE,CARE MANAGEMENT GROUP,"7,745.24",LD LTS 18-64,RESIDENTIAL CARE,2102848724,1000040475
06.08.2018,ADULT SOCIAL CARE,SAFFRONLAND HOMES (HESTIA),"7,806.44",LD LTS 18-64,RESIDENTIAL CARE,2102848287,1000021616
06.08.2018,ADULT SOCIAL CARE,SAFFRONLAND HOMES (HESTIA),"7,806.44",LD LTS 18-64,RESIDENTIAL CARE,2102848674,1000021616
06.08.2018,ADULT SOCIAL CARE,SAFFRONLAND HOMES (HESTIA),"7,806.44",LD LTS 18-64,RESIDENTIAL CARE,2102848749,1000021616
06.08.2018,ADULT SOCIAL CARE,BROADHAM CARE LIMITED,"7,814.88",LD LTS 18-64,RESIDENTIAL CARE,2102848653,1000057411
06.08.2018,ADULT SOCIAL CARE,OPTIMA CARE (SHINE) LONDON LTD,"7,869.28",LD LTS 18-64,SUPPORTED LIVING,2102848894,1000079614
06.08.2018,ADULT SOCIAL CARE,ASHINGHAM HOUSE LIMITED,"7,874.68",LD LTS 18-64,RESIDENTIAL CARE,2102848633,1000016504
06.08.2018,ADULT SOCIAL CARE,LEONARD CHESHIRE (THICKET ROAD),"7,911.16",LD LTS 18-64,RESIDENTIAL CARE,2102848519,1000049761
06.08.2018,ADULT SOCIAL CARE,CHOICE CARE GROUP,"7,962.60",LD LTS 18-64,RESIDENTIAL CARE,2102849295,1572506
06.08.2018,ADULT SOCIAL CARE,CHOICE SUPPORT,"7,962.92",LD LTS 18-64,SUPPORTED LIVING,2102849303,1104183
06.08.2018,ADULT SOCIAL CARE,FIR TREE LODGE (SEE ABILITY),"7,993.04",LD LTS 18-64,RESIDENTIAL CARE,2102848515,1000052257
06.08.2018,ADULT SOCIAL CARE,SAFFRONLAND HOMES (HESTIA),"8,049.72",LD LTS 18-64,RESIDENTIAL CARE,2102848444,1000021616
06.08.2018,ADULT SOCIAL CARE,GROVE CARE PARTNERSHIP,"8,059.20",LD LTS 18-64,RESIDENTIAL CARE,2102849045,1000052893
06.08.2018,ADULT SOCIAL CARE,CHOICE CARE GROUP,"8,059.80",LD LTS 18-64,RESIDENTIAL CARE,2102848440,1572506
06.08.2018,ADULT SOCIAL CARE,LONDON CYRENIANS HOUSING LTD,"8,141.16",LD LTS 18-64,SUPPORTED LIVING,2102849189,1000078600
06.08.2018,ADULT SOCIAL CARE,SAFFRONLAND HOMES (HESTIA),"8,228.44",LD LTS 18-64,RESIDENTIAL CARE,2102848770,1000021616
06.08.2018,ADULT SOCIAL CARE,CLEARWATER CARE (HACKNEY) LTD,"8,265.80",LD LTS 18-64,SUPPORTED LIVING,2102848861,1000070479
06.08.2018,ADULT SOCIAL CARE,GROVE CARE PARTNERSHIP,"8,324.00",LD LTS 18-64,RESIDENTIAL CARE,2102848564,1000052893
06.08.2018,ADULT SOCIAL CARE,CHOICE CARE GROUP,"8,403.92",LD LTS 18-64,RESIDENTIAL CARE,2102848195,1572506
06.08.2018,ADULT SOCIAL CARE,OPTIMA CARE (SHINE) LONDON LTD,"8,456.48",LD LTS 18-64,SUPPORTED LIVING,2102848603,1000079614
06.08.2018,ADULT SOCIAL CARE,SAFFRONLAND HOMES,"8,650.24",LD LTS 18-64,RESIDENTIAL CARE,2102849229,1000072152
06.08.2018,ADULT SOCIAL CARE,THE DRIVE CARE HOMES LTD,"8,760.00",LD LTS 18-64,RESIDENTIAL CARE,2102848598,1000003889
06.08.2018,ADULT SOCIAL CARE,INSIGHT,"8,800.00",LD LTS 18-64,RESIDENTIAL CARE,2102848260,1825618
06.08.2018,ADULT SOCIAL CARE,INSIGHT,"8,802.20",LD LTS 18-64,RESIDENTIAL CARE,2102848973,1825618
06.08.2018,ADULT SOCIAL CARE,THE REGARD PARTNERSHIP,"8,926.40",LD LTS 18-64,RESIDENTIAL CARE,2102848511,1823223
06.08.2018,ADULT SOCIAL CARE,CARETECH COMMUNITY SERVICES LTD,"8,960.00",LD LTS 18-64,RESIDENTIAL CARE,2102848425,1000066698
06.08.2018,ADULT SOCIAL CARE,LONDON CYRENIANS HOUSING LTD,"9,103.84",LD LTS 18-64,SUPPORTED LIVING,2102848588,1000078600
06.08.2018,ADULT SOCIAL CARE,LONDON CYRENIANS HOUSING LTD,"9,172.56",LD LTS 18-64,SUPPORTED LIVING,2102848455,1000078600
06.08.2018,ADULT SOCIAL CARE,INSIGHT,"9,258.20",LD LTS 18-64,RESIDENTIAL CARE,2102848669,1825618
06.08.2018,ADULT SOCIAL CARE,OPTIMA CARE (SHINE) LONDON LTD,"9,351.84",LD LTS 18-64,SUPPORTED LIVING,2102849058,1000079614
06.08.2018,ADULT SOCIAL CARE,THE DISABILITIES TRUST,"9,552.00",LD LTS 18-64,RESIDENTIAL CARE,2102848264,1000020334
06.08.2018,ADULT SOCIAL CARE,SENSE,"9,568.00",LD LTS 18-64,RESIDENTIAL CARE,2102839174,1000046797
06.08.2018,ADULT SOCIAL CARE,SENSE,"9,568.00",LD LTS 18-64,RESIDENTIAL CARE,2102848359,1000046797
06.08.2018,ADULT SOCIAL CARE,SAFFRONLAND HOMES,"9,620.92",LD LTS 18-64,RESIDENTIAL CARE,2102849213,1000072152
06.08.2018,ADULT SOCIAL CARE,LONDON CYRENIANS HOUSING LTD,"9,852.24",LD LTS 18-64,SUPPORTED LIVING,2102848656,1000078600
06.08.2018,ADULT SOCIAL CARE,PECULIAR CARE HOMES LTD,"10,205.40",LD LTS 18-64,SUPPORTED LIVING,2102848989,1000076991
06.08.2018,ADULT SOCIAL CARE,INSIGHT,"10,231.48",LD LTS 18-64,RESIDENTIAL CARE,2102849253,1825618
06.08.2018,ADULT SOCIAL CARE,OPTIMA CARE (SHINE) LONDON LTD,"10,258.76",LD LTS 18-64,SUPPORTED LIVING,2102848395,1000079614
06.08.2018,ADULT SOCIAL CARE,THE CHILTERNS - OPTIMA CARE,"10,411.08",LD LTS 18-64,RESIDENTIAL CARE,2102848686,1000042209
06.08.2018,ADULT SOCIAL CARE,SEEABILITY,"10,495.60",LD LTS 18-64,RESIDENTIAL CARE,2102848241,1000043641
06.08.2018,ADULT SOCIAL CARE,CLEARWATER CARE (HACKNEY) LTD,"10,584.00",LD LTS 18-64,SUPPORTED LIVING,2102848422,1000070479
06.08.2018,ADULT SOCIAL CARE,WESC FOUNDATION,"10,709.15",LD LTS 18-64,RESIDENTIAL CARE,2102848494,1000074658
06.08.2018,ADULT SOCIAL CARE,MAYFIELD CHILDRENS HOME,"10,798.92",LD LTS 18-64,RESIDENTIAL CARE,2102848611,1000054051
06.08.2018,ADULT SOCIAL CARE,FERRY CARE LTD,"11,083.08",LD LTS 18-64,RESIDENTIAL CARE,2102848927,1000041775
06.08.2018,ADULT SOCIAL CARE,THE REGARD PARTNERSHIP,"11,155.00",LD LTS 18-64,RESIDENTIAL CARE,2102848461,1823223
06.08.2018,ADULT SOCIAL CARE,THE CHILTERNS - OPTIMA CARE,"11,283.72",LD LTS 18-64,RESIDENTIAL CARE,2102848499,1000042209
06.08.2018,ADULT SOCIAL CARE,CYGNET CARE SERVICES LTD,"12,404.00",LD LTS 18-64,RESIDENTIAL CARE,2102848976,1000050432
06.08.2018,ADULT SOCIAL CARE,CYGNET CARE SERVICES LTD,"12,672.80",LD LTS 18-64,RESIDENTIAL CARE,2102848899,1000050432
06.08.2018,ADULT SOCIAL CARE,SEEABILITY,"12,678.24",LD LTS 18-64,RESIDENTIAL CARE,2102849138,1000043641
06.08.2018,ADULT SOCIAL CARE,OPTIMA CARE (SHINE) LONDON LTD,"12,878.04",LD LTS 18-64,SUPPORTED LIVING,2102849255,1000079614
06.08.2018,ADULT SOCIAL CARE,OPTIMA CARE (SHINE) LONDON LTD,"13,204.24",LD LTS 18-64,SUPPORTED LIVING,2102849170,1000079614
06.08.2018,ADULT SOCIAL CARE,NASH CARE HOMES LTD,"13,244.00",LD LTS 18-64,RESIDENTIAL CARE,2102848308,1000080224
06.08.2018,ADULT SOCIAL CARE,CARLTON NURSING HOMES LTD,"13,883.24",LD LTS 18-64,RESIDENTIAL CARE,2102848386,1000070431
06.08.2018,ADULT SOCIAL CARE,VALUE IN CARE LTD,"14,706.72",LD LTS 18-64,RESIDENTIAL CARE,2102848331,1000041975
06.08.2018,ADULT SOCIAL CARE,THE DRIVE CARE HOMES LTD,"15,183.28",LD LTS 18-64,RESIDENTIAL CARE,2102848294,1000003889
06.08.2018,ADULT SOCIAL CARE,THE DRIVE CARE HOMES LTD (ADULTS),"15,183.80",LD LTS 18-64,RESIDENTIAL CARE,2102849014,1000055145
06.08.2018,ADULT SOCIAL CARE,THE REGARD PARTNERSHIP,"17,517.48",LD LTS 18-64,RESIDENTIAL CARE,2102848544,1823223
06.08.2018,ADULT SOCIAL CARE,PECULIAR CARE HOMES LTD,"19,098.80",LD LTS 18-64,SUPPORTED LIVING,2102849125,1000076991
06.08.2018,ADULT SOCIAL CARE,PLUS SERVICES,-565.32,LD LTS 65+,"MAND STATUTORY CHARGES, RESIDENTIAL",2102848648,1000021241
06.08.2018,ADULT SOCIAL CARE,MORTIMER SOCIETY,-537.8,LD LTS 65+,"MAND STATUTORY CHARGES, RESIDENTIAL",2102848134,1002942
06.08.2018,ADULT SOCIAL CARE,LEONARD CHESHIRE (GARDEN HOUSE),-537.8,LD LTS 65+,"MAND STATUTORY CHARGES, RESIDENTIAL",2102848323,1000049748
06.08.2018,ADULT SOCIAL CARE,BRANDON TRUST,-537.8,LD LTS 65+,"MAND STATUTORY CHARGES, RESIDENTIAL",2102848493,1000042417
06.08.2018,ADULT SOCIAL CARE,THE REGARD PARTNERSHIP,-537.8,LD LTS 65+,"MAND STATUTORY CHARGES, RESIDENTIAL",2102848608,1823223
06.08.2018,ADULT SOCIAL CARE,GROVE VILLA RESIDENTIAL CARE HOME,-537.8,LD LTS 65+,"MAND STATUTORY CHARGES, RESIDENTIAL",2102848636,1000022036
06.08.2018,ADULT SOCIAL CARE,STREATFIELD HOUSE,-537.8,LD LTS 65+,"MAND STATUTORY CHARGES, RESIDENTIAL",2102848691,1057319
06.08.2018,ADULT SOCIAL CARE,PARKVIEW NURSING HOME,-537.8,LD LTS 65+,"MAND STATUTORY CHARGES, NURSING",2102848747,1776618
06.08.2018,ADULT SOCIAL CARE,PARKGATE MANOR,-537.8,LD LTS 65+,"MAND STATUTORY CHARGES, RESIDENTIAL",2102848846,1000032801
06.08.2018,ADULT SOCIAL CARE,COTTAGE & RURAL ENTERPRISES LTD,-537.8,LD LTS 65+,"MAND STATUTORY CHARGES, RESIDENTIAL",2102848860,1069345
06.08.2018,ADULT SOCIAL CARE,RYDE HOUSE,-537.8,LD LTS 65+,"MAND STATUTORY CHARGES, RESIDENTIAL",2102848877,1022373
06.08.2018,ADULT SOCIAL CARE,31 WOODBOURNE (FRANCES TAYLOR FOUNDATION),-537.8,LD LTS 65+,"MAND STATUTORY CHARGES, RESIDENTIAL",2102849039,1000063870
06.08.2018,ADULT SOCIAL CARE,THE OLD  SCHOOL HOUSE (MADELEY),-537.8,LD LTS 65+,"MAND STATUTORY CHARGES, RESIDENTIAL",2102849276,11154904
06.08.2018,ADULT SOCIAL CARE,LEONARD CHESHIRE (GARDEN HOUSE),-537.8,LD LTS 65+,"MAND STATUTORY CHARGES, RESIDENTIAL",2102849333,1000049748
06.08.2018,ADULT SOCIAL CARE,THE REGARD PARTNERSHIP,-495.8,LD LTS 65+,"MAND STATUTORY CHARGES, RESIDENTIAL",2102848844,1823223
06.08.2018,ADULT SOCIAL CARE,REDACTED PERSONAL DATA,441.92,LD LTS 65+,SUPPORTED LIVING,REDACTED,REDACTED
06.08.2018,ADULT SOCIAL CARE,GROVE VILLA RESIDENTIAL CARE HOME,"1,757.32",LD LTS 65+,RESIDENTIAL CARE,2102848635,1000022036
06.08.2018,ADULT SOCIAL CARE,COTTAGE & RURAL ENTERPRISES LTD,"2,258.32",LD LTS 65+,RESIDENTIAL CARE,2102848859,1069345
06.08.2018,ADULT SOCIAL CARE,ASHMEAD HEALTHCARE LTD,"2,469.00",LD LTS 65+,RESIDENTIAL CARE,2102849223,1000077917
06.08.2018,ADULT SOCIAL CARE,31 WOODBOURNE (FRANCES TAYLOR FOUNDATION),"2,531.08",LD LTS 65+,RESIDENTIAL CARE,2102849038,1000063870
06.08.2018,ADULT SOCIAL CARE,RYDE HOUSE,"2,949.80",LD LTS 65+,RESIDENTIAL CARE,2102848876,1022373
06.08.2018,ADULT SOCIAL CARE,PARKVIEW NURSING HOME,"3,000.00",LD LTS 65+,NURSING PLACEMENTS FEES,2102848748,1776618
06.08.2018,ADULT SOCIAL CARE,ISLE OF WIGHT COUNCIL,"3,054.84",LD LTS 65+,RESIDENTIAL CARE,2102848385,1000051205
06.08.2018,ADULT SOCIAL CARE,MORTIMER SOCIETY,"3,067.80",LD LTS 65+,RESIDENTIAL CARE,2102848133,1002942
06.08.2018,ADULT SOCIAL CARE,PARKGATE MANOR,"3,408.00",LD LTS 65+,RESIDENTIAL CARE,2102848845,1000032801
06.08.2018,ADULT SOCIAL CARE,BRANDON TRUST,"3,870.84",LD LTS 65+,RESIDENTIAL CARE,2102848492,1000042417
06.08.2018,ADULT SOCIAL CARE,LEONARD CHESHIRE (GARDEN HOUSE),"3,933.80",LD LTS 65+,RESIDENTIAL CARE,2102848322,1000049748
06.08.2018,ADULT SOCIAL CARE,LEONARD CHESHIRE (GARDEN HOUSE),"3,933.80",LD LTS 65+,RESIDENTIAL CARE,2102849332,1000049748
06.08.2018,ADULT SOCIAL CARE,SIGNATURE HEALTH AND LIVING LTD,"4,000.00",LD LTS 65+,RESIDENTIAL CARE,2102848782,1000077751
06.08.2018,ADULT SOCIAL CARE,STREATFIELD HOUSE,"4,896.00",LD LTS 65+,RESIDENTIAL CARE,2102848690,1057319
06.08.2018,ADULT SOCIAL CARE,CHOICE SUPPORT,"5,171.24",LD LTS 65+,SUPPORTED LIVING,2102848785,1104183
06.08.2018,ADULT SOCIAL CARE,THE OLD  SCHOOL HOUSE (MADELEY),"5,873.32",LD LTS 65+,RESIDENTIAL CARE,2102849275,11154904
06.08.2018,ADULT SOCIAL CARE,PLUS SERVICES,"5,899.68",LD LTS 65+,RESIDENTIAL CARE,2102848647,1000021241
06.08.2018,ADULT SOCIAL CARE,PLUS SERVICES,"6,426.00",LD LTS 65+,RESIDENTIAL CARE,2102848159,1000021241
06.08.2018,ADULT SOCIAL CARE,THE REGARD PARTNERSHIP,"6,567.84",LD LTS 65+,RESIDENTIAL CARE,2102848843,1823223
06.08.2018,ADULT SOCIAL CARE,THE DISABILITIES TRUST,"6,837.84",LD LTS 65+,RESIDENTIAL CARE,2102848985,1000020334
06.08.2018,ADULT SOCIAL CARE,THE REGARD PARTNERSHIP,"7,070.00",LD LTS 65+,RESIDENTIAL CARE,2102848607,1823223
06.08.2018,ADULT SOCIAL CARE,HAVELOCK COURT (BUPA CARE),"-4,080.00",MEM LTS 18-64,"MAND STATUTORY CHARGES, NURSING",2102848682,1000028902
06.08.2018,ADULT SOCIAL CARE,FOLKESTONE NURSING HOME LTD,-931.32,MEM LTS 18-64,"MAND STATUTORY CHARGES, NURSING",2102849142,1000080482
06.08.2018,ADULT SOCIAL CARE,STEPPING STONES RESETTLEMENT UNIT,-793.64,MEM LTS 18-64,"MAND STATUTORY CHARGES, RESIDENTIAL",2102848851,1000032806
06.08.2018,ADULT SOCIAL CARE,VOYAGE LTD (EVESLEIGH KENT),-524.36,MEM LTS 18-64,"MAND STATUTORY CHARGES, RESIDENTIAL",2102849133,1000041320
06.08.2018,ADULT SOCIAL CARE,LA ROSA 2,-443.83,MEM LTS 18-64,"MAND STATUTORY CHARGES, RESIDENTIAL",2102849208,1000079677
06.08.2018,ADULT SOCIAL CARE,LOVE WALK HOSTEL FOR DISABLED,-402.6,MEM LTS 18-64,"MAND STATUTORY CHARGES, RESIDENTIAL",2102848223,1008978
06.08.2018,ADULT SOCIAL CARE,FAIRLIE HEALTHCARE LTD,-348.6,MEM LTS 18-64,"MAND STATUTORY CHARGES, NURSING",2102849083,1000012684
06.08.2018,ADULT SOCIAL CARE,SUPREME CARE SERVICES LTD,"1,072.98",MEM LTS 18-64,HOMECARE - C&V,2102847857,1000059416
06.08.2018,ADULT SOCIAL CARE,HC-ONE LTD (TOWER BRIDGE CARE HOME),"2,234.40",MEM LTS 18-64,NURSING PLACEMENTS FEES,2102848162,1000067670
06.08.2018,ADULT SOCIAL CARE,FOLKESTONE NURSING HOME LTD,"2,590.60",MEM LTS 18-64,NURSING PLACEMENTS FEES,2102849141,1000080482
06.08.2018,ADULT SOCIAL CARE,LOVE WALK HOSTEL FOR DISABLED,"3,240.00",MEM LTS 18-64,RESIDENTIAL CARE,2102848224,1008978
06.08.2018,ADULT SOCIAL CARE,LA ROSA 2,"3,800.00",MEM LTS 18-64,RESIDENTIAL CARE,2102849209,1000079677
06.08.2018,ADULT SOCIAL CARE,FAIRLIE HEALTHCARE LTD,"3,828.60",MEM LTS 18-64,NURSING PLACEMENTS FEES,2102849082,1000012684
06.08.2018,ADULT SOCIAL CARE,HAVELOCK COURT (BUPA CARE),"4,080.00",MEM LTS 18-64,NURSING PLACEMENTS FEES,2102848681,1000028902
06.08.2018,ADULT SOCIAL CARE,VOYAGE LTD (EVESLEIGH KENT),"4,595.52",MEM LTS 18-64,RESIDENTIAL CARE,2102849134,1000041320
06.08.2018,ADULT SOCIAL CARE,STEPPING STONES RESETTLEMENT UNIT,"5,086.04",MEM LTS 18-64,RESIDENTIAL CARE,2102848852,1000032806
06.08.2018,ADULT SOCIAL CARE,HOTHFIELD MANOR CENTRE,"5,138.88",MEM LTS 18-64,RESIDENTIAL CARE,2102849311,1000005473
06.08.2018,ADULT SOCIAL CARE,REDACTED PERSONAL DATA,"6,477.72",MEM LTS 18-64,NURSING PLACEMENTS FEES,REDACTED,REDACTED
06.08.2018,ADULT SOCIAL CARE,HIGH VIEW CARE SERVICES LTD,"7,140.44",MEM LTS 18-64,NURSING PLACEMENTS FEES,2102848793,1000053562
06.08.2018,ADULT SOCIAL CARE,HC-ONE LTD (TOWER BRIDGE CARE HOME),"-1,676.60",MEM LTS 65+,"MAND STATUTORY CHARGES, NURSING",2102849186,1000067670
06.08.2018,ADULT SOCIAL CARE,SOUTH EAST LONDON BAPTIST HOME,"-1,424.88",MEM LTS 65+,"MAND STATUTORY CHARGES, RESIDENTIAL",2102848904,1670766
06.08.2018,ADULT SOCIAL CARE,HC-ONE LTD (TOWER BRIDGE CARE HOME),"-1,325.29",MEM LTS 65+,"MAND STATUTORY CHARGES, NURSING",2102848325,1000067670
06.08.2018,ADULT SOCIAL CARE,CHARLTON PARK (FOUR SEASONS),"-1,037.00",MEM LTS 65+,"MAND STATUTORY CHARGES, NURSING",2102848784,11180076
06.08.2018,ADULT SOCIAL CARE,HC-ONE LTD (TOWER BRIDGE CARE HOME),-993.44,MEM LTS 65+,"MAND STATUTORY CHARGES, NURSING",2102848303,1000067670
06.08.2018,ADULT SOCIAL CARE,AVANTE PARTNERSHIP (WEYBOURNE),-985,MEM LTS 65+,"MAND STATUTORY CHARGES, RESIDENTIAL",2102848781,11130185
06.08.2018,ADULT SOCIAL CARE,ANCHOR TRUST,-981.9,MEM LTS 65+,RESIDENTIAL CARE,2102848503,11257534
06.08.2018,ADULT SOCIAL CARE,LAURELS NURSING CARE CENTRE,-981.48,MEM LTS 65+,"MAND STATUTORY CHARGES, NURSING",2102848572,1000007358
06.08.2018,ADULT SOCIAL CARE,HC-ONE LTD (TOWER BRIDGE CARE HOME),-843.72,MEM LTS 65+,"MAND STATUTORY CHARGES, NURSING",2102849264,1000067670
06.08.2018,ADULT SOCIAL CARE,MEADBANK CARE HOME,-836.76,MEM LTS 65+,"MAND STATUTORY CHARGES, RESIDENTIAL",2102849251,1000043382
06.08.2018,ADULT SOCIAL CARE,LEATHERLAND LODGE,-826.56,MEM LTS 65+,"MAND STATUTORY CHARGES, RESIDENTIAL",2102848475,1000080149
06.08.2018,ADULT SOCIAL CARE,BELMONT SANDBANKS LTD (MADEIRA LODGE),-816,MEM LTS 65+,"MAND STATUTORY CHARGES, RESIDENTIAL",2102849266,1000012451
06.08.2018,ADULT SOCIAL CARE,MANLEY COURT NURSING HOME (BUPA),-806.7,MEM LTS 65+,"MAND STATUTORY CHARGES, NURSING",2102849246,11101434
06.08.2018,ADULT SOCIAL CARE,YARA ENTERPRISES LTD,-778.48,MEM LTS 65+,"MAND STATUTORY CHARGES, RESIDENTIAL",2102849219,11192021
06.08.2018,ADULT SOCIAL CARE,HC-ONE LTD (TOWER BRIDGE CARE HOME),-749.2,MEM LTS 65+,"MAND STATUTORY CHARGES, NURSING",2102848138,1000067670
06.08.2018,ADULT SOCIAL CARE,FOUR SEASONS (UPLANDS CARE HOME),-745.6,MEM LTS 65+,"MAND STATUTORY CHARGES, NURSING",2102848490,11290299
06.08.2018,ADULT SOCIAL CARE,CARING HOMES HEALTHCARE GROUP LTD,-737.2,MEM LTS 65+,"MAND STATUTORY CHARGES, NURSING",2102849051,1000080206
06.08.2018,ADULT SOCIAL CARE,HC-ONE LTD (TOWER BRIDGE CARE HOME),-730.28,MEM LTS 65+,"MAND STATUTORY CHARGES, NURSING",2102848662,1000067670
06.08.2018,ADULT SOCIAL CARE,HC-ONE LTD (TOWER BRIDGE CARE HOME),-721.36,MEM LTS 65+,"MAND STATUTORY CHARGES, NURSING",2102848246,1000067670
06.08.2018,ADULT SOCIAL CARE,RIVERLEE CARE HOME,-647.64,MEM LTS 65+,"MAND STATUTORY CHARGES, NURSING",2102849042,1000031567
06.08.2018,ADULT SOCIAL CARE,SOUTH EAST LONDON BAPTIST HOME,-631.36,MEM LTS 65+,"MAND STATUTORY CHARGES, RESIDENTIAL",2102848711,1670766
06.08.2018,ADULT SOCIAL CARE,HC-ONE LTD (TOWER BRIDGE CARE HOME),-625.48,MEM LTS 65+,"MAND STATUTORY CHARGES, RESIDENTIAL",2102849132,1000067670
06.08.2018,ADULT SOCIAL CARE,HC-ONE LTD (TOWER BRIDGE CARE HOME),-604.56,MEM LTS 65+,"MAND STATUTORY CHARGES, NURSING",2102848650,1000067670
06.08.2018,ADULT SOCIAL CARE,FIELDSIDE RESIDENTIAL CARE HOME,-602.28,MEM LTS 65+,"MAND STATUTORY CHARGES, RESIDENTIAL",2102848198,1840278
06.08.2018,ADULT SOCIAL CARE,HC-ONE LTD (TOWER BRIDGE CARE HOME),-602.12,MEM LTS 65+,"MAND STATUTORY CHARGES, NURSING",2102848268,1000067670
06.08.2018,ADULT SOCIAL CARE,HC-ONE LTD (TOWER BRIDGE CARE HOME),-561.8,MEM LTS 65+,"MAND STATUTORY CHARGES, RESIDENTIAL",2102848560,1000067670
06.08.2018,ADULT SOCIAL CARE,ANCHOR TRUST,-541.8,MEM LTS 65+,"MAND STATUTORY CHARGES, RESIDENTIAL",2102848829,11257534
06.08.2018,ADULT SOCIAL CARE,ANCHOR TRUST,-537.8,MEM LTS 65+,"MAND STATUTORY CHARGES, RESIDENTIAL",2102848126,11257534
06.08.2018,ADULT SOCIAL CARE,HC-ONE LTD (TOWER BRIDGE CARE HOME),-537.8,MEM LTS 65+,"MAND STATUTORY CHARGES, NURSING",2102848145,1000067670
06.08.2018,ADULT SOCIAL CARE,BEECHCROFT CARE HOME,-537.8,MEM LTS 65+,"MAND STATUTORY CHARGES, NURSING",2102848341,1000077126
06.08.2018,ADULT SOCIAL CARE,ANCHOR TRUST,-537.8,MEM LTS 65+,"MAND STATUTORY CHARGES, RESIDENTIAL",2102848372,11257534
06.08.2018,ADULT SOCIAL CARE,ANCHOR TRUST,-537.8,MEM LTS 65+,"MAND STATUTORY CHARGES, RESIDENTIAL",2102848419,11257534
06.08.2018,ADULT SOCIAL CARE,SOUTH EAST LONDON BAPTIST HOME,-537.8,MEM LTS 65+,"MAND STATUTORY CHARGES, RESIDENTIAL",2102848537,1670766
06.08.2018,ADULT SOCIAL CARE,FOUR SEASONS (UPLANDS CARE HOME),-537.8,MEM LTS 65+,"MAND STATUTORY CHARGES, NURSING",2102848688,11290299
06.08.2018,ADULT SOCIAL CARE,HC-ONE LTD (TOWER BRIDGE CARE HOME),-537.8,MEM LTS 65+,"MAND STATUTORY CHARGES, NURSING",2102848764,1000067670
06.08.2018,ADULT SOCIAL CARE,BEECHCROFT CARE HOME,-537.8,MEM LTS 65+,"MAND STATUTORY CHARGES, NURSING",2102848912,1000077126
06.08.2018,ADULT SOCIAL CARE,ANCHOR TRUST,-537.8,MEM LTS 65+,"MAND STATUTORY CHARGES, RESIDENTIAL",2102849031,11257534
06.08.2018,ADULT SOCIAL CARE,HC-ONE LTD (TOWER BRIDGE CARE HOME),-537.8,MEM LTS 65+,"MAND STATUTORY CHARGES, NURSING",2102849111,1000067670
06.08.2018,ADULT SOCIAL CARE,HARBLEDOWN LODGE,-522.8,MEM LTS 65+,"MAND STATUTORY CHARGES, NURSING",2102848161,1000068526
06.08.2018,ADULT SOCIAL CARE,ANCHOR TRUST,-522.8,MEM LTS 65+,"MAND STATUTORY CHARGES, RESIDENTIAL",2102848707,11257534
06.08.2018,ADULT SOCIAL CARE,PEARTREE CARE CENTRE (EXCELCARE),-432.44,MEM LTS 65+,INCOME FOR THIRD PARTIES/AGENCY ARRANGEMENTS,2102848208,1000048698
06.08.2018,ADULT SOCIAL CARE,SUPREME CARE SERVICES LTD,450.9,MEM LTS 65+,HOMECARE - C&V,2102847897,1000059416
06.08.2018,ADULT SOCIAL CARE,PEARTREE CARE CENTRE (EXCELCARE),518.59,MEM LTS 65+,"MAND STATUTORY CHARGES, NURSING",2102848209,1000048698
06.08.2018,ADULT SOCIAL CARE,SUPREME CARE SERVICES LTD,634.6,MEM LTS 65+,HOMECARE - C&V,2102847834,1000059416
06.08.2018,ADULT SOCIAL CARE,SUPREME CARE SERVICES LTD,668,MEM LTS 65+,HOMECARE - C&V,2102847957,1000059416
06.08.2018,ADULT SOCIAL CARE,SUPREME CARE SERVICES LTD,718.1,MEM LTS 65+,HOMECARE - C&V,2102847963,1000059416
06.08.2018,ADULT SOCIAL CARE,HUMBLE HEALTH CARE LTD,"1,032.75",MEM LTS 65+,HOMECARE - SPOT,2102848005,1000079270
06.08.2018,ADULT SOCIAL CARE,SUPREME CARE SERVICES LTD,"1,169.00",MEM LTS 65+,HOMECARE - C&V,2102847944,1000059416
06.08.2018,ADULT SOCIAL CARE,HUMBLE HEALTH CARE LTD,"1,782.00",MEM LTS 65+,HOMECARE - C&V,2102847997,1000079270
06.08.2018,ADULT SOCIAL CARE,LEATHERLAND LODGE,"1,843.60",MEM LTS 65+,RESIDENTIAL CARE,2102848474,1000080149
06.08.2018,ADULT SOCIAL CARE,ANCHOR TRUST,"1,963.80",MEM LTS 65+,RESIDENTIAL CARE,2102848141,11257534
06.08.2018,ADULT SOCIAL CARE,ANCHOR TRUST,"1,963.80",MEM LTS 65+,RESIDENTIAL CARE,2102848270,11257534
06.08.2018,ADULT SOCIAL CARE,ANCHOR TRUST,"1,963.80",MEM LTS 65+,RESIDENTIAL CARE,2102848706,11257534
06.08.2018,ADULT SOCIAL CARE,ANCHOR TRUST,"1,963.80",MEM LTS 65+,RESIDENTIAL CARE,2102848802,11257534
06.08.2018,ADULT SOCIAL CARE,ANCHOR TRUST,"1,963.80",MEM LTS 65+,RESIDENTIAL CARE,2102848887,11257534
06.08.2018,ADULT SOCIAL CARE,ANCHOR TRUST,"1,963.80",MEM LTS 65+,RESIDENTIAL CARE,2102848970,11257534
06.08.2018,ADULT SOCIAL CARE,ANCHOR TRUST,"1,963.80",MEM LTS 65+,RESIDENTIAL CARE,2102848977,11257534
06.08.2018,ADULT SOCIAL CARE,ANCHOR TRUST,"2,030.76",MEM LTS 65+,RESIDENTIAL CARE,2102848125,11257534
06.08.2018,ADULT SOCIAL CARE,ANCHOR TRUST,"2,030.76",MEM LTS 65+,RESIDENTIAL CARE,2102848149,11257534
06.08.2018,ADULT SOCIAL CARE,ANCHOR TRUST,"2,030.76",MEM LTS 65+,RESIDENTIAL CARE,2102848192,11257534
06.08.2018,ADULT SOCIAL CARE,ANCHOR TRUST,"2,030.76",MEM LTS 65+,RESIDENTIAL CARE,2102848282,11257534
06.08.2018,ADULT SOCIAL CARE,ANCHOR TRUST,"2,030.76",MEM LTS 65+,RESIDENTIAL CARE,2102848371,11257534
06.08.2018,ADULT SOCIAL CARE,ANCHOR TRUST,"2,030.76",MEM LTS 65+,RESIDENTIAL CARE,2102848393,11257534
06.08.2018,ADULT SOCIAL CARE,ANCHOR TRUST,"2,030.76",MEM LTS 65+,RESIDENTIAL CARE,2102848394,11257534
06.08.2018,ADULT SOCIAL CARE,ANCHOR TRUST,"2,030.76",MEM LTS 65+,RESIDENTIAL CARE,2102848401,11257534
06.08.2018,ADULT SOCIAL CARE,ANCHOR TRUST,"2,030.76",MEM LTS 65+,RESIDENTIAL CARE,2102848418,11257534
06.08.2018,ADULT SOCIAL CARE,ANCHOR TRUST,"2,030.76",MEM LTS 65+,RESIDENTIAL CARE,2102848433,11257534
06.08.2018,ADULT SOCIAL CARE,ANCHOR TRUST,"2,030.76",MEM LTS 65+,RESIDENTIAL CARE,2102848439,11257534
06.08.2018,ADULT SOCIAL CARE,ANCHOR TRUST,"2,030.76",MEM LTS 65+,RESIDENTIAL CARE,2102848677,11257534
06.08.2018,ADULT SOCIAL CARE,ANCHOR TRUST,"2,030.76",MEM LTS 65+,RESIDENTIAL CARE,2102848678,11257534
06.08.2018,ADULT SOCIAL CARE,ANCHOR TRUST,"2,030.76",MEM LTS 65+,RESIDENTIAL CARE,2102848719,11257534
06.08.2018,ADULT SOCIAL CARE,ANCHOR TRUST,"2,030.76",MEM LTS 65+,RESIDENTIAL CARE,2102848799,11257534
06.08.2018,ADULT SOCIAL CARE,ANCHOR TRUST,"2,030.76",MEM LTS 65+,RESIDENTIAL CARE,2102848801,11257534
06.08.2018,ADULT SOCIAL CARE,ANCHOR TRUST,"2,030.76",MEM LTS 65+,RESIDENTIAL CARE,2102848803,11257534
06.08.2018,ADULT SOCIAL CARE,ANCHOR TRUST,"2,030.76",MEM LTS 65+,RESIDENTIAL CARE,2102848811,11257534
06.08.2018,ADULT SOCIAL CARE,ANCHOR TRUST,"2,030.76",MEM LTS 65+,RESIDENTIAL CARE,2102848828,11257534
06.08.2018,ADULT SOCIAL CARE,ANCHOR TRUST,"2,030.76",MEM LTS 65+,RESIDENTIAL CARE,2102848850,11257534
06.08.2018,ADULT SOCIAL CARE,ANCHOR TRUST,"2,030.76",MEM LTS 65+,RESIDENTIAL CARE,2102848872,11257534
06.08.2018,ADULT SOCIAL CARE,ANCHOR TRUST,"2,030.76",MEM LTS 65+,RESIDENTIAL CARE,2102848994,11257534
06.08.2018,ADULT SOCIAL CARE,ANCHOR TRUST,"2,030.76",MEM LTS 65+,RESIDENTIAL CARE,2102848999,11257534
06.08.2018,ADULT SOCIAL CARE,ANCHOR TRUST,"2,030.76",MEM LTS 65+,RESIDENTIAL CARE,2102849027,11257534
06.08.2018,ADULT SOCIAL CARE,ANCHOR TRUST,"2,030.76",MEM LTS 65+,RESIDENTIAL CARE,2102849030,11257534
06.08.2018,ADULT SOCIAL CARE,ANCHOR TRUST,"2,030.76",MEM LTS 65+,RESIDENTIAL CARE,2102849079,11257534
06.08.2018,ADULT SOCIAL CARE,ANCHOR TRUST,"2,030.76",MEM LTS 65+,RESIDENTIAL CARE,2102849135,11257534
06.08.2018,ADULT SOCIAL CARE,MINSA CARE LTD,"2,129.12",MEM LTS 65+,RESIDENTIAL CARE,2102848998,1000075831
06.08.2018,ADULT SOCIAL CARE,HARBLEDOWN LODGE,"2,163.56",MEM LTS 65+,NURSING PLACEMENTS FEES,2102848160,1000068526
06.08.2018,ADULT SOCIAL CARE,HC-ONE LTD (TOWER BRIDGE CARE HOME),"2,180.36",MEM LTS 65+,NURSING PLACEMENTS FEES,2102848131,1000067670
06.08.2018,ADULT SOCIAL CARE,FOUR SEASONS (UPLANDS CARE HOME),"2,180.36",MEM LTS 65+,NURSING PLACEMENTS FEES,2102848489,11290299
06.08.2018,ADULT SOCIAL CARE,CARING HOMES HEALTHCARE GROUP LTD,"2,182.60",MEM LTS 65+,NURSING PLACEMENTS FEES,2102849050,1000080206
06.08.2018,ADULT SOCIAL CARE,FOUR SEASONS (UPLANDS CARE HOME),"2,183.84",MEM LTS 65+,RESIDENTIAL CARE,2102848898,11290299
06.08.2018,ADULT SOCIAL CARE,HC-ONE LTD (TOWER BRIDGE CARE HOME),"2,183.84",MEM LTS 65+,RESIDENTIAL CARE,2102849317,1000067670
06.08.2018,ADULT SOCIAL CARE,HC-ONE LTD (TOWER BRIDGE CARE HOME),"2,231.44",MEM LTS 65+,NURSING PLACEMENTS FEES,2102849185,1000067670
06.08.2018,ADULT SOCIAL CARE,HC-ONE LTD (TOWER BRIDGE CARE HOME),"2,241.12",MEM LTS 65+,NURSING PLACEMENTS FEES,2102848763,1000067670
06.08.2018,ADULT SOCIAL CARE,HC-ONE LTD (TOWER BRIDGE CARE HOME),"2,258.28",MEM LTS 65+,NURSING PLACEMENTS FEES,2102848245,1000067670
06.08.2018,ADULT SOCIAL CARE,BEECHCROFT CARE HOME,"2,258.56",MEM LTS 65+,NURSING PLACEMENTS FEES,2102848340,1000077126
06.08.2018,ADULT SOCIAL CARE,SOUTH EAST LONDON BAPTIST HOME,"2,261.96",MEM LTS 65+,RESIDENTIAL CARE,2102848903,1670766
06.08.2018,ADULT SOCIAL CARE,PENERLEY LODGE REST HOME,"2,261.96",MEM LTS 65+,RESIDENTIAL CARE,2102849103,1958913
06.08.2018,ADULT SOCIAL CARE,AVANTE PARTNERSHIP (WEYBOURNE),"2,295.52",MEM LTS 65+,RESIDENTIAL CARE,2102848780,11130185
06.08.2018,ADULT SOCIAL CARE,LAURELS NURSING CARE CENTRE,"2,310.88",MEM LTS 65+,NURSING PLACEMENTS FEES,2102848571,1000007358
06.08.2018,ADULT SOCIAL CARE,FIELDSIDE RESIDENTIAL CARE HOME,"2,311.32",MEM LTS 65+,RESIDENTIAL CARE,2102848197,1840278
06.08.2018,ADULT SOCIAL CARE,BEECHCROFT CARE HOME,"2,325.40",MEM LTS 65+,NURSING PLACEMENTS FEES,2102848911,1000077126
06.08.2018,ADULT SOCIAL CARE,YARA ENTERPRISES LTD,"2,325.68",MEM LTS 65+,RESIDENTIAL CARE,2102849218,11192021
06.08.2018,ADULT SOCIAL CARE,HC-ONE LTD (TOWER BRIDGE CARE HOME),"2,340.84",MEM LTS 65+,RESIDENTIAL CARE,2102849131,1000067670
06.08.2018,ADULT SOCIAL CARE,CHARLTON PARK (FOUR SEASONS),"2,343.44",MEM LTS 65+,NURSING PLACEMENTS FEES,2102848783,11180076
06.08.2018,ADULT SOCIAL CARE,HC-ONE LTD (TOWER BRIDGE CARE HOME),"2,366.36",MEM LTS 65+,RESIDENTIAL CARE,2102848559,1000067670
06.08.2018,ADULT SOCIAL CARE,LITTLE SISTERS OF THE POOR,"2,369.72",MEM LTS 65+,RESIDENTIAL CARE,2102848116,1860341
06.08.2018,ADULT SOCIAL CARE,BELMONT SANDBANKS LTD (MADEIRA LODGE),"2,371.00",MEM LTS 65+,RESIDENTIAL CARE,2102849265,1000012451
06.08.2018,ADULT SOCIAL CARE,HC-ONE LTD (TOWER BRIDGE CARE HOME),"2,450.84",MEM LTS 65+,NURSING PLACEMENTS FEES,2102848137,1000067670
06.08.2018,ADULT SOCIAL CARE,PARKVIEW NURSING HOME,"2,450.84",MEM LTS 65+,NURSING PLACEMENTS FEES,2102848139,1776618
